Workbook

Sheet Examples (hidden)
B1: Teal | C1: Red | D1: Light grey | E1: Mid-grey | F1: Grey | G1: Light teal | H1: Mid-red | I1: Light red | L1: Teal solid | M1: Red solid | N1: Mid-grey | O1: Teal dashes | P1: Red dashes | Q1: Grey dashes | S1: X value | T1: 1st Y value | U1: 2nd Y value | X1: Teal | Y1: Red | Z1: Mid-red | AA1: Mid-grey
A2: 2003-04 | B2: 36.19 | C2: 36.88 | D2: 21.56 | E2: 5.36 | F2: 3.01 | G2: 10 | H2: 3.01 | I2: 10 | K2: 2003-04 | L2: 33.19 | M2: 36.88 | N2: 21.56 | O2: 5.36 | P2: 3.01 | Q2: 10 | S2: 1.8 | T2: 10 | U2: 17 | W2: 2003-04 | X2: 33.19 | Y2: 36.88 | Z2: 21.56 | AA2: 5.36
A3: 2004-05 | B3: 39.39 | C3: 32.02 | D3: 21.6 | E3: 7.01 | F3: 3.36 | G3: 12 | H3: 3.36 | I3: 12 | K3: 2004-05 | L3: 39.39 | M3: 32.02 | N3: 21.6 | O3: 7.01 | P3: 3.36 | Q3: 12 | S3: 2.3 | T3: 12 | U3: 9 | W3: 2004-05 | X3: 39.39 | Y3: 32.02 | Z3: 21.6 | AA3: 7.01
A4: 2005-06 | B4: 42.78 | C4: 29.91 | D4: 18.35 | E4: 6.33 | F4: 2.63 | G4: 14 | H4: 2.63 | I4: 14 | K4: 2005-06 | L4: 42.78 | M4: 29.91 | N4: 18.35 | O4: 6.33 | P4: 2.63 | Q4: 14 | S4: 3.7 | T4: 16 | U4: 14 | W4: 2005-06 | X4: 42.78 | Y4: 29.91 | Z4: 18.35 | AA4: 6.33
A5: 2006-07 | B5: 42.13 | C5: 26.53 | D5: 21.6 | E5: 7.01 | F5: 2.72 | G5: 16 | H5: 2.72 | I5: 16 | K5: 2006-07 | L5: 42.13 | M5: 26.53 | N5: 21.6 | O5: 7.01 | P5: 2.72 | Q5: 16 | S5: 4.1 | T5: 8 | U5: 23 | W5: 2006-07 | X5: 42.13 | Y5: 26.53 | Z5: 21.6 | AA5: 7.01
A6: 2007-08 | B6: 41.69 | C6: 24.76 | D6: 23.98 | E6: 7 | F6: 2.57 | G6: 18 | H6: 2.57 | I6: 18 | K6: 2007-08 | L6: 41.69 | M6: 24.76 | N6: 23.98 | O6: 7 | P6: 2.57 | Q6: 18 | S6: 5.5 | T6: 14 | U6: 27 | W6: 2007-08 | X6: 41.69 | Y6: 24.76 | Z6: 23.98 | AA6: 7
A7: 2008-09 | B7: 39.39 | C7: 32.02 | D7: 21.6 | E7: 7.01 | F7: 3.36 | G7: 12 | H7: 3.36 | I7: 12 | K7: 2008-09 | L7: 39.39 | M7: 32.02 | N7: 21.6 | O7: 7.01 | P7: 3.36 | Q7: 12 | W7: 2008-09 | X7: 39.39 | Y7: 32.02 | Z7: 21.6 | AA7: 7.01
A8: 2009-10 | B8: 42.13 | C8: 26.53 | D8: 21.6 | E8: 7.01 | F8: 2.72 | G8: 16 | H8: 2.72 | I8: 16 | K8: 2009-10 | L8: 42.13 | M8: 26.53 | N8: 21.6 | O8: 7.01 | P8: 2.72 | Q8: 16 | W8: 2009-10 | X8: 42.13 | Y8: 26.53 | Z8: 21.6 | AA8: 7.01
A9: 2010-11 | B9: 45 | C9: 22 | D9: 26 | E9: 8 | F9: 2 | G9: 20 | H9: 2 | I9: 20 | K9: 2010-11 | L9: 45 | M9: 22 | N9: 26 | O9: 8 | P9: 2 | Q9: 20 | W9: 2010-11 | X9: 45 | Y9: 22 | Z9: 26 | AA9: 8
A11: – en rule for when needed
S17: X value | T17: 1st Y value | U17: 2nd Y value | V17: 3rd Y value | W17: 4th Y value | X17: 5th Y value | Y17: 6th Y value
S18: 1.8 | T18: 10 | U18: 17 | V18: 24 | W18: 20 | X18: 22 | Y18: 15
S19: 2.3 | T19: 12 | U19: 9 | V19: 6 | W19: 8 | X19: 14 | Y19: 18
S20: 3.7 | T20: 16 | U20: 14 | V20: 12 | W20: 10 | X20: 8 | Y20: 6
S21: 4.1 | T21: 8 | U21: 23 | V21: 38 | W21: 25 | X21: 30 | Y21: 17
S22: 5.5 | T22: 14 | U22: 27 | V22: 5 | W22: 18 | X22: 31 | Y22: 26

Sheet Read Me 1st
B2: Title | C2: MLA Product Adoption and Impact Template
B3: MLA sub program
B4: Program manager
B5: Prepared by | C5: George Waldthausen
B6: Reviewed by | C6: George Waldthausen
B7: Last modified | C7: 10 November 2023
B8: Purpose of the worksheet | C8: This is a general purpose template spreadsheet that allows input of product level ('bottom up') first round adoption and impact data.
B9: Overview of approach (impact) | C9: For each product/value proposition, enter the net impact per unit of adoption impact, having deducted any costs for achieving that impact. If the product has multiple impacts which cannot be directly added (e.g. each impact has differing adoption profiles), use multiple rows. | F9: This template is published by Meat & Livestock Australia Limited ABN 39 081 678 364 (MLA). Reproduction in whole or in part of this document is prohibited without the prior consent of MLA
B10: Impact attribution | C10: Estimate (based on investment costs) the maximum total attribution to MLA versus any other parties e.g. other RDC's. The default is 100% attribution to MLA. Finally, split this maximum MLA attribution into the various 5-year MLA investment time periods.
B11: Impact allocation to benefit type and species | C11: To assist in calculating second round economic benefits via the MLA GMI/IF partial equilibrium model, impacts are allocated to benefit types and species/sectors. Please consult with MLA if you wish to add this data.
B12: Overview of approach (adoption) | C12: For each product, input the annual actual or estimated adoption number, starting at the year of first adoption.
B13: Overview of approach (calculation) | C13: Annual impact (in $m) will be adoption x attributed impact for that time period. The total impact for that product will depend on the time period chosen i.e. ALL = 2015-2045 (30 years), 2015-20 = 2015-2040 (25 years), 2020-25 = 2020-2045 (25 years). The default is ALL years.
B15: Contents | C15: Purpose and description
B16: Product benefit & adoption | C16: Enter the impact, attribution, unit of adoption and adoption numbers.
B17: Net benefits $m by product | C17: Calculates annual benefits based on the above, both without and with NPV calculations.
B18: PV calculation | C18: Provides factors for both NPV discounts (5%) and CPI adjustments. Note that impacts are assumed to be estimated on current year numbers, and hence no CPI adjustment is needed. The base year will be the current fiscal year, but this can be adjusted using this tab.
B19: Formatting | C19: This are the standard MLA formatting styles to be used.

Sheet Product benefit & adoption
A1: H
B2: Benefits and adoption by product: allocation between type of benefit and species
C4: NPV Base year | D4: FY23 | F4: Select impact time period | G4: ALL | H4: Options:
C5: Time period | D5: =$G$4 -> ALL | H5: 2015-20
C6: Sector receiving initial impact (shock) | D6: Producer | H6: 2020-25
H7: ALL | K7: MLA attribution to 5-year planning periods (must add to 100%) | Q7: Allocation to benefit type,species and producer sector. (must add to 100%)
Q9: Benefit split | S9: Cost reduction split by sector | V9: Productivity) benefit split by sector | AA9: Annual adoption profile by product
B10: Item | C10: MLA Sub program | D10: MLA Product category | E10: MLA Product code | F10: Product (value proposition, extension program etc) | G10: Outcome (adoption) comment | H10: Economic impact rating | I10: Adoption start year | J10: $ pre attribution annual net benefit per unit adopted | K10: % attribution to 2015/20 MLA cash investment | L10: $ attribution to 2015/20 MLA cash investment | M10: % attribution to 2020/25 MLA cash investment | N10: $ attribution to 2020/25 MLA cash investment | O10: Max % attribution to MLA (all periods) | P10: Max $ attribution impact to MLA (all periods) | Q10: Cost Reduction % | R10: Productivity Benefit % | S10: Northern grass fed beef % | T10: Southern grass fed beef % | U10: Lamb/Adult Sheep % | V10: Northern grass fed beef % | W10: Southern grass fed beef % | X10: Lamb % | Y10: Adult Sheep % | Z10: Adoption Unit | AA10: 2015-16 | AB10: 2016-17 | AC10: 2017-18 | AD10: 2018-19 | AE10: 2019-20 | AF10: 2020-21 | AG10: 2021-22 | AH10: 2022-23 | AI10: 2023-24 | AJ10: 2024-25 | AK10: 2025-26 | AL10: 2026-27 | AM10: 2027-28 | AN10: 2028-29 | AO10: 2029-30 | AP10: 2030-31 | AQ10: 2031-32 | AR10: 2032-33 | AS10: 2033-34 | AT10: 2034-35 | AU10: 2035-36 | AV10: 2036-37 | AW10: 2037-38 | AX10: 2038-39 | AY10: 2039-40 | AZ10: 2040-41 | BA10: 2041-42 | BB10: 2042-43 | BC10: 2043-44 | BD10: 2044-45
B11: 1 | C11: e.g. Feedbase Productivity | D11: Pasture variety | E11: p00506 | F11: e.g Tropical pastures into temperate zone | H11: Medium | I11: 2019/20 | J11: 10 | K11: 0 | L11: =K11*$J11 -> 0 | M11: 1 | N11: =M11*$J11 -> 10 | O11: 1 | P11: =O11*$J11 -> 10 | Q11: 0 | R11: 1 | S11: 1 | T11: 0 | U11: 0 | V11: 1 | W11: 0 | X11: 0 | Y11: 0 | Z11: Head | AF11: 10000 | AG11: 10000 | AH11: 20000 | AI11: 30000 | AJ11: 50000 | AK11: 70000 | AL11: 100000 | AM11: 100000 | AN11: 90000 | AO11: 80000 | AP11: 70000 | AQ11: 60000 | AR11: 50000 | AS11: 50000 | AT11: 50000 | AU11: 50000 | AV11: 50000 | AW11: 50000 | AX11: 50000 | AY11: 50000
B12: 2 | C12: e.g. Beef Productivity | D12: Reproductive efficiency | E12: p00593 | F12: e.g. Calf survival/weaning productivity tools, practices and extension program | H12: High | I12: 2020/21 | J12: 10 | K12: 0 | L12: =K12*$J12 -> 0 | M12: 1 | N12: =M12*$J12 -> 10 | O12: 1 | P12: =O12*$J12 -> 10 | Q12: 0 | R12: 1 | S12: 1 | T12: 0 | U12: 0 | V12: 1 | W12: 0 | X12: 0 | Y12: 0 | Z12: Head | AF12: 20000 | AG12: 100000 | AH12: 200000 | AI12: 500000 | AJ12: 500000 | AK12: 500000 | AL12: 500000 | AM12: 600000 | AN12: 700000 | AO12: 800000 | AP12: 900000 | AQ12: 1000000 | AR12: 1100000 | AS12: 1200000 | AT12: 1300000 | AU12: 1400000 | AV12: 1500000 | AW12: 1600000 | AX12: 1700000 | AY12: 1800000 | AZ12: 1800000 | BA12: 1800000 | BB12: 1800000 | BC12: 1800000 | BD12: 1800000
B13: 3 | K13: 0 | L13: =K13*$J13 -> 0 | M13: 1 | N13: 0 | O13: 1 | P13: =O13*$J13 -> 0
B14: 4 | K14: 0 | L14: =K14*$J14 -> 0 | M14: 1 | N14: 0 | O14: 1 | P14: =O14*$J14 -> 0
B15: 5 | K15: 0 | L15: =K15*$J15 -> 0 | M15: 1 | N15: 0 | O15: 1 | P15: =O15*$J15 -> 0
B16: 6 | K16: 0 | L16: =K16*$J16 -> 0 | M16: 1 | N16: 0 | O16: 1 | P16: =O16*$J16 -> 0
B17: 7 | K17: 0 | L17: =K17*$J17 -> 0 | M17: 1 | N17: 0 | O17: 1 | P17: =O17*$J17 -> 0
B18: 8 | K18: 0 | L18: =K18*$J18 -> 0 | M18: 1 | N18: 0 | O18: 1 | P18: =O18*$J18 -> 0
B19: 9 | K19: 0 | L19: =K19*$J19 -> 0 | M19: 1 | N19: 0 | O19: 1 | P19: =O19*$J19 -> 0
B20: 10 | K20: 0 | L20: =K20*$J20 -> 0 | M20: 1 | N20: 0 | O20: 1 | P20: =O20*$J20 -> 0
B21: 11 | K21: 0 | L21: =K21*$J21 -> 0 | M21: 1 | N21: 0 | O21: 1 | P21: =O21*$J21 -> 0
B22: 12 | K22: 0 | L22: =K22*$J22 -> 0 | M22: 1 | N22: 0 | O22: 1 | P22: =O22*$J22 -> 0
B23: 13 | K23: 0 | L23: =K23*$J23 -> 0 | M23: 1 | N23: 0 | O23: 1 | P23: =O23*$J23 -> 0
B24: 14 | K24: 0 | L24: =K24*$J24 -> 0 | M24: 1 | N24: 0 | O24: 1 | P24: =O24*$J24 -> 0
B25: 15 | K25: 0 | L25: =K25*$J25 -> 0 | M25: 1 | N25: 0 | O25: 1 | P25: =O25*$J25 -> 0
B26: 16 | K26: 0 | L26: =K26*$J26 -> 0 | M26: 1 | N26: 0 | O26: 1 | P26: =O26*$J26 -> 0
B27: 17 | K27: 0 | L27: =K27*$J27 -> 0 | M27: 1 | N27: 0 | O27: 1 | P27: =O27*$J27 -> 0
B28: 18 | K28: 0 | L28: =K28*$J28 -> 0 | M28: 1 | N28: 0 | O28: 1 | P28: =O28*$J28 -> 0
B29: 19 | K29: 0 | L29: =K29*$J29 -> 0 | M29: 1 | N29: 0 | O29: 1 | P29: =O29*$J29 -> 0
B30: 20 | K30: 0 | L30: =K30*$J30 -> 0 | M30: 1 | N30: 0 | O30: 1 | P30: =O30*$J30 -> 0
B31: 21 | K31: 0 | L31: =K31*$J31 -> 0 | M31: 1 | N31: 0 | O31: 1 | P31: =O31*$J31 -> 0
B32: 22 | K32: 0 | L32: =K32*$J32 -> 0 | M32: 1 | N32: 0 | O32: 1 | P32: =O32*$J32 -> 0
B33: 23 | K33: 0 | L33: =K33*$J33 -> 0 | M33: 1 | N33: 0 | O33: 1 | P33: =O33*$J33 -> 0
B34: 24 | K34: 0 | L34: =K34*$J34 -> 0 | M34: 1 | N34: 0 | O34: 1 | P34: =O34*$J34 -> 0
B35: 25 | K35: 0 | L35: =K35*$J35 -> 0 | M35: 1 | N35: 0 | O35: 1 | P35: =O35*$J35 -> 0
B36: 26 | K36: 0 | L36: =K36*$J36 -> 0 | M36: 1 | N36: 0 | O36: 1 | P36: =O36*$J36 -> 0
B37: 27 | K37: 0 | L37: =K37*$J37 -> 0 | M37: 1 | N37: 0 | O37: 1 | P37: =O37*$J37 -> 0
B38: 28 | K38: 0 | L38: =K38*$J38 -> 0 | M38: 1 | N38: 0 | O38: 1 | P38: =O38*$J38 -> 0
B39: 29 | K39: 0 | L39: =K39*$J39 -> 0 | M39: 1 | N39: 0 | O39: 1 | P39: =O39*$J39 -> 0
B40: 30 | K40: 0 | L40: =K40*$J40 -> 0 | M40: 1 | N40: 0 | O40: 1 | P40: =O40*$J40 -> 0
B41: 31 | K41: 0 | L41: =K41*$J41 -> 0 | M41: 1 | N41: 0 | O41: 1 | P41: =O41*$J41 -> 0
B42: 32 | K42: 0 | L42: =K42*$J42 -> 0 | M42: 1 | N42: 0 | O42: 1 | P42: =O42*$J42 -> 0
B43: 33 | K43: 0 | L43: =K43*$J43 -> 0 | M43: 1 | N43: 0 | O43: 1 | P43: =O43*$J43 -> 0
B44: 34 | K44: 0 | L44: =K44*$J44 -> 0 | M44: 1 | N44: 0 | O44: 1 | P44: =O44*$J44 -> 0
B45: 35 | K45: 0 | L45: =K45*$J45 -> 0 | M45: 1 | N45: 0 | O45: 1 | P45: =O45*$J45 -> 0
B46: 36 | K46: 0 | L46: =K46*$J46 -> 0 | M46: 1 | N46: 0 | O46: 1 | P46: =O46*$J46 -> 0
B47: 37 | K47: 0 | L47: =K47*$J47 -> 0 | M47: 1 | N47: 0 | O47: 1 | P47: =O47*$J47 -> 0
B48: 38 | K48: 0 | L48: =K48*$J48 -> 0 | M48: 1 | N48: 0 | O48: 1 | P48: =O48*$J48 -> 0
B49: 39 | K49: 0 | L49: =K49*$J49 -> 0 | M49: 1 | N49: 0 | O49: 1 | P49: =O49*$J49 -> 0
B50: 40 | K50: 0 | L50: =K50*$J50 -> 0 | M50: 1 | N50: 0 | O50: 1 | P50: =O50*$J50 -> 0
B51: 41 | K51: 0 | L51: =K51*$J51 -> 0 | M51: 1 | N51: 0 | O51: 1 | P51: =O51*$J51 -> 0
B52: 42 | K52: 0 | L52: =K52*$J52 -> 0 | M52: 1 | N52: 0 | O52: 1 | P52: =O52*$J52 -> 0
B53: 43 | K53: 0 | L53: =K53*$J53 -> 0 | M53: 1 | N53: 0 | O53: 1 | P53: =O53*$J53 -> 0
B54: 44 | K54: 0 | L54: =K54*$J54 -> 0 | M54: 1 | N54: 0 | O54: 1 | P54: =O54*$J54 -> 0
B55: 45 | K55: 0 | L55: =K55*$J55 -> 0 | M55: 1 | N55: 0 | O55: 1 | P55: =O55*$J55 -> 0
B56: 46 | K56: 0 | L56: =K56*$J56 -> 0 | M56: 1 | N56: 0 | O56: 1 | P56: 0
R84: Base Year
C85: 2015-20 totals
C86: TOTAL (pre CPI/NPV) | D86: =SUM('Net benefits $m by product'!#REF!) -> 
C87: TOTAL (post CPI) | D87: =SUM('Net benefits $m by product'!#REF!) -> 
C88: TOTAL (post CPU/NPV 5%) | D88: =SUM('Net benefits $m by product'!#REF!) -> 
C90: 2020-40 totals
C91: TOTAL (pre CPI/NPV) | D91: =SUM('Net benefits $m by product'!#REF!) -> 
C92: TOTAL (post CPI) | D92: =SUM('Net benefits $m by product'!#REF!) -> 
C93: TOTAL (post NPV 5%) | D93: =SUM('Net benefits $m by product'!#REF!) -> 

Sheet Net benefits $m by product
A1: H
B2: Time series of net benefits from investments
C3: Time period | D3: ='Product benefit & adoption'!G4 -> ALL
B4: Item | C4: Product Category | D4: Product (value proposition, extension program etc) | E4: ="SUM Period (non PV):"&" "&TEXT('Product benefit & adoption'!$G$4,2) -> SUM Period (non PV): ALL | F4: 2015-16 | G4: 2016-17 | H4: 2017-18 | I4: 2018-19 | J4: 2019-20 | K4: 2020-21 | L4: 2021-22 | M4: 2022-23 | N4: 2023-24 | O4: 2024-25 | P4: 2025-26 | Q4: 2026-27 | R4: 2027-28 | S4: 2028-29 | T4: 2029-30 | U4: 2030-31 | V4: 2031-32 | W4: 2032-33 | X4: 2033-34 | Y4: 2034-35 | Z4: 2035-36 | AA4: 2036-37 | AB4: 2037-38 | AC4: 2038-39 | AD4: 2039-40 | AE4: 2040-41 | AF4: 2041-42 | AG4: 2042-43 | AH4: 2043-44 | AI4: 2044-45
E5: $m | F5: $m | G5: $m | H5: $m | I5: $m | J5: $m | K5: $m | L5: $m | M5: $m | N5: $m | O5: $m | P5: $m | Q5: $m | R5: $m | S5: $m | T5: $m | U5: $m | V5: $m | W5: $m | X5: $m | Y5: $m | Z5: $m | AA5: $m | AB5: $m | AC5: $m | AD5: $m | AE5: $m | AF5: $m | AG5: $m | AH5: $m | AI5: $m
B6: 1 | C6: =IF('Product benefit & adoption'!D11="","",'Product benefit & adoption'!D11) -> Pasture variety | D6: =IF('Product benefit & adoption'!F11="","",'Product benefit & adoption'!F11) -> e.g Tropical pastures into temperate zone | E6: =_xlfn.IFS('Product benefit & adoption'!$G$4="ALL",SUM(F6:AI6),'Product benefit & adoption'!$G$4="2020-25",SUM(K6:AI6),'Product benefit & adoption'!$G$4="2015-20",SUM(F6:AD6)) -> 10.9 | F6: =_xlfn.IFS('Product benefit & adoption'!$G$4="ALL",'Product benefit & adoption'!AA11*'Product benefit & adoption'!$P11/1000000,'Product benefit & adoption'!$G$4="2020-25",'Product benefit & adoption'!AA11*'Product benefit & adoption'!$N11/1000000,'Product benefit & adoption'!$G$4="2015-20",'Product benefit & adoption'!AA11*'Product benefit & adoption'!$L11/1000000) -> 0 | G6: =_xlfn.IFS('Product benefit & adoption'!$G$4="ALL",'Product benefit & adoption'!AB11*'Product benefit & adoption'!$P11/1000000,'Product benefit & adoption'!$G$4="2020-25",'Product benefit & adoption'!AB11*'Product benefit & adoption'!$N11/1000000,'Product benefit & adoption'!$G$4="2015-20",'Product benefit & adoption'!AB11*'Product benefit & adoption'!$L11/1000000) -> 0 | H6: =_xlfn.IFS('Product benefit & adoption'!$G$4="ALL",'Product benefit & adoption'!AC11*'Product benefit & adoption'!$P11/1000000,'Product benefit & adoption'!$G$4="2020-25",'Product benefit & adoption'!AC11*'Product benefit & adoption'!$N11/1000000,'Product benefit & adoption'!$G$4="2015-20",'Product benefit & adoption'!AC11*'Product benefit & adoption'!$L11/1000000) -> 0 | I6: =_xlfn.IFS('Product benefit & adoption'!$G$4="ALL",'Product benefit & adoption'!AD11*'Product benefit & adoption'!$P11/1000000,'Product benefit & adoption'!$G$4="2020-25",'Product benefit & adoption'!AD11*'Product benefit & adoption'!$N11/1000000,'Product benefit & adoption'!$G$4="2015-20",'Product benefit & adoption'!AD11*'Product benefit & adoption'!$L11/1000000) -> 0 | J6: =_xlfn.IFS('Product benefit & adoption'!$G$4="ALL",'Product benefit & adoption'!AE11*'Product benefit & adoption'!$P11/1000000,'Product benefit & adoption'!$G$4="2020-25",'Product benefit & adoption'!AE11*'Product benefit & adoption'!$N11/1000000,'Product benefit & adoption'!$G$4="2015-20",'Product benefit & adoption'!AE11*'Product benefit & adoption'!$L11/1000000) -> 0 | K6: =_xlfn.IFS('Product benefit & adoption'!$G$4="ALL",'Product benefit & adoption'!AF11*'Product benefit & adoption'!$P11/1000000,'Product benefit & adoption'!$G$4="2020-25",'Product benefit & adoption'!AF11*'Product benefit & adoption'!$N11/1000000,'Product benefit & adoption'!$G$4="2015-20",'Product benefit & adoption'!AF11*'Product benefit & adoption'!$L11/1000000) -> 0.1 | L6: =_xlfn.IFS('Product benefit & adoption'!$G$4="ALL",'Product benefit & adoption'!AG11*'Product benefit & adoption'!$P11/1000000,'Product benefit & adoption'!$G$4="2020-25",'Product benefit & adoption'!AG11*'Product benefit & adoption'!$N11/1000000,'Product benefit & adoption'!$G$4="2015-20",'Product benefit & adoption'!AG11*'Product benefit & adoption'!$L11/1000000) -> 0.1 | M6: =_xlfn.IFS('Product benefit & adoption'!$G$4="ALL",'Product benefit & adoption'!AH11*'Product benefit & adoption'!$P11/1000000,'Product benefit & adoption'!$G$4="2020-25",'Product benefit & adoption'!AH11*'Product benefit & adoption'!$N11/1000000,'Product benefit & adoption'!$G$4="2015-20",'Product benefit & adoption'!AH11*'Product benefit & adoption'!$L11/1000000) -> 0.2 | N6: =_xlfn.IFS('Product benefit & adoption'!$G$4="ALL",'Product benefit & adoption'!AI11*'Product benefit & adoption'!$P11/1000000,'Product benefit & adoption'!$G$4="2020-25",'Product benefit & adoption'!AI11*'Product benefit & adoption'!$N11/1000000,'Product benefit & adoption'!$G$4="2015-20",'Product benefit & adoption'!AI11*'Product benefit & adoption'!$L11/1000000) -> 0.3 | O6: =_xlfn.IFS('Product benefit & adoption'!$G$4="ALL",'Product benefit & adoption'!AJ11*'Product benefit & adoption'!$P11/1000000,'Product benefit & adoption'!$G$4="2020-25",'Product benefit & adoption'!AJ11*'Product benefit & adoption'!$N11/1000000,'Product benefit & adoption'!$G$4="2015-20",'Product benefit & adoption'!AJ11*'Product benefit & adoption'!$L11/1000000) -> 0.5 | P6: =_xlfn.IFS('Product benefit & adoption'!$G$4="ALL",'Product benefit & adoption'!AK11*'Product benefit & adoption'!$P11/1000000,'Product benefit & adoption'!$G$4="2020-25",'Product benefit & adoption'!AK11*'Product benefit & adoption'!$N11/1000000,'Product benefit & adoption'!$G$4="2015-20",'Product benefit & adoption'!AK11*'Product benefit & adoption'!$L11/1000000) -> 0.7 | Q6: =_xlfn.IFS('Product benefit & adoption'!$G$4="ALL",'Product benefit & adoption'!AL11*'Product benefit & adoption'!$P11/1000000,'Product benefit & adoption'!$G$4="2020-25",'Product benefit & adoption'!AL11*'Product benefit & adoption'!$N11/1000000,'Product benefit & adoption'!$G$4="2015-20",'Product benefit & adoption'!AL11*'Product benefit & adoption'!$L11/1000000) -> 1 | R6: =_xlfn.IFS('Product benefit & adoption'!$G$4="ALL",'Product benefit & adoption'!AM11*'Product benefit & adoption'!$P11/1000000,'Product benefit & adoption'!$G$4="2020-25",'Product benefit & adoption'!AM11*'Product benefit & adoption'!$N11/1000000,'Product benefit & adoption'!$G$4="2015-20",'Product benefit & adoption'!AM11*'Product benefit & adoption'!$L11/1000000) -> 1 | S6: =_xlfn.IFS('Product benefit & adoption'!$G$4="ALL",'Product benefit & adoption'!AN11*'Product benefit & adoption'!$P11/1000000,'Product benefit & adoption'!$G$4="2020-25",'Product benefit & adoption'!AN11*'Product benefit & adoption'!$N11/1000000,'Product benefit & adoption'!$G$4="2015-20",'Product benefit & adoption'!AN11*'Product benefit & adoption'!$L11/1000000) -> 0.9 | T6: =_xlfn.IFS('Product benefit & adoption'!$G$4="ALL",'Product benefit & adoption'!AO11*'Product benefit & adoption'!$P11/1000000,'Product benefit & adoption'!$G$4="2020-25",'Product benefit & adoption'!AO11*'Product benefit & adoption'!$N11/1000000,'Product benefit & adoption'!$G$4="2015-20",'Product benefit & adoption'!AO11*'Product benefit & adoption'!$L11/1000000) -> 0.8 | U6: =_xlfn.IFS('Product benefit & adoption'!$G$4="ALL",'Product benefit & adoption'!AP11*'Product benefit & adoption'!$P11/1000000,'Product benefit & adoption'!$G$4="2020-25",'Product benefit & adoption'!AP11*'Product benefit & adoption'!$N11/1000000,'Product benefit & adoption'!$G$4="2015-20",'Product benefit & adoption'!AP11*'Product benefit & adoption'!$L11/1000000) -> 0.7 | V6: =_xlfn.IFS('Product benefit & adoption'!$G$4="ALL",'Product benefit & adoption'!AQ11*'Product benefit & adoption'!$P11/1000000,'Product benefit & adoption'!$G$4="2020-25",'Product benefit & adoption'!AQ11*'Product benefit & adoption'!$N11/1000000,'Product benefit & adoption'!$G$4="2015-20",'Product benefit & adoption'!AQ11*'Product benefit & adoption'!$L11/1000000) -> 0.6 | W6: =_xlfn.IFS('Product benefit & adoption'!$G$4="ALL",'Product benefit & adoption'!AR11*'Product benefit & adoption'!$P11/1000000,'Product benefit & adoption'!$G$4="2020-25",'Product benefit & adoption'!AR11*'Product benefit & adoption'!$N11/1000000,'Product benefit & adoption'!$G$4="2015-20",'Product benefit & adoption'!AR11*'Product benefit & adoption'!$L11/1000000) -> 0.5 | X6: =_xlfn.IFS('Product benefit & adoption'!$G$4="ALL",'Product benefit & adoption'!AS11*'Product benefit & adoption'!$P11/1000000,'Product benefit & adoption'!$G$4="2020-25",'Product benefit & adoption'!AS11*'Product benefit & adoption'!$N11/1000000,'Product benefit & adoption'!$G$4="2015-20",'Product benefit & adoption'!AS11*'Product benefit & adoption'!$L11/1000000) -> 0.5 | Y6: =_xlfn.IFS('Product benefit & adoption'!$G$4="ALL",'Product benefit & adoption'!AT11*'Product benefit & adoption'!$P11/1000000,'Product benefit & adoption'!$G$4="2020-25",'Product benefit & adoption'!AT11*'Product benefit & adoption'!$N11/1000000,'Product benefit & adoption'!$G$4="2015-20",'Product benefit & adoption'!AT11*'Product benefit & adoption'!$L11/1000000) -> 0.5 | Z6: =_xlfn.IFS('Product benefit & adoption'!$G$4="ALL",'Product benefit & adoption'!AU11*'Product benefit & adoption'!$P11/1000000,'Product benefit & adoption'!$G$4="2020-25",'Product benefit & adoption'!AU11*'Product benefit & adoption'!$N11/1000000,'Product benefit & adoption'!$G$4="2015-20",'Product benefit & adoption'!AU11*'Product benefit & adoption'!$L11/1000000) -> 0.5 | AA6: =_xlfn.IFS('Product benefit & adoption'!$G$4="ALL",'Product benefit & adoption'!AV11*'Product benefit & adoption'!$P11/1000000,'Product benefit & adoption'!$G$4="2020-25",'Product benefit & adoption'!AV11*'Product benefit & adoption'!$N11/1000000,'Product benefit & adoption'!$G$4="2015-20",'Product benefit & adoption'!AV11*'Product benefit & adoption'!$L11/1000000) -> 0.5 | AB6: =_xlfn.IFS('Product benefit & adoption'!$G$4="ALL",'Product benefit & adoption'!AW11*'Product benefit & adoption'!$P11/1000000,'Product benefit & adoption'!$G$4="2020-25",'Product benefit & adoption'!AW11*'Product benefit & adoption'!$N11/1000000,'Product benefit & adoption'!$G$4="2015-20",'Product benefit & adoption'!AW11*'Product benefit & adoption'!$L11/1000000) -> 0.5 | AC6: =_xlfn.IFS('Product benefit & adoption'!$G$4="ALL",'Product benefit & adoption'!AX11*'Product benefit & adoption'!$P11/1000000,'Product benefit & adoption'!$G$4="2020-25",'Product benefit & adoption'!AX11*'Product benefit & adoption'!$N11/1000000,'Product benefit & adoption'!$G$4="2015-20",'Product benefit & adoption'!AX11*'Product benefit & adoption'!$L11/1000000) -> 0.5 | AD6: =_xlfn.IFS('Product benefit & adoption'!$G$4="ALL",'Product benefit & adoption'!AY11*'Product benefit & adoption'!$P11/1000000,'Product benefit & adoption'!$G$4="2020-25",'Product benefit & adoption'!AY11*'Product benefit & adoption'!$N11/1000000,'Product benefit & adoption'!$G$4="2015-20",'Product benefit & adoption'!AY11*'Product benefit & adoption'!$L11/1000000) -> 0.5 | AE6: =_xlfn.IFS('Product benefit & adoption'!$G$4="ALL",'Product benefit & adoption'!AZ11*'Product benefit & adoption'!$P11/1000000,'Product benefit & adoption'!$G$4="2020-25",'Product benefit & adoption'!AZ11*'Product benefit & adoption'!$N11/1000000,'Product benefit & adoption'!$G$4="2015-20",'Product benefit & adoption'!AZ11*'Product benefit & adoption'!$L11/1000000) -> 0 | AF6: =_xlfn.IFS('Product benefit & adoption'!$G$4="ALL",'Product benefit & adoption'!BA11*'Product benefit & adoption'!$P11/1000000,'Product benefit & adoption'!$G$4="2020-25",'Product benefit & adoption'!BA11*'Product benefit & adoption'!$N11/1000000,'Product benefit & adoption'!$G$4="2015-20",'Product benefit & adoption'!BA11*'Product benefit & adoption'!$L11/1000000) -> 0 | AG6: =_xlfn.IFS('Product benefit & adoption'!$G$4="ALL",'Product benefit & adoption'!BB11*'Product benefit & adoption'!$P11/1000000,'Product benefit & adoption'!$G$4="2020-25",'Product benefit & adoption'!BB11*'Product benefit & adoption'!$N11/1000000,'Product benefit & adoption'!$G$4="2015-20",'Product benefit & adoption'!BB11*'Product benefit & adoption'!$L11/1000000) -> 0 | AH6: =_xlfn.IFS('Product benefit & adoption'!$G$4="ALL",'Product benefit & adoption'!BC11*'Product benefit & adoption'!$P11/1000000,'Product benefit & adoption'!$G$4="2020-25",'Product benefit & adoption'!BC11*'Product benefit & adoption'!$N11/1000000,'Product benefit & adoption'!$G$4="2015-20",'Product benefit & adoption'!BC11*'Product benefit & adoption'!$L11/1000000) -> 0 | AI6: =_xlfn.IFS('Product benefit & adoption'!$G$4="ALL",'Product benefit & adoption'!BD11*'Product benefit & adoption'!$P11/1000000,'Product benefit & adoption'!$G$4="2020-25",'Product benefit & adoption'!BD11*'Product benefit & adoption'!$N11/1000000,'Product benefit & adoption'!$G$4="2015-20",'Product benefit & adoption'!BD11*'Product benefit & adoption'!$L11/1000000) -> 0
B7: 2 | C7: =IF('Product benefit & adoption'!D12="","",'Product benefit & adoption'!D12) -> Reproductive efficiency | D7: =IF('Product benefit & adoption'!F12="","",'Product benefit & adoption'!F12) -> e.g. Calf survival/weaning productivity tools, practices and extension program | E7: =_xlfn.IFS('Product benefit & adoption'!$G$4="ALL",SUM(F7:AI7),'Product benefit & adoption'!$G$4="2020-25",SUM(K7:AI7),'Product benefit & adoption'!$G$4="2015-20",SUM(F7:AD7)) -> 269.2 | F7: =_xlfn.IFS('Product benefit & adoption'!$G$4="ALL",'Product benefit & adoption'!AA12*'Product benefit & adoption'!$P12/1000000,'Product benefit & adoption'!$G$4="2020-25",'Product benefit & adoption'!AA12*'Product benefit & adoption'!$N12/1000000,'Product benefit & adoption'!$G$4="2015-20",'Product benefit & adoption'!AA12*'Product benefit & adoption'!$L12/1000000) -> 0 | G7: =_xlfn.IFS('Product benefit & adoption'!$G$4="ALL",'Product benefit & adoption'!AB12*'Product benefit & adoption'!$P12/1000000,'Product benefit & adoption'!$G$4="2020-25",'Product benefit & adoption'!AB12*'Product benefit & adoption'!$N12/1000000,'Product benefit & adoption'!$G$4="2015-20",'Product benefit & adoption'!AB12*'Product benefit & adoption'!$L12/1000000) -> 0 | H7: =_xlfn.IFS('Product benefit & adoption'!$G$4="ALL",'Product benefit & adoption'!AC12*'Product benefit & adoption'!$P12/1000000,'Product benefit & adoption'!$G$4="2020-25",'Product benefit & adoption'!AC12*'Product benefit & adoption'!$N12/1000000,'Product benefit & adoption'!$G$4="2015-20",'Product benefit & adoption'!AC12*'Product benefit & adoption'!$L12/1000000) -> 0 | I7: =_xlfn.IFS('Product benefit & adoption'!$G$4="ALL",'Product benefit & adoption'!AD12*'Product benefit & adoption'!$P12/1000000,'Product benefit & adoption'!$G$4="2020-25",'Product benefit & adoption'!AD12*'Product benefit & adoption'!$N12/1000000,'Product benefit & adoption'!$G$4="2015-20",'Product benefit & adoption'!AD12*'Product benefit & adoption'!$L12/1000000) -> 0 | J7: =_xlfn.IFS('Product benefit & adoption'!$G$4="ALL",'Product benefit & adoption'!AE12*'Product benefit & adoption'!$P12/1000000,'Product benefit & adoption'!$G$4="2020-25",'Product benefit & adoption'!AE12*'Product benefit & adoption'!$N12/1000000,'Product benefit & adoption'!$G$4="2015-20",'Product benefit & adoption'!AE12*'Product benefit & adoption'!$L12/1000000) -> 0 | K7: =_xlfn.IFS('Product benefit & adoption'!$G$4="ALL",'Product benefit & adoption'!AF12*'Product benefit & adoption'!$P12/1000000,'Product benefit & adoption'!$G$4="2020-25",'Product benefit & adoption'!AF12*'Product benefit & adoption'!$N12/1000000,'Product benefit & adoption'!$G$4="2015-20",'Product benefit & adoption'!AF12*'Product benefit & adoption'!$L12/1000000) -> 0.2 | L7: =_xlfn.IFS('Product benefit & adoption'!$G$4="ALL",'Product benefit & adoption'!AG12*'Product benefit & adoption'!$P12/1000000,'Product benefit & adoption'!$G$4="2020-25",'Product benefit & adoption'!AG12*'Product benefit & adoption'!$N12/1000000,'Product benefit & adoption'!$G$4="2015-20",'Product benefit & adoption'!AG12*'Product benefit & adoption'!$L12/1000000) -> 1 | M7: =_xlfn.IFS('Product benefit & adoption'!$G$4="ALL",'Product benefit & adoption'!AH12*'Product benefit & adoption'!$P12/1000000,'Product benefit & adoption'!$G$4="2020-25",'Product benefit & adoption'!AH12*'Product benefit & adoption'!$N12/1000000,'Product benefit & adoption'!$G$4="2015-20",'Product benefit & adoption'!AH12*'Product benefit & adoption'!$L12/1000000) -> 2 | N7: =_xlfn.IFS('Product benefit & adoption'!$G$4="ALL",'Product benefit & adoption'!AI12*'Product benefit & adoption'!$P12/1000000,'Product benefit & adoption'!$G$4="2020-25",'Product benefit & adoption'!AI12*'Product benefit & adoption'!$N12/1000000,'Product benefit & adoption'!$G$4="2015-20",'Product benefit & adoption'!AI12*'Product benefit & adoption'!$L12/1000000) -> 5 | O7: =_xlfn.IFS('Product benefit & adoption'!$G$4="ALL",'Product benefit & adoption'!AJ12*'Product benefit & adoption'!$P12/1000000,'Product benefit & adoption'!$G$4="2020-25",'Product benefit & adoption'!AJ12*'Product benefit & adoption'!$N12/1000000,'Product benefit & adoption'!$G$4="2015-20",'Product benefit & adoption'!AJ12*'Product benefit & adoption'!$L12/1000000) -> 5 | P7: =_xlfn.IFS('Product benefit & adoption'!$G$4="ALL",'Product benefit & adoption'!AK12*'Product benefit & adoption'!$P12/1000000,'Product benefit & adoption'!$G$4="2020-25",'Product benefit & adoption'!AK12*'Product benefit & adoption'!$N12/1000000,'Product benefit & adoption'!$G$4="2015-20",'Product benefit & adoption'!AK12*'Product benefit & adoption'!$L12/1000000) -> 5 | Q7: =_xlfn.IFS('Product benefit & adoption'!$G$4="ALL",'Product benefit & adoption'!AL12*'Product benefit & adoption'!$P12/1000000,'Product benefit & adoption'!$G$4="2020-25",'Product benefit & adoption'!AL12*'Product benefit & adoption'!$N12/1000000,'Product benefit & adoption'!$G$4="2015-20",'Product benefit & adoption'!AL12*'Product benefit & adoption'!$L12/1000000) -> 5 | R7: =_xlfn.IFS('Product benefit & adoption'!$G$4="ALL",'Product benefit & adoption'!AM12*'Product benefit & adoption'!$P12/1000000,'Product benefit & adoption'!$G$4="2020-25",'Product benefit & adoption'!AM12*'Product benefit & adoption'!$N12/1000000,'Product benefit & adoption'!$G$4="2015-20",'Product benefit & adoption'!AM12*'Product benefit & adoption'!$L12/1000000) -> 6 | S7: =_xlfn.IFS('Product benefit & adoption'!$G$4="ALL",'Product benefit & adoption'!AN12*'Product benefit & adoption'!$P12/1000000,'Product benefit & adoption'!$G$4="2020-25",'Product benefit & adoption'!AN12*'Product benefit & adoption'!$N12/1000000,'Product benefit & adoption'!$G$4="2015-20",'Product benefit & adoption'!AN12*'Product benefit & adoption'!$L12/1000000) -> 7 | T7: =_xlfn.IFS('Product benefit & adoption'!$G$4="ALL",'Product benefit & adoption'!AO12*'Product benefit & adoption'!$P12/1000000,'Product benefit & adoption'!$G$4="2020-25",'Product benefit & adoption'!AO12*'Product benefit & adoption'!$N12/1000000,'Product benefit & adoption'!$G$4="2015-20",'Product benefit & adoption'!AO12*'Product benefit & adoption'!$L12/1000000) -> 8 | U7: =_xlfn.IFS('Product benefit & adoption'!$G$4="ALL",'Product benefit & adoption'!AP12*'Product benefit & adoption'!$P12/1000000,'Product benefit & adoption'!$G$4="2020-25",'Product benefit & adoption'!AP12*'Product benefit & adoption'!$N12/1000000,'Product benefit & adoption'!$G$4="2015-20",'Product benefit & adoption'!AP12*'Product benefit & adoption'!$L12/1000000) -> 9 | V7: =_xlfn.IFS('Product benefit & adoption'!$G$4="ALL",'Product benefit & adoption'!AQ12*'Product benefit & adoption'!$P12/1000000,'Product benefit & adoption'!$G$4="2020-25",'Product benefit & adoption'!AQ12*'Product benefit & adoption'!$N12/1000000,'Product benefit & adoption'!$G$4="2015-20",'Product benefit & adoption'!AQ12*'Product benefit & adoption'!$L12/1000000) -> 10 | W7: =_xlfn.IFS('Product benefit & adoption'!$G$4="ALL",'Product benefit & adoption'!AR12*'Product benefit & adoption'!$P12/1000000,'Product benefit & adoption'!$G$4="2020-25",'Product benefit & adoption'!AR12*'Product benefit & adoption'!$N12/1000000,'Product benefit & adoption'!$G$4="2015-20",'Product benefit & adoption'!AR12*'Product benefit & adoption'!$L12/1000000) -> 11 | X7: =_xlfn.IFS('Product benefit & adoption'!$G$4="ALL",'Product benefit & adoption'!AS12*'Product benefit & adoption'!$P12/1000000,'Product benefit & adoption'!$G$4="2020-25",'Product benefit & adoption'!AS12*'Product benefit & adoption'!$N12/1000000,'Product benefit & adoption'!$G$4="2015-20",'Product benefit & adoption'!AS12*'Product benefit & adoption'!$L12/1000000) -> 12 | Y7: =_xlfn.IFS('Product benefit & adoption'!$G$4="ALL",'Product benefit & adoption'!AT12*'Product benefit & adoption'!$P12/1000000,'Product benefit & adoption'!$G$4="2020-25",'Product benefit & adoption'!AT12*'Product benefit & adoption'!$N12/1000000,'Product benefit & adoption'!$G$4="2015-20",'Product benefit & adoption'!AT12*'Product benefit & adoption'!$L12/1000000) -> 13 | Z7: =_xlfn.IFS('Product benefit & adoption'!$G$4="ALL",'Product benefit & adoption'!AU12*'Product benefit & adoption'!$P12/1000000,'Product benefit & adoption'!$G$4="2020-25",'Product benefit & adoption'!AU12*'Product benefit & adoption'!$N12/1000000,'Product benefit & adoption'!$G$4="2015-20",'Product benefit & adoption'!AU12*'Product benefit & adoption'!$L12/1000000) -> 14 | AA7: =_xlfn.IFS('Product benefit & adoption'!$G$4="ALL",'Product benefit & adoption'!AV12*'Product benefit & adoption'!$P12/1000000,'Product benefit & adoption'!$G$4="2020-25",'Product benefit & adoption'!AV12*'Product benefit & adoption'!$N12/1000000,'Product benefit & adoption'!$G$4="2015-20",'Product benefit & adoption'!AV12*'Product benefit & adoption'!$L12/1000000) -> 15 | AB7: =_xlfn.IFS('Product benefit & adoption'!$G$4="ALL",'Product benefit & adoption'!AW12*'Product benefit & adoption'!$P12/1000000,'Product benefit & adoption'!$G$4="2020-25",'Product benefit & adoption'!AW12*'Product benefit & adoption'!$N12/1000000,'Product benefit & adoption'!$G$4="2015-20",'Product benefit & adoption'!AW12*'Product benefit & adoption'!$L12/1000000) -> 16 | AC7: =_xlfn.IFS('Product benefit & adoption'!$G$4="ALL",'Product benefit & adoption'!AX12*'Product benefit & adoption'!$P12/1000000,'Product benefit & adoption'!$G$4="2020-25",'Product benefit & adoption'!AX12*'Product benefit & adoption'!$N12/1000000,'Product benefit & adoption'!$G$4="2015-20",'Product benefit & adoption'!AX12*'Product benefit & adoption'!$L12/1000000) -> 17 | AD7: =_xlfn.IFS('Product benefit & adoption'!$G$4="ALL",'Product benefit & adoption'!AY12*'Product benefit & adoption'!$P12/1000000,'Product benefit & adoption'!$G$4="2020-25",'Product benefit & adoption'!AY12*'Product benefit & adoption'!$N12/1000000,'Product benefit & adoption'!$G$4="2015-20",'Product benefit & adoption'!AY12*'Product benefit & adoption'!$L12/1000000) -> 18 | AE7: =_xlfn.IFS('Product benefit & adoption'!$G$4="ALL",'Product benefit & adoption'!AZ12*'Product benefit & adoption'!$P12/1000000,'Product benefit & adoption'!$G$4="2020-25",'Product benefit & adoption'!AZ12*'Product benefit & adoption'!$N12/1000000,'Product benefit & adoption'!$G$4="2015-20",'Product benefit & adoption'!AZ12*'Product benefit & adoption'!$L12/1000000) -> 18 | AF7: =_xlfn.IFS('Product benefit & adoption'!$G$4="ALL",'Product benefit & adoption'!BA12*'Product benefit & adoption'!$P12/1000000,'Product benefit & adoption'!$G$4="2020-25",'Product benefit & adoption'!BA12*'Product benefit & adoption'!$N12/1000000,'Product benefit & adoption'!$G$4="2015-20",'Product benefit & adoption'!BA12*'Product benefit & adoption'!$L12/1000000) -> 18 | AG7: =_xlfn.IFS('Product benefit & adoption'!$G$4="ALL",'Product benefit & adoption'!BB12*'Product benefit & adoption'!$P12/1000000,'Product benefit & adoption'!$G$4="2020-25",'Product benefit & adoption'!BB12*'Product benefit & adoption'!$N12/1000000,'Product benefit & adoption'!$G$4="2015-20",'Product benefit & adoption'!BB12*'Product benefit & adoption'!$L12/1000000) -> 18 | AH7: =_xlfn.IFS('Product benefit & adoption'!$G$4="ALL",'Product benefit & adoption'!BC12*'Product benefit & adoption'!$P12/1000000,'Product benefit & adoption'!$G$4="2020-25",'Product benefit & adoption'!BC12*'Product benefit & adoption'!$N12/1000000,'Product benefit & adoption'!$G$4="2015-20",'Product benefit & adoption'!BC12*'Product benefit & adoption'!$L12/1000000) -> 18 | AI7: =_xlfn.IFS('Product benefit & adoption'!$G$4="ALL",'Product benefit & adoption'!BD12*'Product benefit & adoption'!$P12/1000000,'Product benefit & adoption'!$G$4="2020-25",'Product benefit & adoption'!BD12*'Product benefit & adoption'!$N12/1000000,'Product benefit & adoption'!$G$4="2015-20",'Product benefit & adoption'!BD12*'Product benefit & adoption'!$L12/1000000) -> 18
B8: 3 | C8: =IF('Product benefit & adoption'!D13="","",'Product benefit & adoption'!D13) ->  | D8: =IF('Product benefit & adoption'!F13="","",'Product benefit & adoption'!F13) ->  | E8: =_xlfn.IFS('Product benefit & adoption'!$G$4="ALL",SUM(F8:AI8),'Product benefit & adoption'!$G$4="2020-25",SUM(K8:AI8),'Product benefit & adoption'!$G$4="2015-20",SUM(F8:AD8)) -> 0 | F8: =_xlfn.IFS('Product benefit & adoption'!$G$4="ALL",'Product benefit & adoption'!AA13*'Product benefit & adoption'!$P13/1000000,'Product benefit & adoption'!$G$4="2020-25",'Product benefit & adoption'!AA13*'Product benefit & adoption'!$N13/1000000,'Product benefit & adoption'!$G$4="2015-20",'Product benefit & adoption'!AA13*'Product benefit & adoption'!$L13/1000000) -> 0 | G8: =_xlfn.IFS('Product benefit & adoption'!$G$4="ALL",'Product benefit & adoption'!AB13*'Product benefit & adoption'!$P13/1000000,'Product benefit & adoption'!$G$4="2020-25",'Product benefit & adoption'!AB13*'Product benefit & adoption'!$N13/1000000,'Product benefit & adoption'!$G$4="2015-20",'Product benefit & adoption'!AB13*'Product benefit & adoption'!$L13/1000000) -> 0 | H8: =_xlfn.IFS('Product benefit & adoption'!$G$4="ALL",'Product benefit & adoption'!AC13*'Product benefit & adoption'!$P13/1000000,'Product benefit & adoption'!$G$4="2020-25",'Product benefit & adoption'!AC13*'Product benefit & adoption'!$N13/1000000,'Product benefit & adoption'!$G$4="2015-20",'Product benefit & adoption'!AC13*'Product benefit & adoption'!$L13/1000000) -> 0 | I8: =_xlfn.IFS('Product benefit & adoption'!$G$4="ALL",'Product benefit & adoption'!AD13*'Product benefit & adoption'!$P13/1000000,'Product benefit & adoption'!$G$4="2020-25",'Product benefit & adoption'!AD13*'Product benefit & adoption'!$N13/1000000,'Product benefit & adoption'!$G$4="2015-20",'Product benefit & adoption'!AD13*'Product benefit & adoption'!$L13/1000000) -> 0 | J8: =_xlfn.IFS('Product benefit & adoption'!$G$4="ALL",'Product benefit & adoption'!AE13*'Product benefit & adoption'!$P13/1000000,'Product benefit & adoption'!$G$4="2020-25",'Product benefit & adoption'!AE13*'Product benefit & adoption'!$N13/1000000,'Product benefit & adoption'!$G$4="2015-20",'Product benefit & adoption'!AE13*'Product benefit & adoption'!$L13/1000000) -> 0 | K8: =_xlfn.IFS('Product benefit & adoption'!$G$4="ALL",'Product benefit & adoption'!AF13*'Product benefit & adoption'!$P13/1000000,'Product benefit & adoption'!$G$4="2020-25",'Product benefit & adoption'!AF13*'Product benefit & adoption'!$N13/1000000,'Product benefit & adoption'!$G$4="2015-20",'Product benefit & adoption'!AF13*'Product benefit & adoption'!$L13/1000000) -> 0 | L8: =_xlfn.IFS('Product benefit & adoption'!$G$4="ALL",'Product benefit & adoption'!AG13*'Product benefit & adoption'!$P13/1000000,'Product benefit & adoption'!$G$4="2020-25",'Product benefit & adoption'!AG13*'Product benefit & adoption'!$N13/1000000,'Product benefit & adoption'!$G$4="2015-20",'Product benefit & adoption'!AG13*'Product benefit & adoption'!$L13/1000000) -> 0 | M8: =_xlfn.IFS('Product benefit & adoption'!$G$4="ALL",'Product benefit & adoption'!AH13*'Product benefit & adoption'!$P13/1000000,'Product benefit & adoption'!$G$4="2020-25",'Product benefit & adoption'!AH13*'Product benefit & adoption'!$N13/1000000,'Product benefit & adoption'!$G$4="2015-20",'Product benefit & adoption'!AH13*'Product benefit & adoption'!$L13/1000000) -> 0 | N8: =_xlfn.IFS('Product benefit & adoption'!$G$4="ALL",'Product benefit & adoption'!AI13*'Product benefit & adoption'!$P13/1000000,'Product benefit & adoption'!$G$4="2020-25",'Product benefit & adoption'!AI13*'Product benefit & adoption'!$N13/1000000,'Product benefit & adoption'!$G$4="2015-20",'Product benefit & adoption'!AI13*'Product benefit & adoption'!$L13/1000000) -> 0 | O8: =_xlfn.IFS('Product benefit & adoption'!$G$4="ALL",'Product benefit & adoption'!AJ13*'Product benefit & adoption'!$P13/1000000,'Product benefit & adoption'!$G$4="2020-25",'Product benefit & adoption'!AJ13*'Product benefit & adoption'!$N13/1000000,'Product benefit & adoption'!$G$4="2015-20",'Product benefit & adoption'!AJ13*'Product benefit & adoption'!$L13/1000000) -> 0 | P8: =_xlfn.IFS('Product benefit & adoption'!$G$4="ALL",'Product benefit & adoption'!AK13*'Product benefit & adoption'!$P13/1000000,'Product benefit & adoption'!$G$4="2020-25",'Product benefit & adoption'!AK13*'Product benefit & adoption'!$N13/1000000,'Product benefit & adoption'!$G$4="2015-20",'Product benefit & adoption'!AK13*'Product benefit & adoption'!$L13/1000000) -> 0 | Q8: =_xlfn.IFS('Product benefit & adoption'!$G$4="ALL",'Product benefit & adoption'!AL13*'Product benefit & adoption'!$P13/1000000,'Product benefit & adoption'!$G$4="2020-25",'Product benefit & adoption'!AL13*'Product benefit & adoption'!$N13/1000000,'Product benefit & adoption'!$G$4="2015-20",'Product benefit & adoption'!AL13*'Product benefit & adoption'!$L13/1000000) -> 0 | R8: =_xlfn.IFS('Product benefit & adoption'!$G$4="ALL",'Product benefit & adoption'!AM13*'Product benefit & adoption'!$P13/1000000,'Product benefit & adoption'!$G$4="2020-25",'Product benefit & adoption'!AM13*'Product benefit & adoption'!$N13/1000000,'Product benefit & adoption'!$G$4="2015-20",'Product benefit & adoption'!AM13*'Product benefit & adoption'!$L13/1000000) -> 0 | S8: =_xlfn.IFS('Product benefit & adoption'!$G$4="ALL",'Product benefit & adoption'!AN13*'Product benefit & adoption'!$P13/1000000,'Product benefit & adoption'!$G$4="2020-25",'Product benefit & adoption'!AN13*'Product benefit & adoption'!$N13/1000000,'Product benefit & adoption'!$G$4="2015-20",'Product benefit & adoption'!AN13*'Product benefit & adoption'!$L13/1000000) -> 0 | T8: =_xlfn.IFS('Product benefit & adoption'!$G$4="ALL",'Product benefit & adoption'!AO13*'Product benefit & adoption'!$P13/1000000,'Product benefit & adoption'!$G$4="2020-25",'Product benefit & adoption'!AO13*'Product benefit & adoption'!$N13/1000000,'Product benefit & adoption'!$G$4="2015-20",'Product benefit & adoption'!AO13*'Product benefit & adoption'!$L13/1000000) -> 0 | U8: =_xlfn.IFS('Product benefit & adoption'!$G$4="ALL",'Product benefit & adoption'!AP13*'Product benefit & adoption'!$P13/1000000,'Product benefit & adoption'!$G$4="2020-25",'Product benefit & adoption'!AP13*'Product benefit & adoption'!$N13/1000000,'Product benefit & adoption'!$G$4="2015-20",'Product benefit & adoption'!AP13*'Product benefit & adoption'!$L13/1000000) -> 0 | V8: =_xlfn.IFS('Product benefit & adoption'!$G$4="ALL",'Product benefit & adoption'!AQ13*'Product benefit & adoption'!$P13/1000000,'Product benefit & adoption'!$G$4="2020-25",'Product benefit & adoption'!AQ13*'Product benefit & adoption'!$N13/1000000,'Product benefit & adoption'!$G$4="2015-20",'Product benefit & adoption'!AQ13*'Product benefit & adoption'!$L13/1000000) -> 0 | W8: =_xlfn.IFS('Product benefit & adoption'!$G$4="ALL",'Product benefit & adoption'!AR13*'Product benefit & adoption'!$P13/1000000,'Product benefit & adoption'!$G$4="2020-25",'Product benefit & adoption'!AR13*'Product benefit & adoption'!$N13/1000000,'Product benefit & adoption'!$G$4="2015-20",'Product benefit & adoption'!AR13*'Product benefit & adoption'!$L13/1000000) -> 0 | X8: =_xlfn.IFS('Product benefit & adoption'!$G$4="ALL",'Product benefit & adoption'!AS13*'Product benefit & adoption'!$P13/1000000,'Product benefit & adoption'!$G$4="2020-25",'Product benefit & adoption'!AS13*'Product benefit & adoption'!$N13/1000000,'Product benefit & adoption'!$G$4="2015-20",'Product benefit & adoption'!AS13*'Product benefit & adoption'!$L13/1000000) -> 0 | Y8: =_xlfn.IFS('Product benefit & adoption'!$G$4="ALL",'Product benefit & adoption'!AT13*'Product benefit & adoption'!$P13/1000000,'Product benefit & adoption'!$G$4="2020-25",'Product benefit & adoption'!AT13*'Product benefit & adoption'!$N13/1000000,'Product benefit & adoption'!$G$4="2015-20",'Product benefit & adoption'!AT13*'Product benefit & adoption'!$L13/1000000) -> 0 | Z8: =_xlfn.IFS('Product benefit & adoption'!$G$4="ALL",'Product benefit & adoption'!AU13*'Product benefit & adoption'!$P13/1000000,'Product benefit & adoption'!$G$4="2020-25",'Product benefit & adoption'!AU13*'Product benefit & adoption'!$N13/1000000,'Product benefit & adoption'!$G$4="2015-20",'Product benefit & adoption'!AU13*'Product benefit & adoption'!$L13/1000000) -> 0 | AA8: =_xlfn.IFS('Product benefit & adoption'!$G$4="ALL",'Product benefit & adoption'!AV13*'Product benefit & adoption'!$P13/1000000,'Product benefit & adoption'!$G$4="2020-25",'Product benefit & adoption'!AV13*'Product benefit & adoption'!$N13/1000000,'Product benefit & adoption'!$G$4="2015-20",'Product benefit & adoption'!AV13*'Product benefit & adoption'!$L13/1000000) -> 0 | AB8: =_xlfn.IFS('Product benefit & adoption'!$G$4="ALL",'Product benefit & adoption'!AW13*'Product benefit & adoption'!$P13/1000000,'Product benefit & adoption'!$G$4="2020-25",'Product benefit & adoption'!AW13*'Product benefit & adoption'!$N13/1000000,'Product benefit & adoption'!$G$4="2015-20",'Product benefit & adoption'!AW13*'Product benefit & adoption'!$L13/1000000) -> 0 | AC8: =_xlfn.IFS('Product benefit & adoption'!$G$4="ALL",'Product benefit & adoption'!AX13*'Product benefit & adoption'!$P13/1000000,'Product benefit & adoption'!$G$4="2020-25",'Product benefit & adoption'!AX13*'Product benefit & adoption'!$N13/1000000,'Product benefit & adoption'!$G$4="2015-20",'Product benefit & adoption'!AX13*'Product benefit & adoption'!$L13/1000000) -> 0 | AD8: =_xlfn.IFS('Product benefit & adoption'!$G$4="ALL",'Product benefit & adoption'!AY13*'Product benefit & adoption'!$P13/1000000,'Product benefit & adoption'!$G$4="2020-25",'Product benefit & adoption'!AY13*'Product benefit & adoption'!$N13/1000000,'Product benefit & adoption'!$G$4="2015-20",'Product benefit & adoption'!AY13*'Product benefit & adoption'!$L13/1000000) -> 0 | AE8: =_xlfn.IFS('Product benefit & adoption'!$G$4="ALL",'Product benefit & adoption'!AZ13*'Product benefit & adoption'!$P13/1000000,'Product benefit & adoption'!$G$4="2020-25",'Product benefit & adoption'!AZ13*'Product benefit & adoption'!$N13/1000000,'Product benefit & adoption'!$G$4="2015-20",'Product benefit & adoption'!AZ13*'Product benefit & adoption'!$L13/1000000) -> 0 | AF8: =_xlfn.IFS('Product benefit & adoption'!$G$4="ALL",'Product benefit & adoption'!BA13*'Product benefit & adoption'!$P13/1000000,'Product benefit & adoption'!$G$4="2020-25",'Product benefit & adoption'!BA13*'Product benefit & adoption'!$N13/1000000,'Product benefit & adoption'!$G$4="2015-20",'Product benefit & adoption'!BA13*'Product benefit & adoption'!$L13/1000000) -> 0 | AG8: =_xlfn.IFS('Product benefit & adoption'!$G$4="ALL",'Product benefit & adoption'!BB13*'Product benefit & adoption'!$P13/1000000,'Product benefit & adoption'!$G$4="2020-25",'Product benefit & adoption'!BB13*'Product benefit & adoption'!$N13/1000000,'Product benefit & adoption'!$G$4="2015-20",'Product benefit & adoption'!BB13*'Product benefit & adoption'!$L13/1000000) -> 0 | AH8: =_xlfn.IFS('Product benefit & adoption'!$G$4="ALL",'Product benefit & adoption'!BC13*'Product benefit & adoption'!$P13/1000000,'Product benefit & adoption'!$G$4="2020-25",'Product benefit & adoption'!BC13*'Product benefit & adoption'!$N13/1000000,'Product benefit & adoption'!$G$4="2015-20",'Product benefit & adoption'!BC13*'Product benefit & adoption'!$L13/1000000) -> 0 | AI8: =_xlfn.IFS('Product benefit & adoption'!$G$4="ALL",'Product benefit & adoption'!BD13*'Product benefit & adoption'!$P13/1000000,'Product benefit & adoption'!$G$4="2020-25",'Product benefit & adoption'!BD13*'Product benefit & adoption'!$N13/1000000,'Product benefit & adoption'!$G$4="2015-20",'Product benefit & adoption'!BD13*'Product benefit & adoption'!$L13/1000000) -> 0
B9: 4 | C9: =IF('Product benefit & adoption'!D14="","",'Product benefit & adoption'!D14) ->  | D9: =IF('Product benefit & adoption'!F14="","",'Product benefit & adoption'!F14) ->  | E9: =SUM(F9:AI9) -> 0 | F9: =_xlfn.IFS('Product benefit & adoption'!$G$4="ALL",'Product benefit & adoption'!AA14*'Product benefit & adoption'!$P14/1000000,'Product benefit & adoption'!$G$4="2020-25",'Product benefit & adoption'!AA14*'Product benefit & adoption'!$N14/1000000,'Product benefit & adoption'!$G$4="2015-20",'Product benefit & adoption'!AA14*'Product benefit & adoption'!$L14/1000000) -> 0 | G9: =_xlfn.IFS('Product benefit & adoption'!$G$4="ALL",'Product benefit & adoption'!AB14*'Product benefit & adoption'!$P14/1000000,'Product benefit & adoption'!$G$4="2020-25",'Product benefit & adoption'!AB14*'Product benefit & adoption'!$N14/1000000,'Product benefit & adoption'!$G$4="2015-20",'Product benefit & adoption'!AB14*'Product benefit & adoption'!$L14/1000000) -> 0 | H9: =_xlfn.IFS('Product benefit & adoption'!$G$4="ALL",'Product benefit & adoption'!AC14*'Product benefit & adoption'!$P14/1000000,'Product benefit & adoption'!$G$4="2020-25",'Product benefit & adoption'!AC14*'Product benefit & adoption'!$N14/1000000,'Product benefit & adoption'!$G$4="2015-20",'Product benefit & adoption'!AC14*'Product benefit & adoption'!$L14/1000000) -> 0 | I9: =_xlfn.IFS('Product benefit & adoption'!$G$4="ALL",'Product benefit & adoption'!AD14*'Product benefit & adoption'!$P14/1000000,'Product benefit & adoption'!$G$4="2020-25",'Product benefit & adoption'!AD14*'Product benefit & adoption'!$N14/1000000,'Product benefit & adoption'!$G$4="2015-20",'Product benefit & adoption'!AD14*'Product benefit & adoption'!$L14/1000000) -> 0 | J9: =_xlfn.IFS('Product benefit & adoption'!$G$4="ALL",'Product benefit & adoption'!AE14*'Product benefit & adoption'!$P14/1000000,'Product benefit & adoption'!$G$4="2020-25",'Product benefit & adoption'!AE14*'Product benefit & adoption'!$N14/1000000,'Product benefit & adoption'!$G$4="2015-20",'Product benefit & adoption'!AE14*'Product benefit & adoption'!$L14/1000000) -> 0 | K9: =_xlfn.IFS('Product benefit & adoption'!$G$4="ALL",'Product benefit & adoption'!AF14*'Product benefit & adoption'!$P14/1000000,'Product benefit & adoption'!$G$4="2020-25",'Product benefit & adoption'!AF14*'Product benefit & adoption'!$N14/1000000,'Product benefit & adoption'!$G$4="2015-20",'Product benefit & adoption'!AF14*'Product benefit & adoption'!$L14/1000000) -> 0 | L9: =_xlfn.IFS('Product benefit & adoption'!$G$4="ALL",'Product benefit & adoption'!AG14*'Product benefit & adoption'!$P14/1000000,'Product benefit & adoption'!$G$4="2020-25",'Product benefit & adoption'!AG14*'Product benefit & adoption'!$N14/1000000,'Product benefit & adoption'!$G$4="2015-20",'Product benefit & adoption'!AG14*'Product benefit & adoption'!$L14/1000000) -> 0 | M9: =_xlfn.IFS('Product benefit & adoption'!$G$4="ALL",'Product benefit & adoption'!AH14*'Product benefit & adoption'!$P14/1000000,'Product benefit & adoption'!$G$4="2020-25",'Product benefit & adoption'!AH14*'Product benefit & adoption'!$N14/1000000,'Product benefit & adoption'!$G$4="2015-20",'Product benefit & adoption'!AH14*'Product benefit & adoption'!$L14/1000000) -> 0 | N9: =_xlfn.IFS('Product benefit & adoption'!$G$4="ALL",'Product benefit & adoption'!AI14*'Product benefit & adoption'!$P14/1000000,'Product benefit & adoption'!$G$4="2020-25",'Product benefit & adoption'!AI14*'Product benefit & adoption'!$N14/1000000,'Product benefit & adoption'!$G$4="2015-20",'Product benefit & adoption'!AI14*'Product benefit & adoption'!$L14/1000000) -> 0 | O9: =_xlfn.IFS('Product benefit & adoption'!$G$4="ALL",'Product benefit & adoption'!AJ14*'Product benefit & adoption'!$P14/1000000,'Product benefit & adoption'!$G$4="2020-25",'Product benefit & adoption'!AJ14*'Product benefit & adoption'!$N14/1000000,'Product benefit & adoption'!$G$4="2015-20",'Product benefit & adoption'!AJ14*'Product benefit & adoption'!$L14/1000000) -> 0 | P9: =_xlfn.IFS('Product benefit & adoption'!$G$4="ALL",'Product benefit & adoption'!AK14*'Product benefit & adoption'!$P14/1000000,'Product benefit & adoption'!$G$4="2020-25",'Product benefit & adoption'!AK14*'Product benefit & adoption'!$N14/1000000,'Product benefit & adoption'!$G$4="2015-20",'Product benefit & adoption'!AK14*'Product benefit & adoption'!$L14/1000000) -> 0 | Q9: =_xlfn.IFS('Product benefit & adoption'!$G$4="ALL",'Product benefit & adoption'!AL14*'Product benefit & adoption'!$P14/1000000,'Product benefit & adoption'!$G$4="2020-25",'Product benefit & adoption'!AL14*'Product benefit & adoption'!$N14/1000000,'Product benefit & adoption'!$G$4="2015-20",'Product benefit & adoption'!AL14*'Product benefit & adoption'!$L14/1000000) -> 0 | R9: =_xlfn.IFS('Product benefit & adoption'!$G$4="ALL",'Product benefit & adoption'!AM14*'Product benefit & adoption'!$P14/1000000,'Product benefit & adoption'!$G$4="2020-25",'Product benefit & adoption'!AM14*'Product benefit & adoption'!$N14/1000000,'Product benefit & adoption'!$G$4="2015-20",'Product benefit & adoption'!AM14*'Product benefit & adoption'!$L14/1000000) -> 0 | S9: =_xlfn.IFS('Product benefit & adoption'!$G$4="ALL",'Product benefit & adoption'!AN14*'Product benefit & adoption'!$P14/1000000,'Product benefit & adoption'!$G$4="2020-25",'Product benefit & adoption'!AN14*'Product benefit & adoption'!$N14/1000000,'Product benefit & adoption'!$G$4="2015-20",'Product benefit & adoption'!AN14*'Product benefit & adoption'!$L14/1000000) -> 0 | T9: =_xlfn.IFS('Product benefit & adoption'!$G$4="ALL",'Product benefit & adoption'!AO14*'Product benefit & adoption'!$P14/1000000,'Product benefit & adoption'!$G$4="2020-25",'Product benefit & adoption'!AO14*'Product benefit & adoption'!$N14/1000000,'Product benefit & adoption'!$G$4="2015-20",'Product benefit & adoption'!AO14*'Product benefit & adoption'!$L14/1000000) -> 0 | U9: =_xlfn.IFS('Product benefit & adoption'!$G$4="ALL",'Product benefit & adoption'!AP14*'Product benefit & adoption'!$P14/1000000,'Product benefit & adoption'!$G$4="2020-25",'Product benefit & adoption'!AP14*'Product benefit & adoption'!$N14/1000000,'Product benefit & adoption'!$G$4="2015-20",'Product benefit & adoption'!AP14*'Product benefit & adoption'!$L14/1000000) -> 0 | V9: =_xlfn.IFS('Product benefit & adoption'!$G$4="ALL",'Product benefit & adoption'!AQ14*'Product benefit & adoption'!$P14/1000000,'Product benefit & adoption'!$G$4="2020-25",'Product benefit & adoption'!AQ14*'Product benefit & adoption'!$N14/1000000,'Product benefit & adoption'!$G$4="2015-20",'Product benefit & adoption'!AQ14*'Product benefit & adoption'!$L14/1000000) -> 0 | W9: =_xlfn.IFS('Product benefit & adoption'!$G$4="ALL",'Product benefit & adoption'!AR14*'Product benefit & adoption'!$P14/1000000,'Product benefit & adoption'!$G$4="2020-25",'Product benefit & adoption'!AR14*'Product benefit & adoption'!$N14/1000000,'Product benefit & adoption'!$G$4="2015-20",'Product benefit & adoption'!AR14*'Product benefit & adoption'!$L14/1000000) -> 0 | X9: =_xlfn.IFS('Product benefit & adoption'!$G$4="ALL",'Product benefit & adoption'!AS14*'Product benefit & adoption'!$P14/1000000,'Product benefit & adoption'!$G$4="2020-25",'Product benefit & adoption'!AS14*'Product benefit & adoption'!$N14/1000000,'Product benefit & adoption'!$G$4="2015-20",'Product benefit & adoption'!AS14*'Product benefit & adoption'!$L14/1000000) -> 0 | Y9: =_xlfn.IFS('Product benefit & adoption'!$G$4="ALL",'Product benefit & adoption'!AT14*'Product benefit & adoption'!$P14/1000000,'Product benefit & adoption'!$G$4="2020-25",'Product benefit & adoption'!AT14*'Product benefit & adoption'!$N14/1000000,'Product benefit & adoption'!$G$4="2015-20",'Product benefit & adoption'!AT14*'Product benefit & adoption'!$L14/1000000) -> 0 | Z9: =_xlfn.IFS('Product benefit & adoption'!$G$4="ALL",'Product benefit & adoption'!AU14*'Product benefit & adoption'!$P14/1000000,'Product benefit & adoption'!$G$4="2020-25",'Product benefit & adoption'!AU14*'Product benefit & adoption'!$N14/1000000,'Product benefit & adoption'!$G$4="2015-20",'Product benefit & adoption'!AU14*'Product benefit & adoption'!$L14/1000000) -> 0 | AA9: =_xlfn.IFS('Product benefit & adoption'!$G$4="ALL",'Product benefit & adoption'!AV14*'Product benefit & adoption'!$P14/1000000,'Product benefit & adoption'!$G$4="2020-25",'Product benefit & adoption'!AV14*'Product benefit & adoption'!$N14/1000000,'Product benefit & adoption'!$G$4="2015-20",'Product benefit & adoption'!AV14*'Product benefit & adoption'!$L14/1000000) -> 0 | AB9: =_xlfn.IFS('Product benefit & adoption'!$G$4="ALL",'Product benefit & adoption'!AW14*'Product benefit & adoption'!$P14/1000000,'Product benefit & adoption'!$G$4="2020-25",'Product benefit & adoption'!AW14*'Product benefit & adoption'!$N14/1000000,'Product benefit & adoption'!$G$4="2015-20",'Product benefit & adoption'!AW14*'Product benefit & adoption'!$L14/1000000) -> 0 | AC9: =_xlfn.IFS('Product benefit & adoption'!$G$4="ALL",'Product benefit & adoption'!AX14*'Product benefit & adoption'!$P14/1000000,'Product benefit & adoption'!$G$4="2020-25",'Product benefit & adoption'!AX14*'Product benefit & adoption'!$N14/1000000,'Product benefit & adoption'!$G$4="2015-20",'Product benefit & adoption'!AX14*'Product benefit & adoption'!$L14/1000000) -> 0 | AD9: =_xlfn.IFS('Product benefit & adoption'!$G$4="ALL",'Product benefit & adoption'!AY14*'Product benefit & adoption'!$P14/1000000,'Product benefit & adoption'!$G$4="2020-25",'Product benefit & adoption'!AY14*'Product benefit & adoption'!$N14/1000000,'Product benefit & adoption'!$G$4="2015-20",'Product benefit & adoption'!AY14*'Product benefit & adoption'!$L14/1000000) -> 0 | AE9: =_xlfn.IFS('Product benefit & adoption'!$G$4="ALL",'Product benefit & adoption'!AZ14*'Product benefit & adoption'!$P14/1000000,'Product benefit & adoption'!$G$4="2020-25",'Product benefit & adoption'!AZ14*'Product benefit & adoption'!$N14/1000000,'Product benefit & adoption'!$G$4="2015-20",'Product benefit & adoption'!AZ14*'Product benefit & adoption'!$L14/1000000) -> 0 | AF9: =_xlfn.IFS('Product benefit & adoption'!$G$4="ALL",'Product benefit & adoption'!BA14*'Product benefit & adoption'!$P14/1000000,'Product benefit & adoption'!$G$4="2020-25",'Product benefit & adoption'!BA14*'Product benefit & adoption'!$N14/1000000,'Product benefit & adoption'!$G$4="2015-20",'Product benefit & adoption'!BA14*'Product benefit & adoption'!$L14/1000000) -> 0 | AG9: =_xlfn.IFS('Product benefit & adoption'!$G$4="ALL",'Product benefit & adoption'!BB14*'Product benefit & adoption'!$P14/1000000,'Product benefit & adoption'!$G$4="2020-25",'Product benefit & adoption'!BB14*'Product benefit & adoption'!$N14/1000000,'Product benefit & adoption'!$G$4="2015-20",'Product benefit & adoption'!BB14*'Product benefit & adoption'!$L14/1000000) -> 0 | AH9: =_xlfn.IFS('Product benefit & adoption'!$G$4="ALL",'Product benefit & adoption'!BC14*'Product benefit & adoption'!$P14/1000000,'Product benefit & adoption'!$G$4="2020-25",'Product benefit & adoption'!BC14*'Product benefit & adoption'!$N14/1000000,'Product benefit & adoption'!$G$4="2015-20",'Product benefit & adoption'!BC14*'Product benefit & adoption'!$L14/1000000) -> 0 | AI9: =_xlfn.IFS('Product benefit & adoption'!$G$4="ALL",'Product benefit & adoption'!BD14*'Product benefit & adoption'!$P14/1000000,'Product benefit & adoption'!$G$4="2020-25",'Product benefit & adoption'!BD14*'Product benefit & adoption'!$N14/1000000,'Product benefit & adoption'!$G$4="2015-20",'Product benefit & adoption'!BD14*'Product benefit & adoption'!$L14/1000000) -> 0
B10: 5 | C10: =IF('Product benefit & adoption'!D15="","",'Product benefit & adoption'!D15) ->  | D10: =IF('Product benefit & adoption'!F15="","",'Product benefit & adoption'!F15) ->  | E10: 0 | F10: =_xlfn.IFS('Product benefit & adoption'!$G$4="ALL",'Product benefit & adoption'!AA15*'Product benefit & adoption'!$P15/1000000,'Product benefit & adoption'!$G$4="2020-25",'Product benefit & adoption'!AA15*'Product benefit & adoption'!$N15/1000000,'Product benefit & adoption'!$G$4="2015-20",'Product benefit & adoption'!AA15*'Product benefit & adoption'!$L15/1000000) -> 0 | G10: =_xlfn.IFS('Product benefit & adoption'!$G$4="ALL",'Product benefit & adoption'!AB15*'Product benefit & adoption'!$P15/1000000,'Product benefit & adoption'!$G$4="2020-25",'Product benefit & adoption'!AB15*'Product benefit & adoption'!$N15/1000000,'Product benefit & adoption'!$G$4="2015-20",'Product benefit & adoption'!AB15*'Product benefit & adoption'!$L15/1000000) -> 0 | H10: =_xlfn.IFS('Product benefit & adoption'!$G$4="ALL",'Product benefit & adoption'!AC15*'Product benefit & adoption'!$P15/1000000,'Product benefit & adoption'!$G$4="2020-25",'Product benefit & adoption'!AC15*'Product benefit & adoption'!$N15/1000000,'Product benefit & adoption'!$G$4="2015-20",'Product benefit & adoption'!AC15*'Product benefit & adoption'!$L15/1000000) -> 0 | I10: =_xlfn.IFS('Product benefit & adoption'!$G$4="ALL",'Product benefit & adoption'!AD15*'Product benefit & adoption'!$P15/1000000,'Product benefit & adoption'!$G$4="2020-25",'Product benefit & adoption'!AD15*'Product benefit & adoption'!$N15/1000000,'Product benefit & adoption'!$G$4="2015-20",'Product benefit & adoption'!AD15*'Product benefit & adoption'!$L15/1000000) -> 0 | J10: =_xlfn.IFS('Product benefit & adoption'!$G$4="ALL",'Product benefit & adoption'!AE15*'Product benefit & adoption'!$P15/1000000,'Product benefit & adoption'!$G$4="2020-25",'Product benefit & adoption'!AE15*'Product benefit & adoption'!$N15/1000000,'Product benefit & adoption'!$G$4="2015-20",'Product benefit & adoption'!AE15*'Product benefit & adoption'!$L15/1000000) -> 0 | K10: =_xlfn.IFS('Product benefit & adoption'!$G$4="ALL",'Product benefit & adoption'!AF15*'Product benefit & adoption'!$P15/1000000,'Product benefit & adoption'!$G$4="2020-25",'Product benefit & adoption'!AF15*'Product benefit & adoption'!$N15/1000000,'Product benefit & adoption'!$G$4="2015-20",'Product benefit & adoption'!AF15*'Product benefit & adoption'!$L15/1000000) -> 0 | L10: =_xlfn.IFS('Product benefit & adoption'!$G$4="ALL",'Product benefit & adoption'!AG15*'Product benefit & adoption'!$P15/1000000,'Product benefit & adoption'!$G$4="2020-25",'Product benefit & adoption'!AG15*'Product benefit & adoption'!$N15/1000000,'Product benefit & adoption'!$G$4="2015-20",'Product benefit & adoption'!AG15*'Product benefit & adoption'!$L15/1000000) -> 0 | M10: =_xlfn.IFS('Product benefit & adoption'!$G$4="ALL",'Product benefit & adoption'!AH15*'Product benefit & adoption'!$P15/1000000,'Product benefit & adoption'!$G$4="2020-25",'Product benefit & adoption'!AH15*'Product benefit & adoption'!$N15/1000000,'Product benefit & adoption'!$G$4="2015-20",'Product benefit & adoption'!AH15*'Product benefit & adoption'!$L15/1000000) -> 0 | N10: =_xlfn.IFS('Product benefit & adoption'!$G$4="ALL",'Product benefit & adoption'!AI15*'Product benefit & adoption'!$P15/1000000,'Product benefit & adoption'!$G$4="2020-25",'Product benefit & adoption'!AI15*'Product benefit & adoption'!$N15/1000000,'Product benefit & adoption'!$G$4="2015-20",'Product benefit & adoption'!AI15*'Product benefit & adoption'!$L15/1000000) -> 0 | O10: =_xlfn.IFS('Product benefit & adoption'!$G$4="ALL",'Product benefit & adoption'!AJ15*'Product benefit & adoption'!$P15/1000000,'Product benefit & adoption'!$G$4="2020-25",'Product benefit & adoption'!AJ15*'Product benefit & adoption'!$N15/1000000,'Product benefit & adoption'!$G$4="2015-20",'Product benefit & adoption'!AJ15*'Product benefit & adoption'!$L15/1000000) -> 0 | P10: =_xlfn.IFS('Product benefit & adoption'!$G$4="ALL",'Product benefit & adoption'!AK15*'Product benefit & adoption'!$P15/1000000,'Product benefit & adoption'!$G$4="2020-25",'Product benefit & adoption'!AK15*'Product benefit & adoption'!$N15/1000000,'Product benefit & adoption'!$G$4="2015-20",'Product benefit & adoption'!AK15*'Product benefit & adoption'!$L15/1000000) -> 0 | Q10: =_xlfn.IFS('Product benefit & adoption'!$G$4="ALL",'Product benefit & adoption'!AL15*'Product benefit & adoption'!$P15/1000000,'Product benefit & adoption'!$G$4="2020-25",'Product benefit & adoption'!AL15*'Product benefit & adoption'!$N15/1000000,'Product benefit & adoption'!$G$4="2015-20",'Product benefit & adoption'!AL15*'Product benefit & adoption'!$L15/1000000) -> 0 | R10: =_xlfn.IFS('Product benefit & adoption'!$G$4="ALL",'Product benefit & adoption'!AM15*'Product benefit & adoption'!$P15/1000000,'Product benefit & adoption'!$G$4="2020-25",'Product benefit & adoption'!AM15*'Product benefit & adoption'!$N15/1000000,'Product benefit & adoption'!$G$4="2015-20",'Product benefit & adoption'!AM15*'Product benefit & adoption'!$L15/1000000) -> 0 | S10: =_xlfn.IFS('Product benefit & adoption'!$G$4="ALL",'Product benefit & adoption'!AN15*'Product benefit & adoption'!$P15/1000000,'Product benefit & adoption'!$G$4="2020-25",'Product benefit & adoption'!AN15*'Product benefit & adoption'!$N15/1000000,'Product benefit & adoption'!$G$4="2015-20",'Product benefit & adoption'!AN15*'Product benefit & adoption'!$L15/1000000) -> 0 | T10: =_xlfn.IFS('Product benefit & adoption'!$G$4="ALL",'Product benefit & adoption'!AO15*'Product benefit & adoption'!$P15/1000000,'Product benefit & adoption'!$G$4="2020-25",'Product benefit & adoption'!AO15*'Product benefit & adoption'!$N15/1000000,'Product benefit & adoption'!$G$4="2015-20",'Product benefit & adoption'!AO15*'Product benefit & adoption'!$L15/1000000) -> 0 | U10: =_xlfn.IFS('Product benefit & adoption'!$G$4="ALL",'Product benefit & adoption'!AP15*'Product benefit & adoption'!$P15/1000000,'Product benefit & adoption'!$G$4="2020-25",'Product benefit & adoption'!AP15*'Product benefit & adoption'!$N15/1000000,'Product benefit & adoption'!$G$4="2015-20",'Product benefit & adoption'!AP15*'Product benefit & adoption'!$L15/1000000) -> 0 | V10: =_xlfn.IFS('Product benefit & adoption'!$G$4="ALL",'Product benefit & adoption'!AQ15*'Product benefit & adoption'!$P15/1000000,'Product benefit & adoption'!$G$4="2020-25",'Product benefit & adoption'!AQ15*'Product benefit & adoption'!$N15/1000000,'Product benefit & adoption'!$G$4="2015-20",'Product benefit & adoption'!AQ15*'Product benefit & adoption'!$L15/1000000) -> 0 | W10: =_xlfn.IFS('Product benefit & adoption'!$G$4="ALL",'Product benefit & adoption'!AR15*'Product benefit & adoption'!$P15/1000000,'Product benefit & adoption'!$G$4="2020-25",'Product benefit & adoption'!AR15*'Product benefit & adoption'!$N15/1000000,'Product benefit & adoption'!$G$4="2015-20",'Product benefit & adoption'!AR15*'Product benefit & adoption'!$L15/1000000) -> 0 | X10: =_xlfn.IFS('Product benefit & adoption'!$G$4="ALL",'Product benefit & adoption'!AS15*'Product benefit & adoption'!$P15/1000000,'Product benefit & adoption'!$G$4="2020-25",'Product benefit & adoption'!AS15*'Product benefit & adoption'!$N15/1000000,'Product benefit & adoption'!$G$4="2015-20",'Product benefit & adoption'!AS15*'Product benefit & adoption'!$L15/1000000) -> 0 | Y10: =_xlfn.IFS('Product benefit & adoption'!$G$4="ALL",'Product benefit & adoption'!AT15*'Product benefit & adoption'!$P15/1000000,'Product benefit & adoption'!$G$4="2020-25",'Product benefit & adoption'!AT15*'Product benefit & adoption'!$N15/1000000,'Product benefit & adoption'!$G$4="2015-20",'Product benefit & adoption'!AT15*'Product benefit & adoption'!$L15/1000000) -> 0 | Z10: =_xlfn.IFS('Product benefit & adoption'!$G$4="ALL",'Product benefit & adoption'!AU15*'Product benefit & adoption'!$P15/1000000,'Product benefit & adoption'!$G$4="2020-25",'Product benefit & adoption'!AU15*'Product benefit & adoption'!$N15/1000000,'Product benefit & adoption'!$G$4="2015-20",'Product benefit & adoption'!AU15*'Product benefit & adoption'!$L15/1000000) -> 0 | AA10: =_xlfn.IFS('Product benefit & adoption'!$G$4="ALL",'Product benefit & adoption'!AV15*'Product benefit & adoption'!$P15/1000000,'Product benefit & adoption'!$G$4="2020-25",'Product benefit & adoption'!AV15*'Product benefit & adoption'!$N15/1000000,'Product benefit & adoption'!$G$4="2015-20",'Product benefit & adoption'!AV15*'Product benefit & adoption'!$L15/1000000) -> 0 | AB10: =_xlfn.IFS('Product benefit & adoption'!$G$4="ALL",'Product benefit & adoption'!AW15*'Product benefit & adoption'!$P15/1000000,'Product benefit & adoption'!$G$4="2020-25",'Product benefit & adoption'!AW15*'Product benefit & adoption'!$N15/1000000,'Product benefit & adoption'!$G$4="2015-20",'Product benefit & adoption'!AW15*'Product benefit & adoption'!$L15/1000000) -> 0 | AC10: =_xlfn.IFS('Product benefit & adoption'!$G$4="ALL",'Product benefit & adoption'!AX15*'Product benefit & adoption'!$P15/1000000,'Product benefit & adoption'!$G$4="2020-25",'Product benefit & adoption'!AX15*'Product benefit & adoption'!$N15/1000000,'Product benefit & adoption'!$G$4="2015-20",'Product benefit & adoption'!AX15*'Product benefit & adoption'!$L15/1000000) -> 0 | AD10: =_xlfn.IFS('Product benefit & adoption'!$G$4="ALL",'Product benefit & adoption'!AY15*'Product benefit & adoption'!$P15/1000000,'Product benefit & adoption'!$G$4="2020-25",'Product benefit & adoption'!AY15*'Product benefit & adoption'!$N15/1000000,'Product benefit & adoption'!$G$4="2015-20",'Product benefit & adoption'!AY15*'Product benefit & adoption'!$L15/1000000) -> 0 | AE10: =_xlfn.IFS('Product benefit & adoption'!$G$4="ALL",'Product benefit & adoption'!AZ15*'Product benefit & adoption'!$P15/1000000,'Product benefit & adoption'!$G$4="2020-25",'Product benefit & adoption'!AZ15*'Product benefit & adoption'!$N15/1000000,'Product benefit & adoption'!$G$4="2015-20",'Product benefit & adoption'!AZ15*'Product benefit & adoption'!$L15/1000000) -> 0 | AF10: =_xlfn.IFS('Product benefit & adoption'!$G$4="ALL",'Product benefit & adoption'!BA15*'Product benefit & adoption'!$P15/1000000,'Product benefit & adoption'!$G$4="2020-25",'Product benefit & adoption'!BA15*'Product benefit & adoption'!$N15/1000000,'Product benefit & adoption'!$G$4="2015-20",'Product benefit & adoption'!BA15*'Product benefit & adoption'!$L15/1000000) -> 0 | AG10: =_xlfn.IFS('Product benefit & adoption'!$G$4="ALL",'Product benefit & adoption'!BB15*'Product benefit & adoption'!$P15/1000000,'Product benefit & adoption'!$G$4="2020-25",'Product benefit & adoption'!BB15*'Product benefit & adoption'!$N15/1000000,'Product benefit & adoption'!$G$4="2015-20",'Product benefit & adoption'!BB15*'Product benefit & adoption'!$L15/1000000) -> 0 | AH10: =_xlfn.IFS('Product benefit & adoption'!$G$4="ALL",'Product benefit & adoption'!BC15*'Product benefit & adoption'!$P15/1000000,'Product benefit & adoption'!$G$4="2020-25",'Product benefit & adoption'!BC15*'Product benefit & adoption'!$N15/1000000,'Product benefit & adoption'!$G$4="2015-20",'Product benefit & adoption'!BC15*'Product benefit & adoption'!$L15/1000000) -> 0 | AI10: =_xlfn.IFS('Product benefit & adoption'!$G$4="ALL",'Product benefit & adoption'!BD15*'Product benefit & adoption'!$P15/1000000,'Product benefit & adoption'!$G$4="2020-25",'Product benefit & adoption'!BD15*'Product benefit & adoption'!$N15/1000000,'Product benefit & adoption'!$G$4="2015-20",'Product benefit & adoption'!BD15*'Product benefit & adoption'!$L15/1000000) -> 0
B11: 6 | C11: =IF('Product benefit & adoption'!D16="","",'Product benefit & adoption'!D16) ->  | D11: =IF('Product benefit & adoption'!F16="","",'Product benefit & adoption'!F16) ->  | E11: 0 | F11: =_xlfn.IFS('Product benefit & adoption'!$G$4="ALL",'Product benefit & adoption'!AA16*'Product benefit & adoption'!$P16/1000000,'Product benefit & adoption'!$G$4="2020-25",'Product benefit & adoption'!AA16*'Product benefit & adoption'!$N16/1000000,'Product benefit & adoption'!$G$4="2015-20",'Product benefit & adoption'!AA16*'Product benefit & adoption'!$L16/1000000) -> 0 | G11: =_xlfn.IFS('Product benefit & adoption'!$G$4="ALL",'Product benefit & adoption'!AB16*'Product benefit & adoption'!$P16/1000000,'Product benefit & adoption'!$G$4="2020-25",'Product benefit & adoption'!AB16*'Product benefit & adoption'!$N16/1000000,'Product benefit & adoption'!$G$4="2015-20",'Product benefit & adoption'!AB16*'Product benefit & adoption'!$L16/1000000) -> 0 | H11: =_xlfn.IFS('Product benefit & adoption'!$G$4="ALL",'Product benefit & adoption'!AC16*'Product benefit & adoption'!$P16/1000000,'Product benefit & adoption'!$G$4="2020-25",'Product benefit & adoption'!AC16*'Product benefit & adoption'!$N16/1000000,'Product benefit & adoption'!$G$4="2015-20",'Product benefit & adoption'!AC16*'Product benefit & adoption'!$L16/1000000) -> 0 | I11: =_xlfn.IFS('Product benefit & adoption'!$G$4="ALL",'Product benefit & adoption'!AD16*'Product benefit & adoption'!$P16/1000000,'Product benefit & adoption'!$G$4="2020-25",'Product benefit & adoption'!AD16*'Product benefit & adoption'!$N16/1000000,'Product benefit & adoption'!$G$4="2015-20",'Product benefit & adoption'!AD16*'Product benefit & adoption'!$L16/1000000) -> 0 | J11: =_xlfn.IFS('Product benefit & adoption'!$G$4="ALL",'Product benefit & adoption'!AE16*'Product benefit & adoption'!$P16/1000000,'Product benefit & adoption'!$G$4="2020-25",'Product benefit & adoption'!AE16*'Product benefit & adoption'!$N16/1000000,'Product benefit & adoption'!$G$4="2015-20",'Product benefit & adoption'!AE16*'Product benefit & adoption'!$L16/1000000) -> 0 | K11: =_xlfn.IFS('Product benefit & adoption'!$G$4="ALL",'Product benefit & adoption'!AF16*'Product benefit & adoption'!$P16/1000000,'Product benefit & adoption'!$G$4="2020-25",'Product benefit & adoption'!AF16*'Product benefit & adoption'!$N16/1000000,'Product benefit & adoption'!$G$4="2015-20",'Product benefit & adoption'!AF16*'Product benefit & adoption'!$L16/1000000) -> 0 | L11: =_xlfn.IFS('Product benefit & adoption'!$G$4="ALL",'Product benefit & adoption'!AG16*'Product benefit & adoption'!$P16/1000000,'Product benefit & adoption'!$G$4="2020-25",'Product benefit & adoption'!AG16*'Product benefit & adoption'!$N16/1000000,'Product benefit & adoption'!$G$4="2015-20",'Product benefit & adoption'!AG16*'Product benefit & adoption'!$L16/1000000) -> 0 | M11: =_xlfn.IFS('Product benefit & adoption'!$G$4="ALL",'Product benefit & adoption'!AH16*'Product benefit & adoption'!$P16/1000000,'Product benefit & adoption'!$G$4="2020-25",'Product benefit & adoption'!AH16*'Product benefit & adoption'!$N16/1000000,'Product benefit & adoption'!$G$4="2015-20",'Product benefit & adoption'!AH16*'Product benefit & adoption'!$L16/1000000) -> 0 | N11: =_xlfn.IFS('Product benefit & adoption'!$G$4="ALL",'Product benefit & adoption'!AI16*'Product benefit & adoption'!$P16/1000000,'Product benefit & adoption'!$G$4="2020-25",'Product benefit & adoption'!AI16*'Product benefit & adoption'!$N16/1000000,'Product benefit & adoption'!$G$4="2015-20",'Product benefit & adoption'!AI16*'Product benefit & adoption'!$L16/1000000) -> 0 | O11: =_xlfn.IFS('Product benefit & adoption'!$G$4="ALL",'Product benefit & adoption'!AJ16*'Product benefit & adoption'!$P16/1000000,'Product benefit & adoption'!$G$4="2020-25",'Product benefit & adoption'!AJ16*'Product benefit & adoption'!$N16/1000000,'Product benefit & adoption'!$G$4="2015-20",'Product benefit & adoption'!AJ16*'Product benefit & adoption'!$L16/1000000) -> 0 | P11: =_xlfn.IFS('Product benefit & adoption'!$G$4="ALL",'Product benefit & adoption'!AK16*'Product benefit & adoption'!$P16/1000000,'Product benefit & adoption'!$G$4="2020-25",'Product benefit & adoption'!AK16*'Product benefit & adoption'!$N16/1000000,'Product benefit & adoption'!$G$4="2015-20",'Product benefit & adoption'!AK16*'Product benefit & adoption'!$L16/1000000) -> 0 | Q11: =_xlfn.IFS('Product benefit & adoption'!$G$4="ALL",'Product benefit & adoption'!AL16*'Product benefit & adoption'!$P16/1000000,'Product benefit & adoption'!$G$4="2020-25",'Product benefit & adoption'!AL16*'Product benefit & adoption'!$N16/1000000,'Product benefit & adoption'!$G$4="2015-20",'Product benefit & adoption'!AL16*'Product benefit & adoption'!$L16/1000000) -> 0 | R11: =_xlfn.IFS('Product benefit & adoption'!$G$4="ALL",'Product benefit & adoption'!AM16*'Product benefit & adoption'!$P16/1000000,'Product benefit & adoption'!$G$4="2020-25",'Product benefit & adoption'!AM16*'Product benefit & adoption'!$N16/1000000,'Product benefit & adoption'!$G$4="2015-20",'Product benefit & adoption'!AM16*'Product benefit & adoption'!$L16/1000000) -> 0 | S11: =_xlfn.IFS('Product benefit & adoption'!$G$4="ALL",'Product benefit & adoption'!AN16*'Product benefit & adoption'!$P16/1000000,'Product benefit & adoption'!$G$4="2020-25",'Product benefit & adoption'!AN16*'Product benefit & adoption'!$N16/1000000,'Product benefit & adoption'!$G$4="2015-20",'Product benefit & adoption'!AN16*'Product benefit & adoption'!$L16/1000000) -> 0 | T11: =_xlfn.IFS('Product benefit & adoption'!$G$4="ALL",'Product benefit & adoption'!AO16*'Product benefit & adoption'!$P16/1000000,'Product benefit & adoption'!$G$4="2020-25",'Product benefit & adoption'!AO16*'Product benefit & adoption'!$N16/1000000,'Product benefit & adoption'!$G$4="2015-20",'Product benefit & adoption'!AO16*'Product benefit & adoption'!$L16/1000000) -> 0 | U11: =_xlfn.IFS('Product benefit & adoption'!$G$4="ALL",'Product benefit & adoption'!AP16*'Product benefit & adoption'!$P16/1000000,'Product benefit & adoption'!$G$4="2020-25",'Product benefit & adoption'!AP16*'Product benefit & adoption'!$N16/1000000,'Product benefit & adoption'!$G$4="2015-20",'Product benefit & adoption'!AP16*'Product benefit & adoption'!$L16/1000000) -> 0 | V11: =_xlfn.IFS('Product benefit & adoption'!$G$4="ALL",'Product benefit & adoption'!AQ16*'Product benefit & adoption'!$P16/1000000,'Product benefit & adoption'!$G$4="2020-25",'Product benefit & adoption'!AQ16*'Product benefit & adoption'!$N16/1000000,'Product benefit & adoption'!$G$4="2015-20",'Product benefit & adoption'!AQ16*'Product benefit & adoption'!$L16/1000000) -> 0 | W11: =_xlfn.IFS('Product benefit & adoption'!$G$4="ALL",'Product benefit & adoption'!AR16*'Product benefit & adoption'!$P16/1000000,'Product benefit & adoption'!$G$4="2020-25",'Product benefit & adoption'!AR16*'Product benefit & adoption'!$N16/1000000,'Product benefit & adoption'!$G$4="2015-20",'Product benefit & adoption'!AR16*'Product benefit & adoption'!$L16/1000000) -> 0 | X11: =_xlfn.IFS('Product benefit & adoption'!$G$4="ALL",'Product benefit & adoption'!AS16*'Product benefit & adoption'!$P16/1000000,'Product benefit & adoption'!$G$4="2020-25",'Product benefit & adoption'!AS16*'Product benefit & adoption'!$N16/1000000,'Product benefit & adoption'!$G$4="2015-20",'Product benefit & adoption'!AS16*'Product benefit & adoption'!$L16/1000000) -> 0 | Y11: =_xlfn.IFS('Product benefit & adoption'!$G$4="ALL",'Product benefit & adoption'!AT16*'Product benefit & adoption'!$P16/1000000,'Product benefit & adoption'!$G$4="2020-25",'Product benefit & adoption'!AT16*'Product benefit & adoption'!$N16/1000000,'Product benefit & adoption'!$G$4="2015-20",'Product benefit & adoption'!AT16*'Product benefit & adoption'!$L16/1000000) -> 0 | Z11: =_xlfn.IFS('Product benefit & adoption'!$G$4="ALL",'Product benefit & adoption'!AU16*'Product benefit & adoption'!$P16/1000000,'Product benefit & adoption'!$G$4="2020-25",'Product benefit & adoption'!AU16*'Product benefit & adoption'!$N16/1000000,'Product benefit & adoption'!$G$4="2015-20",'Product benefit & adoption'!AU16*'Product benefit & adoption'!$L16/1000000) -> 0 | AA11: =_xlfn.IFS('Product benefit & adoption'!$G$4="ALL",'Product benefit & adoption'!AV16*'Product benefit & adoption'!$P16/1000000,'Product benefit & adoption'!$G$4="2020-25",'Product benefit & adoption'!AV16*'Product benefit & adoption'!$N16/1000000,'Product benefit & adoption'!$G$4="2015-20",'Product benefit & adoption'!AV16*'Product benefit & adoption'!$L16/1000000) -> 0 | AB11: =_xlfn.IFS('Product benefit & adoption'!$G$4="ALL",'Product benefit & adoption'!AW16*'Product benefit & adoption'!$P16/1000000,'Product benefit & adoption'!$G$4="2020-25",'Product benefit & adoption'!AW16*'Product benefit & adoption'!$N16/1000000,'Product benefit & adoption'!$G$4="2015-20",'Product benefit & adoption'!AW16*'Product benefit & adoption'!$L16/1000000) -> 0 | AC11: =_xlfn.IFS('Product benefit & adoption'!$G$4="ALL",'Product benefit & adoption'!AX16*'Product benefit & adoption'!$P16/1000000,'Product benefit & adoption'!$G$4="2020-25",'Product benefit & adoption'!AX16*'Product benefit & adoption'!$N16/1000000,'Product benefit & adoption'!$G$4="2015-20",'Product benefit & adoption'!AX16*'Product benefit & adoption'!$L16/1000000) -> 0 | AD11: =_xlfn.IFS('Product benefit & adoption'!$G$4="ALL",'Product benefit & adoption'!AY16*'Product benefit & adoption'!$P16/1000000,'Product benefit & adoption'!$G$4="2020-25",'Product benefit & adoption'!AY16*'Product benefit & adoption'!$N16/1000000,'Product benefit & adoption'!$G$4="2015-20",'Product benefit & adoption'!AY16*'Product benefit & adoption'!$L16/1000000) -> 0 | AE11: =_xlfn.IFS('Product benefit & adoption'!$G$4="ALL",'Product benefit & adoption'!AZ16*'Product benefit & adoption'!$P16/1000000,'Product benefit & adoption'!$G$4="2020-25",'Product benefit & adoption'!AZ16*'Product benefit & adoption'!$N16/1000000,'Product benefit & adoption'!$G$4="2015-20",'Product benefit & adoption'!AZ16*'Product benefit & adoption'!$L16/1000000) -> 0 | AF11: =_xlfn.IFS('Product benefit & adoption'!$G$4="ALL",'Product benefit & adoption'!BA16*'Product benefit & adoption'!$P16/1000000,'Product benefit & adoption'!$G$4="2020-25",'Product benefit & adoption'!BA16*'Product benefit & adoption'!$N16/1000000,'Product benefit & adoption'!$G$4="2015-20",'Product benefit & adoption'!BA16*'Product benefit & adoption'!$L16/1000000) -> 0 | AG11: =_xlfn.IFS('Product benefit & adoption'!$G$4="ALL",'Product benefit & adoption'!BB16*'Product benefit & adoption'!$P16/1000000,'Product benefit & adoption'!$G$4="2020-25",'Product benefit & adoption'!BB16*'Product benefit & adoption'!$N16/1000000,'Product benefit & adoption'!$G$4="2015-20",'Product benefit & adoption'!BB16*'Product benefit & adoption'!$L16/1000000) -> 0 | AH11: =_xlfn.IFS('Product benefit & adoption'!$G$4="ALL",'Product benefit & adoption'!BC16*'Product benefit & adoption'!$P16/1000000,'Product benefit & adoption'!$G$4="2020-25",'Product benefit & adoption'!BC16*'Product benefit & adoption'!$N16/1000000,'Product benefit & adoption'!$G$4="2015-20",'Product benefit & adoption'!BC16*'Product benefit & adoption'!$L16/1000000) -> 0 | AI11: =_xlfn.IFS('Product benefit & adoption'!$G$4="ALL",'Product benefit & adoption'!BD16*'Product benefit & adoption'!$P16/1000000,'Product benefit & adoption'!$G$4="2020-25",'Product benefit & adoption'!BD16*'Product benefit & adoption'!$N16/1000000,'Product benefit & adoption'!$G$4="2015-20",'Product benefit & adoption'!BD16*'Product benefit & adoption'!$L16/1000000) -> 0
B12: 7 | C12: =IF('Product benefit & adoption'!D17="","",'Product benefit & adoption'!D17) ->  | D12: =IF('Product benefit & adoption'!F17="","",'Product benefit & adoption'!F17) ->  | E12: 0 | F12: =_xlfn.IFS('Product benefit & adoption'!$G$4="ALL",'Product benefit & adoption'!AA17*'Product benefit & adoption'!$P17/1000000,'Product benefit & adoption'!$G$4="2020-25",'Product benefit & adoption'!AA17*'Product benefit & adoption'!$N17/1000000,'Product benefit & adoption'!$G$4="2015-20",'Product benefit & adoption'!AA17*'Product benefit & adoption'!$L17/1000000) -> 0 | G12: =_xlfn.IFS('Product benefit & adoption'!$G$4="ALL",'Product benefit & adoption'!AB17*'Product benefit & adoption'!$P17/1000000,'Product benefit & adoption'!$G$4="2020-25",'Product benefit & adoption'!AB17*'Product benefit & adoption'!$N17/1000000,'Product benefit & adoption'!$G$4="2015-20",'Product benefit & adoption'!AB17*'Product benefit & adoption'!$L17/1000000) -> 0 | H12: =_xlfn.IFS('Product benefit & adoption'!$G$4="ALL",'Product benefit & adoption'!AC17*'Product benefit & adoption'!$P17/1000000,'Product benefit & adoption'!$G$4="2020-25",'Product benefit & adoption'!AC17*'Product benefit & adoption'!$N17/1000000,'Product benefit & adoption'!$G$4="2015-20",'Product benefit & adoption'!AC17*'Product benefit & adoption'!$L17/1000000) -> 0 | I12: =_xlfn.IFS('Product benefit & adoption'!$G$4="ALL",'Product benefit & adoption'!AD17*'Product benefit & adoption'!$P17/1000000,'Product benefit & adoption'!$G$4="2020-25",'Product benefit & adoption'!AD17*'Product benefit & adoption'!$N17/1000000,'Product benefit & adoption'!$G$4="2015-20",'Product benefit & adoption'!AD17*'Product benefit & adoption'!$L17/1000000) -> 0 | J12: =_xlfn.IFS('Product benefit & adoption'!$G$4="ALL",'Product benefit & adoption'!AE17*'Product benefit & adoption'!$P17/1000000,'Product benefit & adoption'!$G$4="2020-25",'Product benefit & adoption'!AE17*'Product benefit & adoption'!$N17/1000000,'Product benefit & adoption'!$G$4="2015-20",'Product benefit & adoption'!AE17*'Product benefit & adoption'!$L17/1000000) -> 0 | K12: =_xlfn.IFS('Product benefit & adoption'!$G$4="ALL",'Product benefit & adoption'!AF17*'Product benefit & adoption'!$P17/1000000,'Product benefit & adoption'!$G$4="2020-25",'Product benefit & adoption'!AF17*'Product benefit & adoption'!$N17/1000000,'Product benefit & adoption'!$G$4="2015-20",'Product benefit & adoption'!AF17*'Product benefit & adoption'!$L17/1000000) -> 0 | L12: =_xlfn.IFS('Product benefit & adoption'!$G$4="ALL",'Product benefit & adoption'!AG17*'Product benefit & adoption'!$P17/1000000,'Product benefit & adoption'!$G$4="2020-25",'Product benefit & adoption'!AG17*'Product benefit & adoption'!$N17/1000000,'Product benefit & adoption'!$G$4="2015-20",'Product benefit & adoption'!AG17*'Product benefit & adoption'!$L17/1000000) -> 0 | M12: =_xlfn.IFS('Product benefit & adoption'!$G$4="ALL",'Product benefit & adoption'!AH17*'Product benefit & adoption'!$P17/1000000,'Product benefit & adoption'!$G$4="2020-25",'Product benefit & adoption'!AH17*'Product benefit & adoption'!$N17/1000000,'Product benefit & adoption'!$G$4="2015-20",'Product benefit & adoption'!AH17*'Product benefit & adoption'!$L17/1000000) -> 0 | N12: =_xlfn.IFS('Product benefit & adoption'!$G$4="ALL",'Product benefit & adoption'!AI17*'Product benefit & adoption'!$P17/1000000,'Product benefit & adoption'!$G$4="2020-25",'Product benefit & adoption'!AI17*'Product benefit & adoption'!$N17/1000000,'Product benefit & adoption'!$G$4="2015-20",'Product benefit & adoption'!AI17*'Product benefit & adoption'!$L17/1000000) -> 0 | O12: =_xlfn.IFS('Product benefit & adoption'!$G$4="ALL",'Product benefit & adoption'!AJ17*'Product benefit & adoption'!$P17/1000000,'Product benefit & adoption'!$G$4="2020-25",'Product benefit & adoption'!AJ17*'Product benefit & adoption'!$N17/1000000,'Product benefit & adoption'!$G$4="2015-20",'Product benefit & adoption'!AJ17*'Product benefit & adoption'!$L17/1000000) -> 0 | P12: =_xlfn.IFS('Product benefit & adoption'!$G$4="ALL",'Product benefit & adoption'!AK17*'Product benefit & adoption'!$P17/1000000,'Product benefit & adoption'!$G$4="2020-25",'Product benefit & adoption'!AK17*'Product benefit & adoption'!$N17/1000000,'Product benefit & adoption'!$G$4="2015-20",'Product benefit & adoption'!AK17*'Product benefit & adoption'!$L17/1000000) -> 0 | Q12: =_xlfn.IFS('Product benefit & adoption'!$G$4="ALL",'Product benefit & adoption'!AL17*'Product benefit & adoption'!$P17/1000000,'Product benefit & adoption'!$G$4="2020-25",'Product benefit & adoption'!AL17*'Product benefit & adoption'!$N17/1000000,'Product benefit & adoption'!$G$4="2015-20",'Product benefit & adoption'!AL17*'Product benefit & adoption'!$L17/1000000) -> 0 | R12: =_xlfn.IFS('Product benefit & adoption'!$G$4="ALL",'Product benefit & adoption'!AM17*'Product benefit & adoption'!$P17/1000000,'Product benefit & adoption'!$G$4="2020-25",'Product benefit & adoption'!AM17*'Product benefit & adoption'!$N17/1000000,'Product benefit & adoption'!$G$4="2015-20",'Product benefit & adoption'!AM17*'Product benefit & adoption'!$L17/1000000) -> 0 | S12: =_xlfn.IFS('Product benefit & adoption'!$G$4="ALL",'Product benefit & adoption'!AN17*'Product benefit & adoption'!$P17/1000000,'Product benefit & adoption'!$G$4="2020-25",'Product benefit & adoption'!AN17*'Product benefit & adoption'!$N17/1000000,'Product benefit & adoption'!$G$4="2015-20",'Product benefit & adoption'!AN17*'Product benefit & adoption'!$L17/1000000) -> 0 | T12: =_xlfn.IFS('Product benefit & adoption'!$G$4="ALL",'Product benefit & adoption'!AO17*'Product benefit & adoption'!$P17/1000000,'Product benefit & adoption'!$G$4="2020-25",'Product benefit & adoption'!AO17*'Product benefit & adoption'!$N17/1000000,'Product benefit & adoption'!$G$4="2015-20",'Product benefit & adoption'!AO17*'Product benefit & adoption'!$L17/1000000) -> 0 | U12: =_xlfn.IFS('Product benefit & adoption'!$G$4="ALL",'Product benefit & adoption'!AP17*'Product benefit & adoption'!$P17/1000000,'Product benefit & adoption'!$G$4="2020-25",'Product benefit & adoption'!AP17*'Product benefit & adoption'!$N17/1000000,'Product benefit & adoption'!$G$4="2015-20",'Product benefit & adoption'!AP17*'Product benefit & adoption'!$L17/1000000) -> 0 | V12: =_xlfn.IFS('Product benefit & adoption'!$G$4="ALL",'Product benefit & adoption'!AQ17*'Product benefit & adoption'!$P17/1000000,'Product benefit & adoption'!$G$4="2020-25",'Product benefit & adoption'!AQ17*'Product benefit & adoption'!$N17/1000000,'Product benefit & adoption'!$G$4="2015-20",'Product benefit & adoption'!AQ17*'Product benefit & adoption'!$L17/1000000) -> 0 | W12: =_xlfn.IFS('Product benefit & adoption'!$G$4="ALL",'Product benefit & adoption'!AR17*'Product benefit & adoption'!$P17/1000000,'Product benefit & adoption'!$G$4="2020-25",'Product benefit & adoption'!AR17*'Product benefit & adoption'!$N17/1000000,'Product benefit & adoption'!$G$4="2015-20",'Product benefit & adoption'!AR17*'Product benefit & adoption'!$L17/1000000) -> 0 | X12: =_xlfn.IFS('Product benefit & adoption'!$G$4="ALL",'Product benefit & adoption'!AS17*'Product benefit & adoption'!$P17/1000000,'Product benefit & adoption'!$G$4="2020-25",'Product benefit & adoption'!AS17*'Product benefit & adoption'!$N17/1000000,'Product benefit & adoption'!$G$4="2015-20",'Product benefit & adoption'!AS17*'Product benefit & adoption'!$L17/1000000) -> 0 | Y12: =_xlfn.IFS('Product benefit & adoption'!$G$4="ALL",'Product benefit & adoption'!AT17*'Product benefit & adoption'!$P17/1000000,'Product benefit & adoption'!$G$4="2020-25",'Product benefit & adoption'!AT17*'Product benefit & adoption'!$N17/1000000,'Product benefit & adoption'!$G$4="2015-20",'Product benefit & adoption'!AT17*'Product benefit & adoption'!$L17/1000000) -> 0 | Z12: =_xlfn.IFS('Product benefit & adoption'!$G$4="ALL",'Product benefit & adoption'!AU17*'Product benefit & adoption'!$P17/1000000,'Product benefit & adoption'!$G$4="2020-25",'Product benefit & adoption'!AU17*'Product benefit & adoption'!$N17/1000000,'Product benefit & adoption'!$G$4="2015-20",'Product benefit & adoption'!AU17*'Product benefit & adoption'!$L17/1000000) -> 0 | AA12: =_xlfn.IFS('Product benefit & adoption'!$G$4="ALL",'Product benefit & adoption'!AV17*'Product benefit & adoption'!$P17/1000000,'Product benefit & adoption'!$G$4="2020-25",'Product benefit & adoption'!AV17*'Product benefit & adoption'!$N17/1000000,'Product benefit & adoption'!$G$4="2015-20",'Product benefit & adoption'!AV17*'Product benefit & adoption'!$L17/1000000) -> 0 | AB12: =_xlfn.IFS('Product benefit & adoption'!$G$4="ALL",'Product benefit & adoption'!AW17*'Product benefit & adoption'!$P17/1000000,'Product benefit & adoption'!$G$4="2020-25",'Product benefit & adoption'!AW17*'Product benefit & adoption'!$N17/1000000,'Product benefit & adoption'!$G$4="2015-20",'Product benefit & adoption'!AW17*'Product benefit & adoption'!$L17/1000000) -> 0 | AC12: =_xlfn.IFS('Product benefit & adoption'!$G$4="ALL",'Product benefit & adoption'!AX17*'Product benefit & adoption'!$P17/1000000,'Product benefit & adoption'!$G$4="2020-25",'Product benefit & adoption'!AX17*'Product benefit & adoption'!$N17/1000000,'Product benefit & adoption'!$G$4="2015-20",'Product benefit & adoption'!AX17*'Product benefit & adoption'!$L17/1000000) -> 0 | AD12: =_xlfn.IFS('Product benefit & adoption'!$G$4="ALL",'Product benefit & adoption'!AY17*'Product benefit & adoption'!$P17/1000000,'Product benefit & adoption'!$G$4="2020-25",'Product benefit & adoption'!AY17*'Product benefit & adoption'!$N17/1000000,'Product benefit & adoption'!$G$4="2015-20",'Product benefit & adoption'!AY17*'Product benefit & adoption'!$L17/1000000) -> 0 | AE12: =_xlfn.IFS('Product benefit & adoption'!$G$4="ALL",'Product benefit & adoption'!AZ17*'Product benefit & adoption'!$P17/1000000,'Product benefit & adoption'!$G$4="2020-25",'Product benefit & adoption'!AZ17*'Product benefit & adoption'!$N17/1000000,'Product benefit & adoption'!$G$4="2015-20",'Product benefit & adoption'!AZ17*'Product benefit & adoption'!$L17/1000000) -> 0 | AF12: =_xlfn.IFS('Product benefit & adoption'!$G$4="ALL",'Product benefit & adoption'!BA17*'Product benefit & adoption'!$P17/1000000,'Product benefit & adoption'!$G$4="2020-25",'Product benefit & adoption'!BA17*'Product benefit & adoption'!$N17/1000000,'Product benefit & adoption'!$G$4="2015-20",'Product benefit & adoption'!BA17*'Product benefit & adoption'!$L17/1000000) -> 0 | AG12: =_xlfn.IFS('Product benefit & adoption'!$G$4="ALL",'Product benefit & adoption'!BB17*'Product benefit & adoption'!$P17/1000000,'Product benefit & adoption'!$G$4="2020-25",'Product benefit & adoption'!BB17*'Product benefit & adoption'!$N17/1000000,'Product benefit & adoption'!$G$4="2015-20",'Product benefit & adoption'!BB17*'Product benefit & adoption'!$L17/1000000) -> 0 | AH12: =_xlfn.IFS('Product benefit & adoption'!$G$4="ALL",'Product benefit & adoption'!BC17*'Product benefit & adoption'!$P17/1000000,'Product benefit & adoption'!$G$4="2020-25",'Product benefit & adoption'!BC17*'Product benefit & adoption'!$N17/1000000,'Product benefit & adoption'!$G$4="2015-20",'Product benefit & adoption'!BC17*'Product benefit & adoption'!$L17/1000000) -> 0 | AI12: =_xlfn.IFS('Product benefit & adoption'!$G$4="ALL",'Product benefit & adoption'!BD17*'Product benefit & adoption'!$P17/1000000,'Product benefit & adoption'!$G$4="2020-25",'Product benefit & adoption'!BD17*'Product benefit & adoption'!$N17/1000000,'Product benefit & adoption'!$G$4="2015-20",'Product benefit & adoption'!BD17*'Product benefit & adoption'!$L17/1000000) -> 0
B13: 8 | C13: =IF('Product benefit & adoption'!D18="","",'Product benefit & adoption'!D18) ->  | D13: =IF('Product benefit & adoption'!F18="","",'Product benefit & adoption'!F18) ->  | E13: 0 | F13: =_xlfn.IFS('Product benefit & adoption'!$G$4="ALL",'Product benefit & adoption'!AA18*'Product benefit & adoption'!$P18/1000000,'Product benefit & adoption'!$G$4="2020-25",'Product benefit & adoption'!AA18*'Product benefit & adoption'!$N18/1000000,'Product benefit & adoption'!$G$4="2015-20",'Product benefit & adoption'!AA18*'Product benefit & adoption'!$L18/1000000) -> 0 | G13: =_xlfn.IFS('Product benefit & adoption'!$G$4="ALL",'Product benefit & adoption'!AB18*'Product benefit & adoption'!$P18/1000000,'Product benefit & adoption'!$G$4="2020-25",'Product benefit & adoption'!AB18*'Product benefit & adoption'!$N18/1000000,'Product benefit & adoption'!$G$4="2015-20",'Product benefit & adoption'!AB18*'Product benefit & adoption'!$L18/1000000) -> 0 | H13: =_xlfn.IFS('Product benefit & adoption'!$G$4="ALL",'Product benefit & adoption'!AC18*'Product benefit & adoption'!$P18/1000000,'Product benefit & adoption'!$G$4="2020-25",'Product benefit & adoption'!AC18*'Product benefit & adoption'!$N18/1000000,'Product benefit & adoption'!$G$4="2015-20",'Product benefit & adoption'!AC18*'Product benefit & adoption'!$L18/1000000) -> 0 | I13: =_xlfn.IFS('Product benefit & adoption'!$G$4="ALL",'Product benefit & adoption'!AD18*'Product benefit & adoption'!$P18/1000000,'Product benefit & adoption'!$G$4="2020-25",'Product benefit & adoption'!AD18*'Product benefit & adoption'!$N18/1000000,'Product benefit & adoption'!$G$4="2015-20",'Product benefit & adoption'!AD18*'Product benefit & adoption'!$L18/1000000) -> 0 | J13: =_xlfn.IFS('Product benefit & adoption'!$G$4="ALL",'Product benefit & adoption'!AE18*'Product benefit & adoption'!$P18/1000000,'Product benefit & adoption'!$G$4="2020-25",'Product benefit & adoption'!AE18*'Product benefit & adoption'!$N18/1000000,'Product benefit & adoption'!$G$4="2015-20",'Product benefit & adoption'!AE18*'Product benefit & adoption'!$L18/1000000) -> 0 | K13: =_xlfn.IFS('Product benefit & adoption'!$G$4="ALL",'Product benefit & adoption'!AF18*'Product benefit & adoption'!$P18/1000000,'Product benefit & adoption'!$G$4="2020-25",'Product benefit & adoption'!AF18*'Product benefit & adoption'!$N18/1000000,'Product benefit & adoption'!$G$4="2015-20",'Product benefit & adoption'!AF18*'Product benefit & adoption'!$L18/1000000) -> 0 | L13: =_xlfn.IFS('Product benefit & adoption'!$G$4="ALL",'Product benefit & adoption'!AG18*'Product benefit & adoption'!$P18/1000000,'Product benefit & adoption'!$G$4="2020-25",'Product benefit & adoption'!AG18*'Product benefit & adoption'!$N18/1000000,'Product benefit & adoption'!$G$4="2015-20",'Product benefit & adoption'!AG18*'Product benefit & adoption'!$L18/1000000) -> 0 | M13: =_xlfn.IFS('Product benefit & adoption'!$G$4="ALL",'Product benefit & adoption'!AH18*'Product benefit & adoption'!$P18/1000000,'Product benefit & adoption'!$G$4="2020-25",'Product benefit & adoption'!AH18*'Product benefit & adoption'!$N18/1000000,'Product benefit & adoption'!$G$4="2015-20",'Product benefit & adoption'!AH18*'Product benefit & adoption'!$L18/1000000) -> 0 | N13: =_xlfn.IFS('Product benefit & adoption'!$G$4="ALL",'Product benefit & adoption'!AI18*'Product benefit & adoption'!$P18/1000000,'Product benefit & adoption'!$G$4="2020-25",'Product benefit & adoption'!AI18*'Product benefit & adoption'!$N18/1000000,'Product benefit & adoption'!$G$4="2015-20",'Product benefit & adoption'!AI18*'Product benefit & adoption'!$L18/1000000) -> 0 | O13: =_xlfn.IFS('Product benefit & adoption'!$G$4="ALL",'Product benefit & adoption'!AJ18*'Product benefit & adoption'!$P18/1000000,'Product benefit & adoption'!$G$4="2020-25",'Product benefit & adoption'!AJ18*'Product benefit & adoption'!$N18/1000000,'Product benefit & adoption'!$G$4="2015-20",'Product benefit & adoption'!AJ18*'Product benefit & adoption'!$L18/1000000) -> 0 | P13: =_xlfn.IFS('Product benefit & adoption'!$G$4="ALL",'Product benefit & adoption'!AK18*'Product benefit & adoption'!$P18/1000000,'Product benefit & adoption'!$G$4="2020-25",'Product benefit & adoption'!AK18*'Product benefit & adoption'!$N18/1000000,'Product benefit & adoption'!$G$4="2015-20",'Product benefit & adoption'!AK18*'Product benefit & adoption'!$L18/1000000) -> 0 | Q13: =_xlfn.IFS('Product benefit & adoption'!$G$4="ALL",'Product benefit & adoption'!AL18*'Product benefit & adoption'!$P18/1000000,'Product benefit & adoption'!$G$4="2020-25",'Product benefit & adoption'!AL18*'Product benefit & adoption'!$N18/1000000,'Product benefit & adoption'!$G$4="2015-20",'Product benefit & adoption'!AL18*'Product benefit & adoption'!$L18/1000000) -> 0 | R13: =_xlfn.IFS('Product benefit & adoption'!$G$4="ALL",'Product benefit & adoption'!AM18*'Product benefit & adoption'!$P18/1000000,'Product benefit & adoption'!$G$4="2020-25",'Product benefit & adoption'!AM18*'Product benefit & adoption'!$N18/1000000,'Product benefit & adoption'!$G$4="2015-20",'Product benefit & adoption'!AM18*'Product benefit & adoption'!$L18/1000000) -> 0 | S13: =_xlfn.IFS('Product benefit & adoption'!$G$4="ALL",'Product benefit & adoption'!AN18*'Product benefit & adoption'!$P18/1000000,'Product benefit & adoption'!$G$4="2020-25",'Product benefit & adoption'!AN18*'Product benefit & adoption'!$N18/1000000,'Product benefit & adoption'!$G$4="2015-20",'Product benefit & adoption'!AN18*'Product benefit & adoption'!$L18/1000000) -> 0 | T13: =_xlfn.IFS('Product benefit & adoption'!$G$4="ALL",'Product benefit & adoption'!AO18*'Product benefit & adoption'!$P18/1000000,'Product benefit & adoption'!$G$4="2020-25",'Product benefit & adoption'!AO18*'Product benefit & adoption'!$N18/1000000,'Product benefit & adoption'!$G$4="2015-20",'Product benefit & adoption'!AO18*'Product benefit & adoption'!$L18/1000000) -> 0 | U13: =_xlfn.IFS('Product benefit & adoption'!$G$4="ALL",'Product benefit & adoption'!AP18*'Product benefit & adoption'!$P18/1000000,'Product benefit & adoption'!$G$4="2020-25",'Product benefit & adoption'!AP18*'Product benefit & adoption'!$N18/1000000,'Product benefit & adoption'!$G$4="2015-20",'Product benefit & adoption'!AP18*'Product benefit & adoption'!$L18/1000000) -> 0 | V13: =_xlfn.IFS('Product benefit & adoption'!$G$4="ALL",'Product benefit & adoption'!AQ18*'Product benefit & adoption'!$P18/1000000,'Product benefit & adoption'!$G$4="2020-25",'Product benefit & adoption'!AQ18*'Product benefit & adoption'!$N18/1000000,'Product benefit & adoption'!$G$4="2015-20",'Product benefit & adoption'!AQ18*'Product benefit & adoption'!$L18/1000000) -> 0 | W13: =_xlfn.IFS('Product benefit & adoption'!$G$4="ALL",'Product benefit & adoption'!AR18*'Product benefit & adoption'!$P18/1000000,'Product benefit & adoption'!$G$4="2020-25",'Product benefit & adoption'!AR18*'Product benefit & adoption'!$N18/1000000,'Product benefit & adoption'!$G$4="2015-20",'Product benefit & adoption'!AR18*'Product benefit & adoption'!$L18/1000000) -> 0 | X13: =_xlfn.IFS('Product benefit & adoption'!$G$4="ALL",'Product benefit & adoption'!AS18*'Product benefit & adoption'!$P18/1000000,'Product benefit & adoption'!$G$4="2020-25",'Product benefit & adoption'!AS18*'Product benefit & adoption'!$N18/1000000,'Product benefit & adoption'!$G$4="2015-20",'Product benefit & adoption'!AS18*'Product benefit & adoption'!$L18/1000000) -> 0 | Y13: =_xlfn.IFS('Product benefit & adoption'!$G$4="ALL",'Product benefit & adoption'!AT18*'Product benefit & adoption'!$P18/1000000,'Product benefit & adoption'!$G$4="2020-25",'Product benefit & adoption'!AT18*'Product benefit & adoption'!$N18/1000000,'Product benefit & adoption'!$G$4="2015-20",'Product benefit & adoption'!AT18*'Product benefit & adoption'!$L18/1000000) -> 0 | Z13: =_xlfn.IFS('Product benefit & adoption'!$G$4="ALL",'Product benefit & adoption'!AU18*'Product benefit & adoption'!$P18/1000000,'Product benefit & adoption'!$G$4="2020-25",'Product benefit & adoption'!AU18*'Product benefit & adoption'!$N18/1000000,'Product benefit & adoption'!$G$4="2015-20",'Product benefit & adoption'!AU18*'Product benefit & adoption'!$L18/1000000) -> 0 | AA13: =_xlfn.IFS('Product benefit & adoption'!$G$4="ALL",'Product benefit & adoption'!AV18*'Product benefit & adoption'!$P18/1000000,'Product benefit & adoption'!$G$4="2020-25",'Product benefit & adoption'!AV18*'Product benefit & adoption'!$N18/1000000,'Product benefit & adoption'!$G$4="2015-20",'Product benefit & adoption'!AV18*'Product benefit & adoption'!$L18/1000000) -> 0 | AB13: =_xlfn.IFS('Product benefit & adoption'!$G$4="ALL",'Product benefit & adoption'!AW18*'Product benefit & adoption'!$P18/1000000,'Product benefit & adoption'!$G$4="2020-25",'Product benefit & adoption'!AW18*'Product benefit & adoption'!$N18/1000000,'Product benefit & adoption'!$G$4="2015-20",'Product benefit & adoption'!AW18*'Product benefit & adoption'!$L18/1000000) -> 0 | AC13: =_xlfn.IFS('Product benefit & adoption'!$G$4="ALL",'Product benefit & adoption'!AX18*'Product benefit & adoption'!$P18/1000000,'Product benefit & adoption'!$G$4="2020-25",'Product benefit & adoption'!AX18*'Product benefit & adoption'!$N18/1000000,'Product benefit & adoption'!$G$4="2015-20",'Product benefit & adoption'!AX18*'Product benefit & adoption'!$L18/1000000) -> 0 | AD13: =_xlfn.IFS('Product benefit & adoption'!$G$4="ALL",'Product benefit & adoption'!AY18*'Product benefit & adoption'!$P18/1000000,'Product benefit & adoption'!$G$4="2020-25",'Product benefit & adoption'!AY18*'Product benefit & adoption'!$N18/1000000,'Product benefit & adoption'!$G$4="2015-20",'Product benefit & adoption'!AY18*'Product benefit & adoption'!$L18/1000000) -> 0 | AE13: =_xlfn.IFS('Product benefit & adoption'!$G$4="ALL",'Product benefit & adoption'!AZ18*'Product benefit & adoption'!$P18/1000000,'Product benefit & adoption'!$G$4="2020-25",'Product benefit & adoption'!AZ18*'Product benefit & adoption'!$N18/1000000,'Product benefit & adoption'!$G$4="2015-20",'Product benefit & adoption'!AZ18*'Product benefit & adoption'!$L18/1000000) -> 0 | AF13: =_xlfn.IFS('Product benefit & adoption'!$G$4="ALL",'Product benefit & adoption'!BA18*'Product benefit & adoption'!$P18/1000000,'Product benefit & adoption'!$G$4="2020-25",'Product benefit & adoption'!BA18*'Product benefit & adoption'!$N18/1000000,'Product benefit & adoption'!$G$4="2015-20",'Product benefit & adoption'!BA18*'Product benefit & adoption'!$L18/1000000) -> 0 | AG13: =_xlfn.IFS('Product benefit & adoption'!$G$4="ALL",'Product benefit & adoption'!BB18*'Product benefit & adoption'!$P18/1000000,'Product benefit & adoption'!$G$4="2020-25",'Product benefit & adoption'!BB18*'Product benefit & adoption'!$N18/1000000,'Product benefit & adoption'!$G$4="2015-20",'Product benefit & adoption'!BB18*'Product benefit & adoption'!$L18/1000000) -> 0 | AH13: =_xlfn.IFS('Product benefit & adoption'!$G$4="ALL",'Product benefit & adoption'!BC18*'Product benefit & adoption'!$P18/1000000,'Product benefit & adoption'!$G$4="2020-25",'Product benefit & adoption'!BC18*'Product benefit & adoption'!$N18/1000000,'Product benefit & adoption'!$G$4="2015-20",'Product benefit & adoption'!BC18*'Product benefit & adoption'!$L18/1000000) -> 0 | AI13: =_xlfn.IFS('Product benefit & adoption'!$G$4="ALL",'Product benefit & adoption'!BD18*'Product benefit & adoption'!$P18/1000000,'Product benefit & adoption'!$G$4="2020-25",'Product benefit & adoption'!BD18*'Product benefit & adoption'!$N18/1000000,'Product benefit & adoption'!$G$4="2015-20",'Product benefit & adoption'!BD18*'Product benefit & adoption'!$L18/1000000) -> 0
B14: 9 | C14: =IF('Product benefit & adoption'!D19="","",'Product benefit & adoption'!D19) ->  | D14: =IF('Product benefit & adoption'!F19="","",'Product benefit & adoption'!F19) ->  | E14: 0 | F14: =_xlfn.IFS('Product benefit & adoption'!$G$4="ALL",'Product benefit & adoption'!AA19*'Product benefit & adoption'!$P19/1000000,'Product benefit & adoption'!$G$4="2020-25",'Product benefit & adoption'!AA19*'Product benefit & adoption'!$N19/1000000,'Product benefit & adoption'!$G$4="2015-20",'Product benefit & adoption'!AA19*'Product benefit & adoption'!$L19/1000000) -> 0 | G14: =_xlfn.IFS('Product benefit & adoption'!$G$4="ALL",'Product benefit & adoption'!AB19*'Product benefit & adoption'!$P19/1000000,'Product benefit & adoption'!$G$4="2020-25",'Product benefit & adoption'!AB19*'Product benefit & adoption'!$N19/1000000,'Product benefit & adoption'!$G$4="2015-20",'Product benefit & adoption'!AB19*'Product benefit & adoption'!$L19/1000000) -> 0 | H14: =_xlfn.IFS('Product benefit & adoption'!$G$4="ALL",'Product benefit & adoption'!AC19*'Product benefit & adoption'!$P19/1000000,'Product benefit & adoption'!$G$4="2020-25",'Product benefit & adoption'!AC19*'Product benefit & adoption'!$N19/1000000,'Product benefit & adoption'!$G$4="2015-20",'Product benefit & adoption'!AC19*'Product benefit & adoption'!$L19/1000000) -> 0 | I14: =_xlfn.IFS('Product benefit & adoption'!$G$4="ALL",'Product benefit & adoption'!AD19*'Product benefit & adoption'!$P19/1000000,'Product benefit & adoption'!$G$4="2020-25",'Product benefit & adoption'!AD19*'Product benefit & adoption'!$N19/1000000,'Product benefit & adoption'!$G$4="2015-20",'Product benefit & adoption'!AD19*'Product benefit & adoption'!$L19/1000000) -> 0 | J14: =_xlfn.IFS('Product benefit & adoption'!$G$4="ALL",'Product benefit & adoption'!AE19*'Product benefit & adoption'!$P19/1000000,'Product benefit & adoption'!$G$4="2020-25",'Product benefit & adoption'!AE19*'Product benefit & adoption'!$N19/1000000,'Product benefit & adoption'!$G$4="2015-20",'Product benefit & adoption'!AE19*'Product benefit & adoption'!$L19/1000000) -> 0 | K14: =_xlfn.IFS('Product benefit & adoption'!$G$4="ALL",'Product benefit & adoption'!AF19*'Product benefit & adoption'!$P19/1000000,'Product benefit & adoption'!$G$4="2020-25",'Product benefit & adoption'!AF19*'Product benefit & adoption'!$N19/1000000,'Product benefit & adoption'!$G$4="2015-20",'Product benefit & adoption'!AF19*'Product benefit & adoption'!$L19/1000000) -> 0 | L14: =_xlfn.IFS('Product benefit & adoption'!$G$4="ALL",'Product benefit & adoption'!AG19*'Product benefit & adoption'!$P19/1000000,'Product benefit & adoption'!$G$4="2020-25",'Product benefit & adoption'!AG19*'Product benefit & adoption'!$N19/1000000,'Product benefit & adoption'!$G$4="2015-20",'Product benefit & adoption'!AG19*'Product benefit & adoption'!$L19/1000000) -> 0 | M14: =_xlfn.IFS('Product benefit & adoption'!$G$4="ALL",'Product benefit & adoption'!AH19*'Product benefit & adoption'!$P19/1000000,'Product benefit & adoption'!$G$4="2020-25",'Product benefit & adoption'!AH19*'Product benefit & adoption'!$N19/1000000,'Product benefit & adoption'!$G$4="2015-20",'Product benefit & adoption'!AH19*'Product benefit & adoption'!$L19/1000000) -> 0 | N14: =_xlfn.IFS('Product benefit & adoption'!$G$4="ALL",'Product benefit & adoption'!AI19*'Product benefit & adoption'!$P19/1000000,'Product benefit & adoption'!$G$4="2020-25",'Product benefit & adoption'!AI19*'Product benefit & adoption'!$N19/1000000,'Product benefit & adoption'!$G$4="2015-20",'Product benefit & adoption'!AI19*'Product benefit & adoption'!$L19/1000000) -> 0 | O14: =_xlfn.IFS('Product benefit & adoption'!$G$4="ALL",'Product benefit & adoption'!AJ19*'Product benefit & adoption'!$P19/1000000,'Product benefit & adoption'!$G$4="2020-25",'Product benefit & adoption'!AJ19*'Product benefit & adoption'!$N19/1000000,'Product benefit & adoption'!$G$4="2015-20",'Product benefit & adoption'!AJ19*'Product benefit & adoption'!$L19/1000000) -> 0 | P14: =_xlfn.IFS('Product benefit & adoption'!$G$4="ALL",'Product benefit & adoption'!AK19*'Product benefit & adoption'!$P19/1000000,'Product benefit & adoption'!$G$4="2020-25",'Product benefit & adoption'!AK19*'Product benefit & adoption'!$N19/1000000,'Product benefit & adoption'!$G$4="2015-20",'Product benefit & adoption'!AK19*'Product benefit & adoption'!$L19/1000000) -> 0 | Q14: =_xlfn.IFS('Product benefit & adoption'!$G$4="ALL",'Product benefit & adoption'!AL19*'Product benefit & adoption'!$P19/1000000,'Product benefit & adoption'!$G$4="2020-25",'Product benefit & adoption'!AL19*'Product benefit & adoption'!$N19/1000000,'Product benefit & adoption'!$G$4="2015-20",'Product benefit & adoption'!AL19*'Product benefit & adoption'!$L19/1000000) -> 0 | R14: =_xlfn.IFS('Product benefit & adoption'!$G$4="ALL",'Product benefit & adoption'!AM19*'Product benefit & adoption'!$P19/1000000,'Product benefit & adoption'!$G$4="2020-25",'Product benefit & adoption'!AM19*'Product benefit & adoption'!$N19/1000000,'Product benefit & adoption'!$G$4="2015-20",'Product benefit & adoption'!AM19*'Product benefit & adoption'!$L19/1000000) -> 0 | S14: =_xlfn.IFS('Product benefit & adoption'!$G$4="ALL",'Product benefit & adoption'!AN19*'Product benefit & adoption'!$P19/1000000,'Product benefit & adoption'!$G$4="2020-25",'Product benefit & adoption'!AN19*'Product benefit & adoption'!$N19/1000000,'Product benefit & adoption'!$G$4="2015-20",'Product benefit & adoption'!AN19*'Product benefit & adoption'!$L19/1000000) -> 0 | T14: =_xlfn.IFS('Product benefit & adoption'!$G$4="ALL",'Product benefit & adoption'!AO19*'Product benefit & adoption'!$P19/1000000,'Product benefit & adoption'!$G$4="2020-25",'Product benefit & adoption'!AO19*'Product benefit & adoption'!$N19/1000000,'Product benefit & adoption'!$G$4="2015-20",'Product benefit & adoption'!AO19*'Product benefit & adoption'!$L19/1000000) -> 0 | U14: =_xlfn.IFS('Product benefit & adoption'!$G$4="ALL",'Product benefit & adoption'!AP19*'Product benefit & adoption'!$P19/1000000,'Product benefit & adoption'!$G$4="2020-25",'Product benefit & adoption'!AP19*'Product benefit & adoption'!$N19/1000000,'Product benefit & adoption'!$G$4="2015-20",'Product benefit & adoption'!AP19*'Product benefit & adoption'!$L19/1000000) -> 0 | V14: =_xlfn.IFS('Product benefit & adoption'!$G$4="ALL",'Product benefit & adoption'!AQ19*'Product benefit & adoption'!$P19/1000000,'Product benefit & adoption'!$G$4="2020-25",'Product benefit & adoption'!AQ19*'Product benefit & adoption'!$N19/1000000,'Product benefit & adoption'!$G$4="2015-20",'Product benefit & adoption'!AQ19*'Product benefit & adoption'!$L19/1000000) -> 0 | W14: =_xlfn.IFS('Product benefit & adoption'!$G$4="ALL",'Product benefit & adoption'!AR19*'Product benefit & adoption'!$P19/1000000,'Product benefit & adoption'!$G$4="2020-25",'Product benefit & adoption'!AR19*'Product benefit & adoption'!$N19/1000000,'Product benefit & adoption'!$G$4="2015-20",'Product benefit & adoption'!AR19*'Product benefit & adoption'!$L19/1000000) -> 0 | X14: =_xlfn.IFS('Product benefit & adoption'!$G$4="ALL",'Product benefit & adoption'!AS19*'Product benefit & adoption'!$P19/1000000,'Product benefit & adoption'!$G$4="2020-25",'Product benefit & adoption'!AS19*'Product benefit & adoption'!$N19/1000000,'Product benefit & adoption'!$G$4="2015-20",'Product benefit & adoption'!AS19*'Product benefit & adoption'!$L19/1000000) -> 0 | Y14: =_xlfn.IFS('Product benefit & adoption'!$G$4="ALL",'Product benefit & adoption'!AT19*'Product benefit & adoption'!$P19/1000000,'Product benefit & adoption'!$G$4="2020-25",'Product benefit & adoption'!AT19*'Product benefit & adoption'!$N19/1000000,'Product benefit & adoption'!$G$4="2015-20",'Product benefit & adoption'!AT19*'Product benefit & adoption'!$L19/1000000) -> 0 | Z14: =_xlfn.IFS('Product benefit & adoption'!$G$4="ALL",'Product benefit & adoption'!AU19*'Product benefit & adoption'!$P19/1000000,'Product benefit & adoption'!$G$4="2020-25",'Product benefit & adoption'!AU19*'Product benefit & adoption'!$N19/1000000,'Product benefit & adoption'!$G$4="2015-20",'Product benefit & adoption'!AU19*'Product benefit & adoption'!$L19/1000000) -> 0 | AA14: =_xlfn.IFS('Product benefit & adoption'!$G$4="ALL",'Product benefit & adoption'!AV19*'Product benefit & adoption'!$P19/1000000,'Product benefit & adoption'!$G$4="2020-25",'Product benefit & adoption'!AV19*'Product benefit & adoption'!$N19/1000000,'Product benefit & adoption'!$G$4="2015-20",'Product benefit & adoption'!AV19*'Product benefit & adoption'!$L19/1000000) -> 0 | AB14: =_xlfn.IFS('Product benefit & adoption'!$G$4="ALL",'Product benefit & adoption'!AW19*'Product benefit & adoption'!$P19/1000000,'Product benefit & adoption'!$G$4="2020-25",'Product benefit & adoption'!AW19*'Product benefit & adoption'!$N19/1000000,'Product benefit & adoption'!$G$4="2015-20",'Product benefit & adoption'!AW19*'Product benefit & adoption'!$L19/1000000) -> 0 | AC14: =_xlfn.IFS('Product benefit & adoption'!$G$4="ALL",'Product benefit & adoption'!AX19*'Product benefit & adoption'!$P19/1000000,'Product benefit & adoption'!$G$4="2020-25",'Product benefit & adoption'!AX19*'Product benefit & adoption'!$N19/1000000,'Product benefit & adoption'!$G$4="2015-20",'Product benefit & adoption'!AX19*'Product benefit & adoption'!$L19/1000000) -> 0 | AD14: =_xlfn.IFS('Product benefit & adoption'!$G$4="ALL",'Product benefit & adoption'!AY19*'Product benefit & adoption'!$P19/1000000,'Product benefit & adoption'!$G$4="2020-25",'Product benefit & adoption'!AY19*'Product benefit & adoption'!$N19/1000000,'Product benefit & adoption'!$G$4="2015-20",'Product benefit & adoption'!AY19*'Product benefit & adoption'!$L19/1000000) -> 0 | AE14: =_xlfn.IFS('Product benefit & adoption'!$G$4="ALL",'Product benefit & adoption'!AZ19*'Product benefit & adoption'!$P19/1000000,'Product benefit & adoption'!$G$4="2020-25",'Product benefit & adoption'!AZ19*'Product benefit & adoption'!$N19/1000000,'Product benefit & adoption'!$G$4="2015-20",'Product benefit & adoption'!AZ19*'Product benefit & adoption'!$L19/1000000) -> 0 | AF14: =_xlfn.IFS('Product benefit & adoption'!$G$4="ALL",'Product benefit & adoption'!BA19*'Product benefit & adoption'!$P19/1000000,'Product benefit & adoption'!$G$4="2020-25",'Product benefit & adoption'!BA19*'Product benefit & adoption'!$N19/1000000,'Product benefit & adoption'!$G$4="2015-20",'Product benefit & adoption'!BA19*'Product benefit & adoption'!$L19/1000000) -> 0 | AG14: =_xlfn.IFS('Product benefit & adoption'!$G$4="ALL",'Product benefit & adoption'!BB19*'Product benefit & adoption'!$P19/1000000,'Product benefit & adoption'!$G$4="2020-25",'Product benefit & adoption'!BB19*'Product benefit & adoption'!$N19/1000000,'Product benefit & adoption'!$G$4="2015-20",'Product benefit & adoption'!BB19*'Product benefit & adoption'!$L19/1000000) -> 0 | AH14: =_xlfn.IFS('Product benefit & adoption'!$G$4="ALL",'Product benefit & adoption'!BC19*'Product benefit & adoption'!$P19/1000000,'Product benefit & adoption'!$G$4="2020-25",'Product benefit & adoption'!BC19*'Product benefit & adoption'!$N19/1000000,'Product benefit & adoption'!$G$4="2015-20",'Product benefit & adoption'!BC19*'Product benefit & adoption'!$L19/1000000) -> 0 | AI14: =_xlfn.IFS('Product benefit & adoption'!$G$4="ALL",'Product benefit & adoption'!BD19*'Product benefit & adoption'!$P19/1000000,'Product benefit & adoption'!$G$4="2020-25",'Product benefit & adoption'!BD19*'Product benefit & adoption'!$N19/1000000,'Product benefit & adoption'!$G$4="2015-20",'Product benefit & adoption'!BD19*'Product benefit & adoption'!$L19/1000000) -> 0
B15: 10 | C15: =IF('Product benefit & adoption'!D20="","",'Product benefit & adoption'!D20) ->  | D15: =IF('Product benefit & adoption'!F20="","",'Product benefit & adoption'!F20) ->  | E15: 0 | F15: =_xlfn.IFS('Product benefit & adoption'!$G$4="ALL",'Product benefit & adoption'!AA20*'Product benefit & adoption'!$P20/1000000,'Product benefit & adoption'!$G$4="2020-25",'Product benefit & adoption'!AA20*'Product benefit & adoption'!$N20/1000000,'Product benefit & adoption'!$G$4="2015-20",'Product benefit & adoption'!AA20*'Product benefit & adoption'!$L20/1000000) -> 0 | G15: =_xlfn.IFS('Product benefit & adoption'!$G$4="ALL",'Product benefit & adoption'!AB20*'Product benefit & adoption'!$P20/1000000,'Product benefit & adoption'!$G$4="2020-25",'Product benefit & adoption'!AB20*'Product benefit & adoption'!$N20/1000000,'Product benefit & adoption'!$G$4="2015-20",'Product benefit & adoption'!AB20*'Product benefit & adoption'!$L20/1000000) -> 0 | H15: =_xlfn.IFS('Product benefit & adoption'!$G$4="ALL",'Product benefit & adoption'!AC20*'Product benefit & adoption'!$P20/1000000,'Product benefit & adoption'!$G$4="2020-25",'Product benefit & adoption'!AC20*'Product benefit & adoption'!$N20/1000000,'Product benefit & adoption'!$G$4="2015-20",'Product benefit & adoption'!AC20*'Product benefit & adoption'!$L20/1000000) -> 0 | I15: =_xlfn.IFS('Product benefit & adoption'!$G$4="ALL",'Product benefit & adoption'!AD20*'Product benefit & adoption'!$P20/1000000,'Product benefit & adoption'!$G$4="2020-25",'Product benefit & adoption'!AD20*'Product benefit & adoption'!$N20/1000000,'Product benefit & adoption'!$G$4="2015-20",'Product benefit & adoption'!AD20*'Product benefit & adoption'!$L20/1000000) -> 0 | J15: =_xlfn.IFS('Product benefit & adoption'!$G$4="ALL",'Product benefit & adoption'!AE20*'Product benefit & adoption'!$P20/1000000,'Product benefit & adoption'!$G$4="2020-25",'Product benefit & adoption'!AE20*'Product benefit & adoption'!$N20/1000000,'Product benefit & adoption'!$G$4="2015-20",'Product benefit & adoption'!AE20*'Product benefit & adoption'!$L20/1000000) -> 0 | K15: =_xlfn.IFS('Product benefit & adoption'!$G$4="ALL",'Product benefit & adoption'!AF20*'Product benefit & adoption'!$P20/1000000,'Product benefit & adoption'!$G$4="2020-25",'Product benefit & adoption'!AF20*'Product benefit & adoption'!$N20/1000000,'Product benefit & adoption'!$G$4="2015-20",'Product benefit & adoption'!AF20*'Product benefit & adoption'!$L20/1000000) -> 0 | L15: =_xlfn.IFS('Product benefit & adoption'!$G$4="ALL",'Product benefit & adoption'!AG20*'Product benefit & adoption'!$P20/1000000,'Product benefit & adoption'!$G$4="2020-25",'Product benefit & adoption'!AG20*'Product benefit & adoption'!$N20/1000000,'Product benefit & adoption'!$G$4="2015-20",'Product benefit & adoption'!AG20*'Product benefit & adoption'!$L20/1000000) -> 0 | M15: =_xlfn.IFS('Product benefit & adoption'!$G$4="ALL",'Product benefit & adoption'!AH20*'Product benefit & adoption'!$P20/1000000,'Product benefit & adoption'!$G$4="2020-25",'Product benefit & adoption'!AH20*'Product benefit & adoption'!$N20/1000000,'Product benefit & adoption'!$G$4="2015-20",'Product benefit & adoption'!AH20*'Product benefit & adoption'!$L20/1000000) -> 0 | N15: =_xlfn.IFS('Product benefit & adoption'!$G$4="ALL",'Product benefit & adoption'!AI20*'Product benefit & adoption'!$P20/1000000,'Product benefit & adoption'!$G$4="2020-25",'Product benefit & adoption'!AI20*'Product benefit & adoption'!$N20/1000000,'Product benefit & adoption'!$G$4="2015-20",'Product benefit & adoption'!AI20*'Product benefit & adoption'!$L20/1000000) -> 0 | O15: =_xlfn.IFS('Product benefit & adoption'!$G$4="ALL",'Product benefit & adoption'!AJ20*'Product benefit & adoption'!$P20/1000000,'Product benefit & adoption'!$G$4="2020-25",'Product benefit & adoption'!AJ20*'Product benefit & adoption'!$N20/1000000,'Product benefit & adoption'!$G$4="2015-20",'Product benefit & adoption'!AJ20*'Product benefit & adoption'!$L20/1000000) -> 0 | P15: =_xlfn.IFS('Product benefit & adoption'!$G$4="ALL",'Product benefit & adoption'!AK20*'Product benefit & adoption'!$P20/1000000,'Product benefit & adoption'!$G$4="2020-25",'Product benefit & adoption'!AK20*'Product benefit & adoption'!$N20/1000000,'Product benefit & adoption'!$G$4="2015-20",'Product benefit & adoption'!AK20*'Product benefit & adoption'!$L20/1000000) -> 0 | Q15: =_xlfn.IFS('Product benefit & adoption'!$G$4="ALL",'Product benefit & adoption'!AL20*'Product benefit & adoption'!$P20/1000000,'Product benefit & adoption'!$G$4="2020-25",'Product benefit & adoption'!AL20*'Product benefit & adoption'!$N20/1000000,'Product benefit & adoption'!$G$4="2015-20",'Product benefit & adoption'!AL20*'Product benefit & adoption'!$L20/1000000) -> 0 | R15: =_xlfn.IFS('Product benefit & adoption'!$G$4="ALL",'Product benefit & adoption'!AM20*'Product benefit & adoption'!$P20/1000000,'Product benefit & adoption'!$G$4="2020-25",'Product benefit & adoption'!AM20*'Product benefit & adoption'!$N20/1000000,'Product benefit & adoption'!$G$4="2015-20",'Product benefit & adoption'!AM20*'Product benefit & adoption'!$L20/1000000) -> 0 | S15: =_xlfn.IFS('Product benefit & adoption'!$G$4="ALL",'Product benefit & adoption'!AN20*'Product benefit & adoption'!$P20/1000000,'Product benefit & adoption'!$G$4="2020-25",'Product benefit & adoption'!AN20*'Product benefit & adoption'!$N20/1000000,'Product benefit & adoption'!$G$4="2015-20",'Product benefit & adoption'!AN20*'Product benefit & adoption'!$L20/1000000) -> 0 | T15: =_xlfn.IFS('Product benefit & adoption'!$G$4="ALL",'Product benefit & adoption'!AO20*'Product benefit & adoption'!$P20/1000000,'Product benefit & adoption'!$G$4="2020-25",'Product benefit & adoption'!AO20*'Product benefit & adoption'!$N20/1000000,'Product benefit & adoption'!$G$4="2015-20",'Product benefit & adoption'!AO20*'Product benefit & adoption'!$L20/1000000) -> 0 | U15: =_xlfn.IFS('Product benefit & adoption'!$G$4="ALL",'Product benefit & adoption'!AP20*'Product benefit & adoption'!$P20/1000000,'Product benefit & adoption'!$G$4="2020-25",'Product benefit & adoption'!AP20*'Product benefit & adoption'!$N20/1000000,'Product benefit & adoption'!$G$4="2015-20",'Product benefit & adoption'!AP20*'Product benefit & adoption'!$L20/1000000) -> 0 | V15: =_xlfn.IFS('Product benefit & adoption'!$G$4="ALL",'Product benefit & adoption'!AQ20*'Product benefit & adoption'!$P20/1000000,'Product benefit & adoption'!$G$4="2020-25",'Product benefit & adoption'!AQ20*'Product benefit & adoption'!$N20/1000000,'Product benefit & adoption'!$G$4="2015-20",'Product benefit & adoption'!AQ20*'Product benefit & adoption'!$L20/1000000) -> 0 | W15: =_xlfn.IFS('Product benefit & adoption'!$G$4="ALL",'Product benefit & adoption'!AR20*'Product benefit & adoption'!$P20/1000000,'Product benefit & adoption'!$G$4="2020-25",'Product benefit & adoption'!AR20*'Product benefit & adoption'!$N20/1000000,'Product benefit & adoption'!$G$4="2015-20",'Product benefit & adoption'!AR20*'Product benefit & adoption'!$L20/1000000) -> 0 | X15: =_xlfn.IFS('Product benefit & adoption'!$G$4="ALL",'Product benefit & adoption'!AS20*'Product benefit & adoption'!$P20/1000000,'Product benefit & adoption'!$G$4="2020-25",'Product benefit & adoption'!AS20*'Product benefit & adoption'!$N20/1000000,'Product benefit & adoption'!$G$4="2015-20",'Product benefit & adoption'!AS20*'Product benefit & adoption'!$L20/1000000) -> 0 | Y15: =_xlfn.IFS('Product benefit & adoption'!$G$4="ALL",'Product benefit & adoption'!AT20*'Product benefit & adoption'!$P20/1000000,'Product benefit & adoption'!$G$4="2020-25",'Product benefit & adoption'!AT20*'Product benefit & adoption'!$N20/1000000,'Product benefit & adoption'!$G$4="2015-20",'Product benefit & adoption'!AT20*'Product benefit & adoption'!$L20/1000000) -> 0 | Z15: =_xlfn.IFS('Product benefit & adoption'!$G$4="ALL",'Product benefit & adoption'!AU20*'Product benefit & adoption'!$P20/1000000,'Product benefit & adoption'!$G$4="2020-25",'Product benefit & adoption'!AU20*'Product benefit & adoption'!$N20/1000000,'Product benefit & adoption'!$G$4="2015-20",'Product benefit & adoption'!AU20*'Product benefit & adoption'!$L20/1000000) -> 0 | AA15: =_xlfn.IFS('Product benefit & adoption'!$G$4="ALL",'Product benefit & adoption'!AV20*'Product benefit & adoption'!$P20/1000000,'Product benefit & adoption'!$G$4="2020-25",'Product benefit & adoption'!AV20*'Product benefit & adoption'!$N20/1000000,'Product benefit & adoption'!$G$4="2015-20",'Product benefit & adoption'!AV20*'Product benefit & adoption'!$L20/1000000) -> 0 | AB15: =_xlfn.IFS('Product benefit & adoption'!$G$4="ALL",'Product benefit & adoption'!AW20*'Product benefit & adoption'!$P20/1000000,'Product benefit & adoption'!$G$4="2020-25",'Product benefit & adoption'!AW20*'Product benefit & adoption'!$N20/1000000,'Product benefit & adoption'!$G$4="2015-20",'Product benefit & adoption'!AW20*'Product benefit & adoption'!$L20/1000000) -> 0 | AC15: =_xlfn.IFS('Product benefit & adoption'!$G$4="ALL",'Product benefit & adoption'!AX20*'Product benefit & adoption'!$P20/1000000,'Product benefit & adoption'!$G$4="2020-25",'Product benefit & adoption'!AX20*'Product benefit & adoption'!$N20/1000000,'Product benefit & adoption'!$G$4="2015-20",'Product benefit & adoption'!AX20*'Product benefit & adoption'!$L20/1000000) -> 0 | AD15: =_xlfn.IFS('Product benefit & adoption'!$G$4="ALL",'Product benefit & adoption'!AY20*'Product benefit & adoption'!$P20/1000000,'Product benefit & adoption'!$G$4="2020-25",'Product benefit & adoption'!AY20*'Product benefit & adoption'!$N20/1000000,'Product benefit & adoption'!$G$4="2015-20",'Product benefit & adoption'!AY20*'Product benefit & adoption'!$L20/1000000) -> 0 | AE15: =_xlfn.IFS('Product benefit & adoption'!$G$4="ALL",'Product benefit & adoption'!AZ20*'Product benefit & adoption'!$P20/1000000,'Product benefit & adoption'!$G$4="2020-25",'Product benefit & adoption'!AZ20*'Product benefit & adoption'!$N20/1000000,'Product benefit & adoption'!$G$4="2015-20",'Product benefit & adoption'!AZ20*'Product benefit & adoption'!$L20/1000000) -> 0 | AF15: =_xlfn.IFS('Product benefit & adoption'!$G$4="ALL",'Product benefit & adoption'!BA20*'Product benefit & adoption'!$P20/1000000,'Product benefit & adoption'!$G$4="2020-25",'Product benefit & adoption'!BA20*'Product benefit & adoption'!$N20/1000000,'Product benefit & adoption'!$G$4="2015-20",'Product benefit & adoption'!BA20*'Product benefit & adoption'!$L20/1000000) -> 0 | AG15: =_xlfn.IFS('Product benefit & adoption'!$G$4="ALL",'Product benefit & adoption'!BB20*'Product benefit & adoption'!$P20/1000000,'Product benefit & adoption'!$G$4="2020-25",'Product benefit & adoption'!BB20*'Product benefit & adoption'!$N20/1000000,'Product benefit & adoption'!$G$4="2015-20",'Product benefit & adoption'!BB20*'Product benefit & adoption'!$L20/1000000) -> 0 | AH15: =_xlfn.IFS('Product benefit & adoption'!$G$4="ALL",'Product benefit & adoption'!BC20*'Product benefit & adoption'!$P20/1000000,'Product benefit & adoption'!$G$4="2020-25",'Product benefit & adoption'!BC20*'Product benefit & adoption'!$N20/1000000,'Product benefit & adoption'!$G$4="2015-20",'Product benefit & adoption'!BC20*'Product benefit & adoption'!$L20/1000000) -> 0 | AI15: =_xlfn.IFS('Product benefit & adoption'!$G$4="ALL",'Product benefit & adoption'!BD20*'Product benefit & adoption'!$P20/1000000,'Product benefit & adoption'!$G$4="2020-25",'Product benefit & adoption'!BD20*'Product benefit & adoption'!$N20/1000000,'Product benefit & adoption'!$G$4="2015-20",'Product benefit & adoption'!BD20*'Product benefit & adoption'!$L20/1000000) -> 0
B16: 11 | C16: =IF('Product benefit & adoption'!D21="","",'Product benefit & adoption'!D21) ->  | D16: =IF('Product benefit & adoption'!F21="","",'Product benefit & adoption'!F21) ->  | E16: 0 | F16: =_xlfn.IFS('Product benefit & adoption'!$G$4="ALL",'Product benefit & adoption'!AA21*'Product benefit & adoption'!$P21/1000000,'Product benefit & adoption'!$G$4="2020-25",'Product benefit & adoption'!AA21*'Product benefit & adoption'!$N21/1000000,'Product benefit & adoption'!$G$4="2015-20",'Product benefit & adoption'!AA21*'Product benefit & adoption'!$L21/1000000) -> 0 | G16: =_xlfn.IFS('Product benefit & adoption'!$G$4="ALL",'Product benefit & adoption'!AB21*'Product benefit & adoption'!$P21/1000000,'Product benefit & adoption'!$G$4="2020-25",'Product benefit & adoption'!AB21*'Product benefit & adoption'!$N21/1000000,'Product benefit & adoption'!$G$4="2015-20",'Product benefit & adoption'!AB21*'Product benefit & adoption'!$L21/1000000) -> 0 | H16: =_xlfn.IFS('Product benefit & adoption'!$G$4="ALL",'Product benefit & adoption'!AC21*'Product benefit & adoption'!$P21/1000000,'Product benefit & adoption'!$G$4="2020-25",'Product benefit & adoption'!AC21*'Product benefit & adoption'!$N21/1000000,'Product benefit & adoption'!$G$4="2015-20",'Product benefit & adoption'!AC21*'Product benefit & adoption'!$L21/1000000) -> 0 | I16: =_xlfn.IFS('Product benefit & adoption'!$G$4="ALL",'Product benefit & adoption'!AD21*'Product benefit & adoption'!$P21/1000000,'Product benefit & adoption'!$G$4="2020-25",'Product benefit & adoption'!AD21*'Product benefit & adoption'!$N21/1000000,'Product benefit & adoption'!$G$4="2015-20",'Product benefit & adoption'!AD21*'Product benefit & adoption'!$L21/1000000) -> 0 | J16: =_xlfn.IFS('Product benefit & adoption'!$G$4="ALL",'Product benefit & adoption'!AE21*'Product benefit & adoption'!$P21/1000000,'Product benefit & adoption'!$G$4="2020-25",'Product benefit & adoption'!AE21*'Product benefit & adoption'!$N21/1000000,'Product benefit & adoption'!$G$4="2015-20",'Product benefit & adoption'!AE21*'Product benefit & adoption'!$L21/1000000) -> 0 | K16: =_xlfn.IFS('Product benefit & adoption'!$G$4="ALL",'Product benefit & adoption'!AF21*'Product benefit & adoption'!$P21/1000000,'Product benefit & adoption'!$G$4="2020-25",'Product benefit & adoption'!AF21*'Product benefit & adoption'!$N21/1000000,'Product benefit & adoption'!$G$4="2015-20",'Product benefit & adoption'!AF21*'Product benefit & adoption'!$L21/1000000) -> 0 | L16: =_xlfn.IFS('Product benefit & adoption'!$G$4="ALL",'Product benefit & adoption'!AG21*'Product benefit & adoption'!$P21/1000000,'Product benefit & adoption'!$G$4="2020-25",'Product benefit & adoption'!AG21*'Product benefit & adoption'!$N21/1000000,'Product benefit & adoption'!$G$4="2015-20",'Product benefit & adoption'!AG21*'Product benefit & adoption'!$L21/1000000) -> 0 | M16: =_xlfn.IFS('Product benefit & adoption'!$G$4="ALL",'Product benefit & adoption'!AH21*'Product benefit & adoption'!$P21/1000000,'Product benefit & adoption'!$G$4="2020-25",'Product benefit & adoption'!AH21*'Product benefit & adoption'!$N21/1000000,'Product benefit & adoption'!$G$4="2015-20",'Product benefit & adoption'!AH21*'Product benefit & adoption'!$L21/1000000) -> 0 | N16: =_xlfn.IFS('Product benefit & adoption'!$G$4="ALL",'Product benefit & adoption'!AI21*'Product benefit & adoption'!$P21/1000000,'Product benefit & adoption'!$G$4="2020-25",'Product benefit & adoption'!AI21*'Product benefit & adoption'!$N21/1000000,'Product benefit & adoption'!$G$4="2015-20",'Product benefit & adoption'!AI21*'Product benefit & adoption'!$L21/1000000) -> 0 | O16: =_xlfn.IFS('Product benefit & adoption'!$G$4="ALL",'Product benefit & adoption'!AJ21*'Product benefit & adoption'!$P21/1000000,'Product benefit & adoption'!$G$4="2020-25",'Product benefit & adoption'!AJ21*'Product benefit & adoption'!$N21/1000000,'Product benefit & adoption'!$G$4="2015-20",'Product benefit & adoption'!AJ21*'Product benefit & adoption'!$L21/1000000) -> 0 | P16: =_xlfn.IFS('Product benefit & adoption'!$G$4="ALL",'Product benefit & adoption'!AK21*'Product benefit & adoption'!$P21/1000000,'Product benefit & adoption'!$G$4="2020-25",'Product benefit & adoption'!AK21*'Product benefit & adoption'!$N21/1000000,'Product benefit & adoption'!$G$4="2015-20",'Product benefit & adoption'!AK21*'Product benefit & adoption'!$L21/1000000) -> 0 | Q16: =_xlfn.IFS('Product benefit & adoption'!$G$4="ALL",'Product benefit & adoption'!AL21*'Product benefit & adoption'!$P21/1000000,'Product benefit & adoption'!$G$4="2020-25",'Product benefit & adoption'!AL21*'Product benefit & adoption'!$N21/1000000,'Product benefit & adoption'!$G$4="2015-20",'Product benefit & adoption'!AL21*'Product benefit & adoption'!$L21/1000000) -> 0 | R16: =_xlfn.IFS('Product benefit & adoption'!$G$4="ALL",'Product benefit & adoption'!AM21*'Product benefit & adoption'!$P21/1000000,'Product benefit & adoption'!$G$4="2020-25",'Product benefit & adoption'!AM21*'Product benefit & adoption'!$N21/1000000,'Product benefit & adoption'!$G$4="2015-20",'Product benefit & adoption'!AM21*'Product benefit & adoption'!$L21/1000000) -> 0 | S16: =_xlfn.IFS('Product benefit & adoption'!$G$4="ALL",'Product benefit & adoption'!AN21*'Product benefit & adoption'!$P21/1000000,'Product benefit & adoption'!$G$4="2020-25",'Product benefit & adoption'!AN21*'Product benefit & adoption'!$N21/1000000,'Product benefit & adoption'!$G$4="2015-20",'Product benefit & adoption'!AN21*'Product benefit & adoption'!$L21/1000000) -> 0 | T16: =_xlfn.IFS('Product benefit & adoption'!$G$4="ALL",'Product benefit & adoption'!AO21*'Product benefit & adoption'!$P21/1000000,'Product benefit & adoption'!$G$4="2020-25",'Product benefit & adoption'!AO21*'Product benefit & adoption'!$N21/1000000,'Product benefit & adoption'!$G$4="2015-20",'Product benefit & adoption'!AO21*'Product benefit & adoption'!$L21/1000000) -> 0 | U16: =_xlfn.IFS('Product benefit & adoption'!$G$4="ALL",'Product benefit & adoption'!AP21*'Product benefit & adoption'!$P21/1000000,'Product benefit & adoption'!$G$4="2020-25",'Product benefit & adoption'!AP21*'Product benefit & adoption'!$N21/1000000,'Product benefit & adoption'!$G$4="2015-20",'Product benefit & adoption'!AP21*'Product benefit & adoption'!$L21/1000000) -> 0 | V16: =_xlfn.IFS('Product benefit & adoption'!$G$4="ALL",'Product benefit & adoption'!AQ21*'Product benefit & adoption'!$P21/1000000,'Product benefit & adoption'!$G$4="2020-25",'Product benefit & adoption'!AQ21*'Product benefit & adoption'!$N21/1000000,'Product benefit & adoption'!$G$4="2015-20",'Product benefit & adoption'!AQ21*'Product benefit & adoption'!$L21/1000000) -> 0 | W16: =_xlfn.IFS('Product benefit & adoption'!$G$4="ALL",'Product benefit & adoption'!AR21*'Product benefit & adoption'!$P21/1000000,'Product benefit & adoption'!$G$4="2020-25",'Product benefit & adoption'!AR21*'Product benefit & adoption'!$N21/1000000,'Product benefit & adoption'!$G$4="2015-20",'Product benefit & adoption'!AR21*'Product benefit & adoption'!$L21/1000000) -> 0 | X16: =_xlfn.IFS('Product benefit & adoption'!$G$4="ALL",'Product benefit & adoption'!AS21*'Product benefit & adoption'!$P21/1000000,'Product benefit & adoption'!$G$4="2020-25",'Product benefit & adoption'!AS21*'Product benefit & adoption'!$N21/1000000,'Product benefit & adoption'!$G$4="2015-20",'Product benefit & adoption'!AS21*'Product benefit & adoption'!$L21/1000000) -> 0 | Y16: =_xlfn.IFS('Product benefit & adoption'!$G$4="ALL",'Product benefit & adoption'!AT21*'Product benefit & adoption'!$P21/1000000,'Product benefit & adoption'!$G$4="2020-25",'Product benefit & adoption'!AT21*'Product benefit & adoption'!$N21/1000000,'Product benefit & adoption'!$G$4="2015-20",'Product benefit & adoption'!AT21*'Product benefit & adoption'!$L21/1000000) -> 0 | Z16: =_xlfn.IFS('Product benefit & adoption'!$G$4="ALL",'Product benefit & adoption'!AU21*'Product benefit & adoption'!$P21/1000000,'Product benefit & adoption'!$G$4="2020-25",'Product benefit & adoption'!AU21*'Product benefit & adoption'!$N21/1000000,'Product benefit & adoption'!$G$4="2015-20",'Product benefit & adoption'!AU21*'Product benefit & adoption'!$L21/1000000) -> 0 | AA16: =_xlfn.IFS('Product benefit & adoption'!$G$4="ALL",'Product benefit & adoption'!AV21*'Product benefit & adoption'!$P21/1000000,'Product benefit & adoption'!$G$4="2020-25",'Product benefit & adoption'!AV21*'Product benefit & adoption'!$N21/1000000,'Product benefit & adoption'!$G$4="2015-20",'Product benefit & adoption'!AV21*'Product benefit & adoption'!$L21/1000000) -> 0 | AB16: =_xlfn.IFS('Product benefit & adoption'!$G$4="ALL",'Product benefit & adoption'!AW21*'Product benefit & adoption'!$P21/1000000,'Product benefit & adoption'!$G$4="2020-25",'Product benefit & adoption'!AW21*'Product benefit & adoption'!$N21/1000000,'Product benefit & adoption'!$G$4="2015-20",'Product benefit & adoption'!AW21*'Product benefit & adoption'!$L21/1000000) -> 0 | AC16: =_xlfn.IFS('Product benefit & adoption'!$G$4="ALL",'Product benefit & adoption'!AX21*'Product benefit & adoption'!$P21/1000000,'Product benefit & adoption'!$G$4="2020-25",'Product benefit & adoption'!AX21*'Product benefit & adoption'!$N21/1000000,'Product benefit & adoption'!$G$4="2015-20",'Product benefit & adoption'!AX21*'Product benefit & adoption'!$L21/1000000) -> 0 | AD16: =_xlfn.IFS('Product benefit & adoption'!$G$4="ALL",'Product benefit & adoption'!AY21*'Product benefit & adoption'!$P21/1000000,'Product benefit & adoption'!$G$4="2020-25",'Product benefit & adoption'!AY21*'Product benefit & adoption'!$N21/1000000,'Product benefit & adoption'!$G$4="2015-20",'Product benefit & adoption'!AY21*'Product benefit & adoption'!$L21/1000000) -> 0 | AE16: =_xlfn.IFS('Product benefit & adoption'!$G$4="ALL",'Product benefit & adoption'!AZ21*'Product benefit & adoption'!$P21/1000000,'Product benefit & adoption'!$G$4="2020-25",'Product benefit & adoption'!AZ21*'Product benefit & adoption'!$N21/1000000,'Product benefit & adoption'!$G$4="2015-20",'Product benefit & adoption'!AZ21*'Product benefit & adoption'!$L21/1000000) -> 0 | AF16: =_xlfn.IFS('Product benefit & adoption'!$G$4="ALL",'Product benefit & adoption'!BA21*'Product benefit & adoption'!$P21/1000000,'Product benefit & adoption'!$G$4="2020-25",'Product benefit & adoption'!BA21*'Product benefit & adoption'!$N21/1000000,'Product benefit & adoption'!$G$4="2015-20",'Product benefit & adoption'!BA21*'Product benefit & adoption'!$L21/1000000) -> 0 | AG16: =_xlfn.IFS('Product benefit & adoption'!$G$4="ALL",'Product benefit & adoption'!BB21*'Product benefit & adoption'!$P21/1000000,'Product benefit & adoption'!$G$4="2020-25",'Product benefit & adoption'!BB21*'Product benefit & adoption'!$N21/1000000,'Product benefit & adoption'!$G$4="2015-20",'Product benefit & adoption'!BB21*'Product benefit & adoption'!$L21/1000000) -> 0 | AH16: =_xlfn.IFS('Product benefit & adoption'!$G$4="ALL",'Product benefit & adoption'!BC21*'Product benefit & adoption'!$P21/1000000,'Product benefit & adoption'!$G$4="2020-25",'Product benefit & adoption'!BC21*'Product benefit & adoption'!$N21/1000000,'Product benefit & adoption'!$G$4="2015-20",'Product benefit & adoption'!BC21*'Product benefit & adoption'!$L21/1000000) -> 0 | AI16: =_xlfn.IFS('Product benefit & adoption'!$G$4="ALL",'Product benefit & adoption'!BD21*'Product benefit & adoption'!$P21/1000000,'Product benefit & adoption'!$G$4="2020-25",'Product benefit & adoption'!BD21*'Product benefit & adoption'!$N21/1000000,'Product benefit & adoption'!$G$4="2015-20",'Product benefit & adoption'!BD21*'Product benefit & adoption'!$L21/1000000) -> 0
B17: 12 | C17: =IF('Product benefit & adoption'!D22="","",'Product benefit & adoption'!D22) ->  | D17: =IF('Product benefit & adoption'!F22="","",'Product benefit & adoption'!F22) ->  | E17: 0 | F17: =_xlfn.IFS('Product benefit & adoption'!$G$4="ALL",'Product benefit & adoption'!AA22*'Product benefit & adoption'!$P22/1000000,'Product benefit & adoption'!$G$4="2020-25",'Product benefit & adoption'!AA22*'Product benefit & adoption'!$N22/1000000,'Product benefit & adoption'!$G$4="2015-20",'Product benefit & adoption'!AA22*'Product benefit & adoption'!$L22/1000000) -> 0 | G17: =_xlfn.IFS('Product benefit & adoption'!$G$4="ALL",'Product benefit & adoption'!AB22*'Product benefit & adoption'!$P22/1000000,'Product benefit & adoption'!$G$4="2020-25",'Product benefit & adoption'!AB22*'Product benefit & adoption'!$N22/1000000,'Product benefit & adoption'!$G$4="2015-20",'Product benefit & adoption'!AB22*'Product benefit & adoption'!$L22/1000000) -> 0 | H17: =_xlfn.IFS('Product benefit & adoption'!$G$4="ALL",'Product benefit & adoption'!AC22*'Product benefit & adoption'!$P22/1000000,'Product benefit & adoption'!$G$4="2020-25",'Product benefit & adoption'!AC22*'Product benefit & adoption'!$N22/1000000,'Product benefit & adoption'!$G$4="2015-20",'Product benefit & adoption'!AC22*'Product benefit & adoption'!$L22/1000000) -> 0 | I17: =_xlfn.IFS('Product benefit & adoption'!$G$4="ALL",'Product benefit & adoption'!AD22*'Product benefit & adoption'!$P22/1000000,'Product benefit & adoption'!$G$4="2020-25",'Product benefit & adoption'!AD22*'Product benefit & adoption'!$N22/1000000,'Product benefit & adoption'!$G$4="2015-20",'Product benefit & adoption'!AD22*'Product benefit & adoption'!$L22/1000000) -> 0 | J17: =_xlfn.IFS('Product benefit & adoption'!$G$4="ALL",'Product benefit & adoption'!AE22*'Product benefit & adoption'!$P22/1000000,'Product benefit & adoption'!$G$4="2020-25",'Product benefit & adoption'!AE22*'Product benefit & adoption'!$N22/1000000,'Product benefit & adoption'!$G$4="2015-20",'Product benefit & adoption'!AE22*'Product benefit & adoption'!$L22/1000000) -> 0 | K17: =_xlfn.IFS('Product benefit & adoption'!$G$4="ALL",'Product benefit & adoption'!AF22*'Product benefit & adoption'!$P22/1000000,'Product benefit & adoption'!$G$4="2020-25",'Product benefit & adoption'!AF22*'Product benefit & adoption'!$N22/1000000,'Product benefit & adoption'!$G$4="2015-20",'Product benefit & adoption'!AF22*'Product benefit & adoption'!$L22/1000000) -> 0 | L17: =_xlfn.IFS('Product benefit & adoption'!$G$4="ALL",'Product benefit & adoption'!AG22*'Product benefit & adoption'!$P22/1000000,'Product benefit & adoption'!$G$4="2020-25",'Product benefit & adoption'!AG22*'Product benefit & adoption'!$N22/1000000,'Product benefit & adoption'!$G$4="2015-20",'Product benefit & adoption'!AG22*'Product benefit & adoption'!$L22/1000000) -> 0 | M17: =_xlfn.IFS('Product benefit & adoption'!$G$4="ALL",'Product benefit & adoption'!AH22*'Product benefit & adoption'!$P22/1000000,'Product benefit & adoption'!$G$4="2020-25",'Product benefit & adoption'!AH22*'Product benefit & adoption'!$N22/1000000,'Product benefit & adoption'!$G$4="2015-20",'Product benefit & adoption'!AH22*'Product benefit & adoption'!$L22/1000000) -> 0 | N17: =_xlfn.IFS('Product benefit & adoption'!$G$4="ALL",'Product benefit & adoption'!AI22*'Product benefit & adoption'!$P22/1000000,'Product benefit & adoption'!$G$4="2020-25",'Product benefit & adoption'!AI22*'Product benefit & adoption'!$N22/1000000,'Product benefit & adoption'!$G$4="2015-20",'Product benefit & adoption'!AI22*'Product benefit & adoption'!$L22/1000000) -> 0 | O17: =_xlfn.IFS('Product benefit & adoption'!$G$4="ALL",'Product benefit & adoption'!AJ22*'Product benefit & adoption'!$P22/1000000,'Product benefit & adoption'!$G$4="2020-25",'Product benefit & adoption'!AJ22*'Product benefit & adoption'!$N22/1000000,'Product benefit & adoption'!$G$4="2015-20",'Product benefit & adoption'!AJ22*'Product benefit & adoption'!$L22/1000000) -> 0 | P17: =_xlfn.IFS('Product benefit & adoption'!$G$4="ALL",'Product benefit & adoption'!AK22*'Product benefit & adoption'!$P22/1000000,'Product benefit & adoption'!$G$4="2020-25",'Product benefit & adoption'!AK22*'Product benefit & adoption'!$N22/1000000,'Product benefit & adoption'!$G$4="2015-20",'Product benefit & adoption'!AK22*'Product benefit & adoption'!$L22/1000000) -> 0 | Q17: =_xlfn.IFS('Product benefit & adoption'!$G$4="ALL",'Product benefit & adoption'!AL22*'Product benefit & adoption'!$P22/1000000,'Product benefit & adoption'!$G$4="2020-25",'Product benefit & adoption'!AL22*'Product benefit & adoption'!$N22/1000000,'Product benefit & adoption'!$G$4="2015-20",'Product benefit & adoption'!AL22*'Product benefit & adoption'!$L22/1000000) -> 0 | R17: =_xlfn.IFS('Product benefit & adoption'!$G$4="ALL",'Product benefit & adoption'!AM22*'Product benefit & adoption'!$P22/1000000,'Product benefit & adoption'!$G$4="2020-25",'Product benefit & adoption'!AM22*'Product benefit & adoption'!$N22/1000000,'Product benefit & adoption'!$G$4="2015-20",'Product benefit & adoption'!AM22*'Product benefit & adoption'!$L22/1000000) -> 0 | S17: =_xlfn.IFS('Product benefit & adoption'!$G$4="ALL",'Product benefit & adoption'!AN22*'Product benefit & adoption'!$P22/1000000,'Product benefit & adoption'!$G$4="2020-25",'Product benefit & adoption'!AN22*'Product benefit & adoption'!$N22/1000000,'Product benefit & adoption'!$G$4="2015-20",'Product benefit & adoption'!AN22*'Product benefit & adoption'!$L22/1000000) -> 0 | T17: =_xlfn.IFS('Product benefit & adoption'!$G$4="ALL",'Product benefit & adoption'!AO22*'Product benefit & adoption'!$P22/1000000,'Product benefit & adoption'!$G$4="2020-25",'Product benefit & adoption'!AO22*'Product benefit & adoption'!$N22/1000000,'Product benefit & adoption'!$G$4="2015-20",'Product benefit & adoption'!AO22*'Product benefit & adoption'!$L22/1000000) -> 0 | U17: =_xlfn.IFS('Product benefit & adoption'!$G$4="ALL",'Product benefit & adoption'!AP22*'Product benefit & adoption'!$P22/1000000,'Product benefit & adoption'!$G$4="2020-25",'Product benefit & adoption'!AP22*'Product benefit & adoption'!$N22/1000000,'Product benefit & adoption'!$G$4="2015-20",'Product benefit & adoption'!AP22*'Product benefit & adoption'!$L22/1000000) -> 0 | V17: =_xlfn.IFS('Product benefit & adoption'!$G$4="ALL",'Product benefit & adoption'!AQ22*'Product benefit & adoption'!$P22/1000000,'Product benefit & adoption'!$G$4="2020-25",'Product benefit & adoption'!AQ22*'Product benefit & adoption'!$N22/1000000,'Product benefit & adoption'!$G$4="2015-20",'Product benefit & adoption'!AQ22*'Product benefit & adoption'!$L22/1000000) -> 0 | W17: =_xlfn.IFS('Product benefit & adoption'!$G$4="ALL",'Product benefit & adoption'!AR22*'Product benefit & adoption'!$P22/1000000,'Product benefit & adoption'!$G$4="2020-25",'Product benefit & adoption'!AR22*'Product benefit & adoption'!$N22/1000000,'Product benefit & adoption'!$G$4="2015-20",'Product benefit & adoption'!AR22*'Product benefit & adoption'!$L22/1000000) -> 0 | X17: =_xlfn.IFS('Product benefit & adoption'!$G$4="ALL",'Product benefit & adoption'!AS22*'Product benefit & adoption'!$P22/1000000,'Product benefit & adoption'!$G$4="2020-25",'Product benefit & adoption'!AS22*'Product benefit & adoption'!$N22/1000000,'Product benefit & adoption'!$G$4="2015-20",'Product benefit & adoption'!AS22*'Product benefit & adoption'!$L22/1000000) -> 0 | Y17: =_xlfn.IFS('Product benefit & adoption'!$G$4="ALL",'Product benefit & adoption'!AT22*'Product benefit & adoption'!$P22/1000000,'Product benefit & adoption'!$G$4="2020-25",'Product benefit & adoption'!AT22*'Product benefit & adoption'!$N22/1000000,'Product benefit & adoption'!$G$4="2015-20",'Product benefit & adoption'!AT22*'Product benefit & adoption'!$L22/1000000) -> 0 | Z17: =_xlfn.IFS('Product benefit & adoption'!$G$4="ALL",'Product benefit & adoption'!AU22*'Product benefit & adoption'!$P22/1000000,'Product benefit & adoption'!$G$4="2020-25",'Product benefit & adoption'!AU22*'Product benefit & adoption'!$N22/1000000,'Product benefit & adoption'!$G$4="2015-20",'Product benefit & adoption'!AU22*'Product benefit & adoption'!$L22/1000000) -> 0 | AA17: =_xlfn.IFS('Product benefit & adoption'!$G$4="ALL",'Product benefit & adoption'!AV22*'Product benefit & adoption'!$P22/1000000,'Product benefit & adoption'!$G$4="2020-25",'Product benefit & adoption'!AV22*'Product benefit & adoption'!$N22/1000000,'Product benefit & adoption'!$G$4="2015-20",'Product benefit & adoption'!AV22*'Product benefit & adoption'!$L22/1000000) -> 0 | AB17: =_xlfn.IFS('Product benefit & adoption'!$G$4="ALL",'Product benefit & adoption'!AW22*'Product benefit & adoption'!$P22/1000000,'Product benefit & adoption'!$G$4="2020-25",'Product benefit & adoption'!AW22*'Product benefit & adoption'!$N22/1000000,'Product benefit & adoption'!$G$4="2015-20",'Product benefit & adoption'!AW22*'Product benefit & adoption'!$L22/1000000) -> 0 | AC17: =_xlfn.IFS('Product benefit & adoption'!$G$4="ALL",'Product benefit & adoption'!AX22*'Product benefit & adoption'!$P22/1000000,'Product benefit & adoption'!$G$4="2020-25",'Product benefit & adoption'!AX22*'Product benefit & adoption'!$N22/1000000,'Product benefit & adoption'!$G$4="2015-20",'Product benefit & adoption'!AX22*'Product benefit & adoption'!$L22/1000000) -> 0 | AD17: =_xlfn.IFS('Product benefit & adoption'!$G$4="ALL",'Product benefit & adoption'!AY22*'Product benefit & adoption'!$P22/1000000,'Product benefit & adoption'!$G$4="2020-25",'Product benefit & adoption'!AY22*'Product benefit & adoption'!$N22/1000000,'Product benefit & adoption'!$G$4="2015-20",'Product benefit & adoption'!AY22*'Product benefit & adoption'!$L22/1000000) -> 0 | AE17: =_xlfn.IFS('Product benefit & adoption'!$G$4="ALL",'Product benefit & adoption'!AZ22*'Product benefit & adoption'!$P22/1000000,'Product benefit & adoption'!$G$4="2020-25",'Product benefit & adoption'!AZ22*'Product benefit & adoption'!$N22/1000000,'Product benefit & adoption'!$G$4="2015-20",'Product benefit & adoption'!AZ22*'Product benefit & adoption'!$L22/1000000) -> 0 | AF17: =_xlfn.IFS('Product benefit & adoption'!$G$4="ALL",'Product benefit & adoption'!BA22*'Product benefit & adoption'!$P22/1000000,'Product benefit & adoption'!$G$4="2020-25",'Product benefit & adoption'!BA22*'Product benefit & adoption'!$N22/1000000,'Product benefit & adoption'!$G$4="2015-20",'Product benefit & adoption'!BA22*'Product benefit & adoption'!$L22/1000000) -> 0 | AG17: =_xlfn.IFS('Product benefit & adoption'!$G$4="ALL",'Product benefit & adoption'!BB22*'Product benefit & adoption'!$P22/1000000,'Product benefit & adoption'!$G$4="2020-25",'Product benefit & adoption'!BB22*'Product benefit & adoption'!$N22/1000000,'Product benefit & adoption'!$G$4="2015-20",'Product benefit & adoption'!BB22*'Product benefit & adoption'!$L22/1000000) -> 0 | AH17: =_xlfn.IFS('Product benefit & adoption'!$G$4="ALL",'Product benefit & adoption'!BC22*'Product benefit & adoption'!$P22/1000000,'Product benefit & adoption'!$G$4="2020-25",'Product benefit & adoption'!BC22*'Product benefit & adoption'!$N22/1000000,'Product benefit & adoption'!$G$4="2015-20",'Product benefit & adoption'!BC22*'Product benefit & adoption'!$L22/1000000) -> 0 | AI17: =_xlfn.IFS('Product benefit & adoption'!$G$4="ALL",'Product benefit & adoption'!BD22*'Product benefit & adoption'!$P22/1000000,'Product benefit & adoption'!$G$4="2020-25",'Product benefit & adoption'!BD22*'Product benefit & adoption'!$N22/1000000,'Product benefit & adoption'!$G$4="2015-20",'Product benefit & adoption'!BD22*'Product benefit & adoption'!$L22/1000000) -> 0
B18: 13 | C18: =IF('Product benefit & adoption'!D23="","",'Product benefit & adoption'!D23) ->  | D18: =IF('Product benefit & adoption'!F23="","",'Product benefit & adoption'!F23) ->  | E18: 0 | F18: =_xlfn.IFS('Product benefit & adoption'!$G$4="ALL",'Product benefit & adoption'!AA23*'Product benefit & adoption'!$P23/1000000,'Product benefit & adoption'!$G$4="2020-25",'Product benefit & adoption'!AA23*'Product benefit & adoption'!$N23/1000000,'Product benefit & adoption'!$G$4="2015-20",'Product benefit & adoption'!AA23*'Product benefit & adoption'!$L23/1000000) -> 0 | G18: =_xlfn.IFS('Product benefit & adoption'!$G$4="ALL",'Product benefit & adoption'!AB23*'Product benefit & adoption'!$P23/1000000,'Product benefit & adoption'!$G$4="2020-25",'Product benefit & adoption'!AB23*'Product benefit & adoption'!$N23/1000000,'Product benefit & adoption'!$G$4="2015-20",'Product benefit & adoption'!AB23*'Product benefit & adoption'!$L23/1000000) -> 0 | H18: =_xlfn.IFS('Product benefit & adoption'!$G$4="ALL",'Product benefit & adoption'!AC23*'Product benefit & adoption'!$P23/1000000,'Product benefit & adoption'!$G$4="2020-25",'Product benefit & adoption'!AC23*'Product benefit & adoption'!$N23/1000000,'Product benefit & adoption'!$G$4="2015-20",'Product benefit & adoption'!AC23*'Product benefit & adoption'!$L23/1000000) -> 0 | I18: =_xlfn.IFS('Product benefit & adoption'!$G$4="ALL",'Product benefit & adoption'!AD23*'Product benefit & adoption'!$P23/1000000,'Product benefit & adoption'!$G$4="2020-25",'Product benefit & adoption'!AD23*'Product benefit & adoption'!$N23/1000000,'Product benefit & adoption'!$G$4="2015-20",'Product benefit & adoption'!AD23*'Product benefit & adoption'!$L23/1000000) -> 0 | J18: =_xlfn.IFS('Product benefit & adoption'!$G$4="ALL",'Product benefit & adoption'!AE23*'Product benefit & adoption'!$P23/1000000,'Product benefit & adoption'!$G$4="2020-25",'Product benefit & adoption'!AE23*'Product benefit & adoption'!$N23/1000000,'Product benefit & adoption'!$G$4="2015-20",'Product benefit & adoption'!AE23*'Product benefit & adoption'!$L23/1000000) -> 0 | K18: =_xlfn.IFS('Product benefit & adoption'!$G$4="ALL",'Product benefit & adoption'!AF23*'Product benefit & adoption'!$P23/1000000,'Product benefit & adoption'!$G$4="2020-25",'Product benefit & adoption'!AF23*'Product benefit & adoption'!$N23/1000000,'Product benefit & adoption'!$G$4="2015-20",'Product benefit & adoption'!AF23*'Product benefit & adoption'!$L23/1000000) -> 0 | L18: =_xlfn.IFS('Product benefit & adoption'!$G$4="ALL",'Product benefit & adoption'!AG23*'Product benefit & adoption'!$P23/1000000,'Product benefit & adoption'!$G$4="2020-25",'Product benefit & adoption'!AG23*'Product benefit & adoption'!$N23/1000000,'Product benefit & adoption'!$G$4="2015-20",'Product benefit & adoption'!AG23*'Product benefit & adoption'!$L23/1000000) -> 0 | M18: =_xlfn.IFS('Product benefit & adoption'!$G$4="ALL",'Product benefit & adoption'!AH23*'Product benefit & adoption'!$P23/1000000,'Product benefit & adoption'!$G$4="2020-25",'Product benefit & adoption'!AH23*'Product benefit & adoption'!$N23/1000000,'Product benefit & adoption'!$G$4="2015-20",'Product benefit & adoption'!AH23*'Product benefit & adoption'!$L23/1000000) -> 0 | N18: =_xlfn.IFS('Product benefit & adoption'!$G$4="ALL",'Product benefit & adoption'!AI23*'Product benefit & adoption'!$P23/1000000,'Product benefit & adoption'!$G$4="2020-25",'Product benefit & adoption'!AI23*'Product benefit & adoption'!$N23/1000000,'Product benefit & adoption'!$G$4="2015-20",'Product benefit & adoption'!AI23*'Product benefit & adoption'!$L23/1000000) -> 0 | O18: =_xlfn.IFS('Product benefit & adoption'!$G$4="ALL",'Product benefit & adoption'!AJ23*'Product benefit & adoption'!$P23/1000000,'Product benefit & adoption'!$G$4="2020-25",'Product benefit & adoption'!AJ23*'Product benefit & adoption'!$N23/1000000,'Product benefit & adoption'!$G$4="2015-20",'Product benefit & adoption'!AJ23*'Product benefit & adoption'!$L23/1000000) -> 0 | P18: =_xlfn.IFS('Product benefit & adoption'!$G$4="ALL",'Product benefit & adoption'!AK23*'Product benefit & adoption'!$P23/1000000,'Product benefit & adoption'!$G$4="2020-25",'Product benefit & adoption'!AK23*'Product benefit & adoption'!$N23/1000000,'Product benefit & adoption'!$G$4="2015-20",'Product benefit & adoption'!AK23*'Product benefit & adoption'!$L23/1000000) -> 0 | Q18: =_xlfn.IFS('Product benefit & adoption'!$G$4="ALL",'Product benefit & adoption'!AL23*'Product benefit & adoption'!$P23/1000000,'Product benefit & adoption'!$G$4="2020-25",'Product benefit & adoption'!AL23*'Product benefit & adoption'!$N23/1000000,'Product benefit & adoption'!$G$4="2015-20",'Product benefit & adoption'!AL23*'Product benefit & adoption'!$L23/1000000) -> 0 | R18: =_xlfn.IFS('Product benefit & adoption'!$G$4="ALL",'Product benefit & adoption'!AM23*'Product benefit & adoption'!$P23/1000000,'Product benefit & adoption'!$G$4="2020-25",'Product benefit & adoption'!AM23*'Product benefit & adoption'!$N23/1000000,'Product benefit & adoption'!$G$4="2015-20",'Product benefit & adoption'!AM23*'Product benefit & adoption'!$L23/1000000) -> 0 | S18: =_xlfn.IFS('Product benefit & adoption'!$G$4="ALL",'Product benefit & adoption'!AN23*'Product benefit & adoption'!$P23/1000000,'Product benefit & adoption'!$G$4="2020-25",'Product benefit & adoption'!AN23*'Product benefit & adoption'!$N23/1000000,'Product benefit & adoption'!$G$4="2015-20",'Product benefit & adoption'!AN23*'Product benefit & adoption'!$L23/1000000) -> 0 | T18: =_xlfn.IFS('Product benefit & adoption'!$G$4="ALL",'Product benefit & adoption'!AO23*'Product benefit & adoption'!$P23/1000000,'Product benefit & adoption'!$G$4="2020-25",'Product benefit & adoption'!AO23*'Product benefit & adoption'!$N23/1000000,'Product benefit & adoption'!$G$4="2015-20",'Product benefit & adoption'!AO23*'Product benefit & adoption'!$L23/1000000) -> 0 | U18: =_xlfn.IFS('Product benefit & adoption'!$G$4="ALL",'Product benefit & adoption'!AP23*'Product benefit & adoption'!$P23/1000000,'Product benefit & adoption'!$G$4="2020-25",'Product benefit & adoption'!AP23*'Product benefit & adoption'!$N23/1000000,'Product benefit & adoption'!$G$4="2015-20",'Product benefit & adoption'!AP23*'Product benefit & adoption'!$L23/1000000) -> 0 | V18: =_xlfn.IFS('Product benefit & adoption'!$G$4="ALL",'Product benefit & adoption'!AQ23*'Product benefit & adoption'!$P23/1000000,'Product benefit & adoption'!$G$4="2020-25",'Product benefit & adoption'!AQ23*'Product benefit & adoption'!$N23/1000000,'Product benefit & adoption'!$G$4="2015-20",'Product benefit & adoption'!AQ23*'Product benefit & adoption'!$L23/1000000) -> 0 | W18: =_xlfn.IFS('Product benefit & adoption'!$G$4="ALL",'Product benefit & adoption'!AR23*'Product benefit & adoption'!$P23/1000000,'Product benefit & adoption'!$G$4="2020-25",'Product benefit & adoption'!AR23*'Product benefit & adoption'!$N23/1000000,'Product benefit & adoption'!$G$4="2015-20",'Product benefit & adoption'!AR23*'Product benefit & adoption'!$L23/1000000) -> 0 | X18: =_xlfn.IFS('Product benefit & adoption'!$G$4="ALL",'Product benefit & adoption'!AS23*'Product benefit & adoption'!$P23/1000000,'Product benefit & adoption'!$G$4="2020-25",'Product benefit & adoption'!AS23*'Product benefit & adoption'!$N23/1000000,'Product benefit & adoption'!$G$4="2015-20",'Product benefit & adoption'!AS23*'Product benefit & adoption'!$L23/1000000) -> 0 | Y18: =_xlfn.IFS('Product benefit & adoption'!$G$4="ALL",'Product benefit & adoption'!AT23*'Product benefit & adoption'!$P23/1000000,'Product benefit & adoption'!$G$4="2020-25",'Product benefit & adoption'!AT23*'Product benefit & adoption'!$N23/1000000,'Product benefit & adoption'!$G$4="2015-20",'Product benefit & adoption'!AT23*'Product benefit & adoption'!$L23/1000000) -> 0 | Z18: =_xlfn.IFS('Product benefit & adoption'!$G$4="ALL",'Product benefit & adoption'!AU23*'Product benefit & adoption'!$P23/1000000,'Product benefit & adoption'!$G$4="2020-25",'Product benefit & adoption'!AU23*'Product benefit & adoption'!$N23/1000000,'Product benefit & adoption'!$G$4="2015-20",'Product benefit & adoption'!AU23*'Product benefit & adoption'!$L23/1000000) -> 0 | AA18: =_xlfn.IFS('Product benefit & adoption'!$G$4="ALL",'Product benefit & adoption'!AV23*'Product benefit & adoption'!$P23/1000000,'Product benefit & adoption'!$G$4="2020-25",'Product benefit & adoption'!AV23*'Product benefit & adoption'!$N23/1000000,'Product benefit & adoption'!$G$4="2015-20",'Product benefit & adoption'!AV23*'Product benefit & adoption'!$L23/1000000) -> 0 | AB18: =_xlfn.IFS('Product benefit & adoption'!$G$4="ALL",'Product benefit & adoption'!AW23*'Product benefit & adoption'!$P23/1000000,'Product benefit & adoption'!$G$4="2020-25",'Product benefit & adoption'!AW23*'Product benefit & adoption'!$N23/1000000,'Product benefit & adoption'!$G$4="2015-20",'Product benefit & adoption'!AW23*'Product benefit & adoption'!$L23/1000000) -> 0 | AC18: =_xlfn.IFS('Product benefit & adoption'!$G$4="ALL",'Product benefit & adoption'!AX23*'Product benefit & adoption'!$P23/1000000,'Product benefit & adoption'!$G$4="2020-25",'Product benefit & adoption'!AX23*'Product benefit & adoption'!$N23/1000000,'Product benefit & adoption'!$G$4="2015-20",'Product benefit & adoption'!AX23*'Product benefit & adoption'!$L23/1000000) -> 0 | AD18: =_xlfn.IFS('Product benefit & adoption'!$G$4="ALL",'Product benefit & adoption'!AY23*'Product benefit & adoption'!$P23/1000000,'Product benefit & adoption'!$G$4="2020-25",'Product benefit & adoption'!AY23*'Product benefit & adoption'!$N23/1000000,'Product benefit & adoption'!$G$4="2015-20",'Product benefit & adoption'!AY23*'Product benefit & adoption'!$L23/1000000) -> 0 | AE18: =_xlfn.IFS('Product benefit & adoption'!$G$4="ALL",'Product benefit & adoption'!AZ23*'Product benefit & adoption'!$P23/1000000,'Product benefit & adoption'!$G$4="2020-25",'Product benefit & adoption'!AZ23*'Product benefit & adoption'!$N23/1000000,'Product benefit & adoption'!$G$4="2015-20",'Product benefit & adoption'!AZ23*'Product benefit & adoption'!$L23/1000000) -> 0 | AF18: =_xlfn.IFS('Product benefit & adoption'!$G$4="ALL",'Product benefit & adoption'!BA23*'Product benefit & adoption'!$P23/1000000,'Product benefit & adoption'!$G$4="2020-25",'Product benefit & adoption'!BA23*'Product benefit & adoption'!$N23/1000000,'Product benefit & adoption'!$G$4="2015-20",'Product benefit & adoption'!BA23*'Product benefit & adoption'!$L23/1000000) -> 0 | AG18: =_xlfn.IFS('Product benefit & adoption'!$G$4="ALL",'Product benefit & adoption'!BB23*'Product benefit & adoption'!$P23/1000000,'Product benefit & adoption'!$G$4="2020-25",'Product benefit & adoption'!BB23*'Product benefit & adoption'!$N23/1000000,'Product benefit & adoption'!$G$4="2015-20",'Product benefit & adoption'!BB23*'Product benefit & adoption'!$L23/1000000) -> 0 | AH18: =_xlfn.IFS('Product benefit & adoption'!$G$4="ALL",'Product benefit & adoption'!BC23*'Product benefit & adoption'!$P23/1000000,'Product benefit & adoption'!$G$4="2020-25",'Product benefit & adoption'!BC23*'Product benefit & adoption'!$N23/1000000,'Product benefit & adoption'!$G$4="2015-20",'Product benefit & adoption'!BC23*'Product benefit & adoption'!$L23/1000000) -> 0 | AI18: =_xlfn.IFS('Product benefit & adoption'!$G$4="ALL",'Product benefit & adoption'!BD23*'Product benefit & adoption'!$P23/1000000,'Product benefit & adoption'!$G$4="2020-25",'Product benefit & adoption'!BD23*'Product benefit & adoption'!$N23/1000000,'Product benefit & adoption'!$G$4="2015-20",'Product benefit & adoption'!BD23*'Product benefit & adoption'!$L23/1000000) -> 0
B19: 14 | C19: =IF('Product benefit & adoption'!D24="","",'Product benefit & adoption'!D24) ->  | D19: =IF('Product benefit & adoption'!F24="","",'Product benefit & adoption'!F24) ->  | E19: 0 | F19: =_xlfn.IFS('Product benefit & adoption'!$G$4="ALL",'Product benefit & adoption'!AA24*'Product benefit & adoption'!$P24/1000000,'Product benefit & adoption'!$G$4="2020-25",'Product benefit & adoption'!AA24*'Product benefit & adoption'!$N24/1000000,'Product benefit & adoption'!$G$4="2015-20",'Product benefit & adoption'!AA24*'Product benefit & adoption'!$L24/1000000) -> 0 | G19: =_xlfn.IFS('Product benefit & adoption'!$G$4="ALL",'Product benefit & adoption'!AB24*'Product benefit & adoption'!$P24/1000000,'Product benefit & adoption'!$G$4="2020-25",'Product benefit & adoption'!AB24*'Product benefit & adoption'!$N24/1000000,'Product benefit & adoption'!$G$4="2015-20",'Product benefit & adoption'!AB24*'Product benefit & adoption'!$L24/1000000) -> 0 | H19: =_xlfn.IFS('Product benefit & adoption'!$G$4="ALL",'Product benefit & adoption'!AC24*'Product benefit & adoption'!$P24/1000000,'Product benefit & adoption'!$G$4="2020-25",'Product benefit & adoption'!AC24*'Product benefit & adoption'!$N24/1000000,'Product benefit & adoption'!$G$4="2015-20",'Product benefit & adoption'!AC24*'Product benefit & adoption'!$L24/1000000) -> 0 | I19: =_xlfn.IFS('Product benefit & adoption'!$G$4="ALL",'Product benefit & adoption'!AD24*'Product benefit & adoption'!$P24/1000000,'Product benefit & adoption'!$G$4="2020-25",'Product benefit & adoption'!AD24*'Product benefit & adoption'!$N24/1000000,'Product benefit & adoption'!$G$4="2015-20",'Product benefit & adoption'!AD24*'Product benefit & adoption'!$L24/1000000) -> 0 | J19: =_xlfn.IFS('Product benefit & adoption'!$G$4="ALL",'Product benefit & adoption'!AE24*'Product benefit & adoption'!$P24/1000000,'Product benefit & adoption'!$G$4="2020-25",'Product benefit & adoption'!AE24*'Product benefit & adoption'!$N24/1000000,'Product benefit & adoption'!$G$4="2015-20",'Product benefit & adoption'!AE24*'Product benefit & adoption'!$L24/1000000) -> 0 | K19: =_xlfn.IFS('Product benefit & adoption'!$G$4="ALL",'Product benefit & adoption'!AF24*'Product benefit & adoption'!$P24/1000000,'Product benefit & adoption'!$G$4="2020-25",'Product benefit & adoption'!AF24*'Product benefit & adoption'!$N24/1000000,'Product benefit & adoption'!$G$4="2015-20",'Product benefit & adoption'!AF24*'Product benefit & adoption'!$L24/1000000) -> 0 | L19: =_xlfn.IFS('Product benefit & adoption'!$G$4="ALL",'Product benefit & adoption'!AG24*'Product benefit & adoption'!$P24/1000000,'Product benefit & adoption'!$G$4="2020-25",'Product benefit & adoption'!AG24*'Product benefit & adoption'!$N24/1000000,'Product benefit & adoption'!$G$4="2015-20",'Product benefit & adoption'!AG24*'Product benefit & adoption'!$L24/1000000) -> 0 | M19: =_xlfn.IFS('Product benefit & adoption'!$G$4="ALL",'Product benefit & adoption'!AH24*'Product benefit & adoption'!$P24/1000000,'Product benefit & adoption'!$G$4="2020-25",'Product benefit & adoption'!AH24*'Product benefit & adoption'!$N24/1000000,'Product benefit & adoption'!$G$4="2015-20",'Product benefit & adoption'!AH24*'Product benefit & adoption'!$L24/1000000) -> 0 | N19: =_xlfn.IFS('Product benefit & adoption'!$G$4="ALL",'Product benefit & adoption'!AI24*'Product benefit & adoption'!$P24/1000000,'Product benefit & adoption'!$G$4="2020-25",'Product benefit & adoption'!AI24*'Product benefit & adoption'!$N24/1000000,'Product benefit & adoption'!$G$4="2015-20",'Product benefit & adoption'!AI24*'Product benefit & adoption'!$L24/1000000) -> 0 | O19: =_xlfn.IFS('Product benefit & adoption'!$G$4="ALL",'Product benefit & adoption'!AJ24*'Product benefit & adoption'!$P24/1000000,'Product benefit & adoption'!$G$4="2020-25",'Product benefit & adoption'!AJ24*'Product benefit & adoption'!$N24/1000000,'Product benefit & adoption'!$G$4="2015-20",'Product benefit & adoption'!AJ24*'Product benefit & adoption'!$L24/1000000) -> 0 | P19: =_xlfn.IFS('Product benefit & adoption'!$G$4="ALL",'Product benefit & adoption'!AK24*'Product benefit & adoption'!$P24/1000000,'Product benefit & adoption'!$G$4="2020-25",'Product benefit & adoption'!AK24*'Product benefit & adoption'!$N24/1000000,'Product benefit & adoption'!$G$4="2015-20",'Product benefit & adoption'!AK24*'Product benefit & adoption'!$L24/1000000) -> 0 | Q19: =_xlfn.IFS('Product benefit & adoption'!$G$4="ALL",'Product benefit & adoption'!AL24*'Product benefit & adoption'!$P24/1000000,'Product benefit & adoption'!$G$4="2020-25",'Product benefit & adoption'!AL24*'Product benefit & adoption'!$N24/1000000,'Product benefit & adoption'!$G$4="2015-20",'Product benefit & adoption'!AL24*'Product benefit & adoption'!$L24/1000000) -> 0 | R19: =_xlfn.IFS('Product benefit & adoption'!$G$4="ALL",'Product benefit & adoption'!AM24*'Product benefit & adoption'!$P24/1000000,'Product benefit & adoption'!$G$4="2020-25",'Product benefit & adoption'!AM24*'Product benefit & adoption'!$N24/1000000,'Product benefit & adoption'!$G$4="2015-20",'Product benefit & adoption'!AM24*'Product benefit & adoption'!$L24/1000000) -> 0 | S19: =_xlfn.IFS('Product benefit & adoption'!$G$4="ALL",'Product benefit & adoption'!AN24*'Product benefit & adoption'!$P24/1000000,'Product benefit & adoption'!$G$4="2020-25",'Product benefit & adoption'!AN24*'Product benefit & adoption'!$N24/1000000,'Product benefit & adoption'!$G$4="2015-20",'Product benefit & adoption'!AN24*'Product benefit & adoption'!$L24/1000000) -> 0 | T19: =_xlfn.IFS('Product benefit & adoption'!$G$4="ALL",'Product benefit & adoption'!AO24*'Product benefit & adoption'!$P24/1000000,'Product benefit & adoption'!$G$4="2020-25",'Product benefit & adoption'!AO24*'Product benefit & adoption'!$N24/1000000,'Product benefit & adoption'!$G$4="2015-20",'Product benefit & adoption'!AO24*'Product benefit & adoption'!$L24/1000000) -> 0 | U19: =_xlfn.IFS('Product benefit & adoption'!$G$4="ALL",'Product benefit & adoption'!AP24*'Product benefit & adoption'!$P24/1000000,'Product benefit & adoption'!$G$4="2020-25",'Product benefit & adoption'!AP24*'Product benefit & adoption'!$N24/1000000,'Product benefit & adoption'!$G$4="2015-20",'Product benefit & adoption'!AP24*'Product benefit & adoption'!$L24/1000000) -> 0 | V19: =_xlfn.IFS('Product benefit & adoption'!$G$4="ALL",'Product benefit & adoption'!AQ24*'Product benefit & adoption'!$P24/1000000,'Product benefit & adoption'!$G$4="2020-25",'Product benefit & adoption'!AQ24*'Product benefit & adoption'!$N24/1000000,'Product benefit & adoption'!$G$4="2015-20",'Product benefit & adoption'!AQ24*'Product benefit & adoption'!$L24/1000000) -> 0 | W19: =_xlfn.IFS('Product benefit & adoption'!$G$4="ALL",'Product benefit & adoption'!AR24*'Product benefit & adoption'!$P24/1000000,'Product benefit & adoption'!$G$4="2020-25",'Product benefit & adoption'!AR24*'Product benefit & adoption'!$N24/1000000,'Product benefit & adoption'!$G$4="2015-20",'Product benefit & adoption'!AR24*'Product benefit & adoption'!$L24/1000000) -> 0 | X19: =_xlfn.IFS('Product benefit & adoption'!$G$4="ALL",'Product benefit & adoption'!AS24*'Product benefit & adoption'!$P24/1000000,'Product benefit & adoption'!$G$4="2020-25",'Product benefit & adoption'!AS24*'Product benefit & adoption'!$N24/1000000,'Product benefit & adoption'!$G$4="2015-20",'Product benefit & adoption'!AS24*'Product benefit & adoption'!$L24/1000000) -> 0 | Y19: =_xlfn.IFS('Product benefit & adoption'!$G$4="ALL",'Product benefit & adoption'!AT24*'Product benefit & adoption'!$P24/1000000,'Product benefit & adoption'!$G$4="2020-25",'Product benefit & adoption'!AT24*'Product benefit & adoption'!$N24/1000000,'Product benefit & adoption'!$G$4="2015-20",'Product benefit & adoption'!AT24*'Product benefit & adoption'!$L24/1000000) -> 0 | Z19: =_xlfn.IFS('Product benefit & adoption'!$G$4="ALL",'Product benefit & adoption'!AU24*'Product benefit & adoption'!$P24/1000000,'Product benefit & adoption'!$G$4="2020-25",'Product benefit & adoption'!AU24*'Product benefit & adoption'!$N24/1000000,'Product benefit & adoption'!$G$4="2015-20",'Product benefit & adoption'!AU24*'Product benefit & adoption'!$L24/1000000) -> 0 | AA19: =_xlfn.IFS('Product benefit & adoption'!$G$4="ALL",'Product benefit & adoption'!AV24*'Product benefit & adoption'!$P24/1000000,'Product benefit & adoption'!$G$4="2020-25",'Product benefit & adoption'!AV24*'Product benefit & adoption'!$N24/1000000,'Product benefit & adoption'!$G$4="2015-20",'Product benefit & adoption'!AV24*'Product benefit & adoption'!$L24/1000000) -> 0 | AB19: =_xlfn.IFS('Product benefit & adoption'!$G$4="ALL",'Product benefit & adoption'!AW24*'Product benefit & adoption'!$P24/1000000,'Product benefit & adoption'!$G$4="2020-25",'Product benefit & adoption'!AW24*'Product benefit & adoption'!$N24/1000000,'Product benefit & adoption'!$G$4="2015-20",'Product benefit & adoption'!AW24*'Product benefit & adoption'!$L24/1000000) -> 0 | AC19: =_xlfn.IFS('Product benefit & adoption'!$G$4="ALL",'Product benefit & adoption'!AX24*'Product benefit & adoption'!$P24/1000000,'Product benefit & adoption'!$G$4="2020-25",'Product benefit & adoption'!AX24*'Product benefit & adoption'!$N24/1000000,'Product benefit & adoption'!$G$4="2015-20",'Product benefit & adoption'!AX24*'Product benefit & adoption'!$L24/1000000) -> 0 | AD19: =_xlfn.IFS('Product benefit & adoption'!$G$4="ALL",'Product benefit & adoption'!AY24*'Product benefit & adoption'!$P24/1000000,'Product benefit & adoption'!$G$4="2020-25",'Product benefit & adoption'!AY24*'Product benefit & adoption'!$N24/1000000,'Product benefit & adoption'!$G$4="2015-20",'Product benefit & adoption'!AY24*'Product benefit & adoption'!$L24/1000000) -> 0 | AE19: =_xlfn.IFS('Product benefit & adoption'!$G$4="ALL",'Product benefit & adoption'!AZ24*'Product benefit & adoption'!$P24/1000000,'Product benefit & adoption'!$G$4="2020-25",'Product benefit & adoption'!AZ24*'Product benefit & adoption'!$N24/1000000,'Product benefit & adoption'!$G$4="2015-20",'Product benefit & adoption'!AZ24*'Product benefit & adoption'!$L24/1000000) -> 0 | AF19: =_xlfn.IFS('Product benefit & adoption'!$G$4="ALL",'Product benefit & adoption'!BA24*'Product benefit & adoption'!$P24/1000000,'Product benefit & adoption'!$G$4="2020-25",'Product benefit & adoption'!BA24*'Product benefit & adoption'!$N24/1000000,'Product benefit & adoption'!$G$4="2015-20",'Product benefit & adoption'!BA24*'Product benefit & adoption'!$L24/1000000) -> 0 | AG19: =_xlfn.IFS('Product benefit & adoption'!$G$4="ALL",'Product benefit & adoption'!BB24*'Product benefit & adoption'!$P24/1000000,'Product benefit & adoption'!$G$4="2020-25",'Product benefit & adoption'!BB24*'Product benefit & adoption'!$N24/1000000,'Product benefit & adoption'!$G$4="2015-20",'Product benefit & adoption'!BB24*'Product benefit & adoption'!$L24/1000000) -> 0 | AH19: =_xlfn.IFS('Product benefit & adoption'!$G$4="ALL",'Product benefit & adoption'!BC24*'Product benefit & adoption'!$P24/1000000,'Product benefit & adoption'!$G$4="2020-25",'Product benefit & adoption'!BC24*'Product benefit & adoption'!$N24/1000000,'Product benefit & adoption'!$G$4="2015-20",'Product benefit & adoption'!BC24*'Product benefit & adoption'!$L24/1000000) -> 0 | AI19: =_xlfn.IFS('Product benefit & adoption'!$G$4="ALL",'Product benefit & adoption'!BD24*'Product benefit & adoption'!$P24/1000000,'Product benefit & adoption'!$G$4="2020-25",'Product benefit & adoption'!BD24*'Product benefit & adoption'!$N24/1000000,'Product benefit & adoption'!$G$4="2015-20",'Product benefit & adoption'!BD24*'Product benefit & adoption'!$L24/1000000) -> 0
B20: 15 | C20: =IF('Product benefit & adoption'!D25="","",'Product benefit & adoption'!D25) ->  | D20: =IF('Product benefit & adoption'!F25="","",'Product benefit & adoption'!F25) ->  | E20: 0 | F20: =_xlfn.IFS('Product benefit & adoption'!$G$4="ALL",'Product benefit & adoption'!AA25*'Product benefit & adoption'!$P25/1000000,'Product benefit & adoption'!$G$4="2020-25",'Product benefit & adoption'!AA25*'Product benefit & adoption'!$N25/1000000,'Product benefit & adoption'!$G$4="2015-20",'Product benefit & adoption'!AA25*'Product benefit & adoption'!$L25/1000000) -> 0 | G20: =_xlfn.IFS('Product benefit & adoption'!$G$4="ALL",'Product benefit & adoption'!AB25*'Product benefit & adoption'!$P25/1000000,'Product benefit & adoption'!$G$4="2020-25",'Product benefit & adoption'!AB25*'Product benefit & adoption'!$N25/1000000,'Product benefit & adoption'!$G$4="2015-20",'Product benefit & adoption'!AB25*'Product benefit & adoption'!$L25/1000000) -> 0 | H20: =_xlfn.IFS('Product benefit & adoption'!$G$4="ALL",'Product benefit & adoption'!AC25*'Product benefit & adoption'!$P25/1000000,'Product benefit & adoption'!$G$4="2020-25",'Product benefit & adoption'!AC25*'Product benefit & adoption'!$N25/1000000,'Product benefit & adoption'!$G$4="2015-20",'Product benefit & adoption'!AC25*'Product benefit & adoption'!$L25/1000000) -> 0 | I20: =_xlfn.IFS('Product benefit & adoption'!$G$4="ALL",'Product benefit & adoption'!AD25*'Product benefit & adoption'!$P25/1000000,'Product benefit & adoption'!$G$4="2020-25",'Product benefit & adoption'!AD25*'Product benefit & adoption'!$N25/1000000,'Product benefit & adoption'!$G$4="2015-20",'Product benefit & adoption'!AD25*'Product benefit & adoption'!$L25/1000000) -> 0 | J20: =_xlfn.IFS('Product benefit & adoption'!$G$4="ALL",'Product benefit & adoption'!AE25*'Product benefit & adoption'!$P25/1000000,'Product benefit & adoption'!$G$4="2020-25",'Product benefit & adoption'!AE25*'Product benefit & adoption'!$N25/1000000,'Product benefit & adoption'!$G$4="2015-20",'Product benefit & adoption'!AE25*'Product benefit & adoption'!$L25/1000000) -> 0 | K20: =_xlfn.IFS('Product benefit & adoption'!$G$4="ALL",'Product benefit & adoption'!AF25*'Product benefit & adoption'!$P25/1000000,'Product benefit & adoption'!$G$4="2020-25",'Product benefit & adoption'!AF25*'Product benefit & adoption'!$N25/1000000,'Product benefit & adoption'!$G$4="2015-20",'Product benefit & adoption'!AF25*'Product benefit & adoption'!$L25/1000000) -> 0 | L20: =_xlfn.IFS('Product benefit & adoption'!$G$4="ALL",'Product benefit & adoption'!AG25*'Product benefit & adoption'!$P25/1000000,'Product benefit & adoption'!$G$4="2020-25",'Product benefit & adoption'!AG25*'Product benefit & adoption'!$N25/1000000,'Product benefit & adoption'!$G$4="2015-20",'Product benefit & adoption'!AG25*'Product benefit & adoption'!$L25/1000000) -> 0 | M20: =_xlfn.IFS('Product benefit & adoption'!$G$4="ALL",'Product benefit & adoption'!AH25*'Product benefit & adoption'!$P25/1000000,'Product benefit & adoption'!$G$4="2020-25",'Product benefit & adoption'!AH25*'Product benefit & adoption'!$N25/1000000,'Product benefit & adoption'!$G$4="2015-20",'Product benefit & adoption'!AH25*'Product benefit & adoption'!$L25/1000000) -> 0 | N20: =_xlfn.IFS('Product benefit & adoption'!$G$4="ALL",'Product benefit & adoption'!AI25*'Product benefit & adoption'!$P25/1000000,'Product benefit & adoption'!$G$4="2020-25",'Product benefit & adoption'!AI25*'Product benefit & adoption'!$N25/1000000,'Product benefit & adoption'!$G$4="2015-20",'Product benefit & adoption'!AI25*'Product benefit & adoption'!$L25/1000000) -> 0 | O20: =_xlfn.IFS('Product benefit & adoption'!$G$4="ALL",'Product benefit & adoption'!AJ25*'Product benefit & adoption'!$P25/1000000,'Product benefit & adoption'!$G$4="2020-25",'Product benefit & adoption'!AJ25*'Product benefit & adoption'!$N25/1000000,'Product benefit & adoption'!$G$4="2015-20",'Product benefit & adoption'!AJ25*'Product benefit & adoption'!$L25/1000000) -> 0 | P20: =_xlfn.IFS('Product benefit & adoption'!$G$4="ALL",'Product benefit & adoption'!AK25*'Product benefit & adoption'!$P25/1000000,'Product benefit & adoption'!$G$4="2020-25",'Product benefit & adoption'!AK25*'Product benefit & adoption'!$N25/1000000,'Product benefit & adoption'!$G$4="2015-20",'Product benefit & adoption'!AK25*'Product benefit & adoption'!$L25/1000000) -> 0 | Q20: =_xlfn.IFS('Product benefit & adoption'!$G$4="ALL",'Product benefit & adoption'!AL25*'Product benefit & adoption'!$P25/1000000,'Product benefit & adoption'!$G$4="2020-25",'Product benefit & adoption'!AL25*'Product benefit & adoption'!$N25/1000000,'Product benefit & adoption'!$G$4="2015-20",'Product benefit & adoption'!AL25*'Product benefit & adoption'!$L25/1000000) -> 0 | R20: =_xlfn.IFS('Product benefit & adoption'!$G$4="ALL",'Product benefit & adoption'!AM25*'Product benefit & adoption'!$P25/1000000,'Product benefit & adoption'!$G$4="2020-25",'Product benefit & adoption'!AM25*'Product benefit & adoption'!$N25/1000000,'Product benefit & adoption'!$G$4="2015-20",'Product benefit & adoption'!AM25*'Product benefit & adoption'!$L25/1000000) -> 0 | S20: =_xlfn.IFS('Product benefit & adoption'!$G$4="ALL",'Product benefit & adoption'!AN25*'Product benefit & adoption'!$P25/1000000,'Product benefit & adoption'!$G$4="2020-25",'Product benefit & adoption'!AN25*'Product benefit & adoption'!$N25/1000000,'Product benefit & adoption'!$G$4="2015-20",'Product benefit & adoption'!AN25*'Product benefit & adoption'!$L25/1000000) -> 0 | T20: =_xlfn.IFS('Product benefit & adoption'!$G$4="ALL",'Product benefit & adoption'!AO25*'Product benefit & adoption'!$P25/1000000,'Product benefit & adoption'!$G$4="2020-25",'Product benefit & adoption'!AO25*'Product benefit & adoption'!$N25/1000000,'Product benefit & adoption'!$G$4="2015-20",'Product benefit & adoption'!AO25*'Product benefit & adoption'!$L25/1000000) -> 0 | U20: =_xlfn.IFS('Product benefit & adoption'!$G$4="ALL",'Product benefit & adoption'!AP25*'Product benefit & adoption'!$P25/1000000,'Product benefit & adoption'!$G$4="2020-25",'Product benefit & adoption'!AP25*'Product benefit & adoption'!$N25/1000000,'Product benefit & adoption'!$G$4="2015-20",'Product benefit & adoption'!AP25*'Product benefit & adoption'!$L25/1000000) -> 0 | V20: =_xlfn.IFS('Product benefit & adoption'!$G$4="ALL",'Product benefit & adoption'!AQ25*'Product benefit & adoption'!$P25/1000000,'Product benefit & adoption'!$G$4="2020-25",'Product benefit & adoption'!AQ25*'Product benefit & adoption'!$N25/1000000,'Product benefit & adoption'!$G$4="2015-20",'Product benefit & adoption'!AQ25*'Product benefit & adoption'!$L25/1000000) -> 0 | W20: =_xlfn.IFS('Product benefit & adoption'!$G$4="ALL",'Product benefit & adoption'!AR25*'Product benefit & adoption'!$P25/1000000,'Product benefit & adoption'!$G$4="2020-25",'Product benefit & adoption'!AR25*'Product benefit & adoption'!$N25/1000000,'Product benefit & adoption'!$G$4="2015-20",'Product benefit & adoption'!AR25*'Product benefit & adoption'!$L25/1000000) -> 0 | X20: =_xlfn.IFS('Product benefit & adoption'!$G$4="ALL",'Product benefit & adoption'!AS25*'Product benefit & adoption'!$P25/1000000,'Product benefit & adoption'!$G$4="2020-25",'Product benefit & adoption'!AS25*'Product benefit & adoption'!$N25/1000000,'Product benefit & adoption'!$G$4="2015-20",'Product benefit & adoption'!AS25*'Product benefit & adoption'!$L25/1000000) -> 0 | Y20: =_xlfn.IFS('Product benefit & adoption'!$G$4="ALL",'Product benefit & adoption'!AT25*'Product benefit & adoption'!$P25/1000000,'Product benefit & adoption'!$G$4="2020-25",'Product benefit & adoption'!AT25*'Product benefit & adoption'!$N25/1000000,'Product benefit & adoption'!$G$4="2015-20",'Product benefit & adoption'!AT25*'Product benefit & adoption'!$L25/1000000) -> 0 | Z20: =_xlfn.IFS('Product benefit & adoption'!$G$4="ALL",'Product benefit & adoption'!AU25*'Product benefit & adoption'!$P25/1000000,'Product benefit & adoption'!$G$4="2020-25",'Product benefit & adoption'!AU25*'Product benefit & adoption'!$N25/1000000,'Product benefit & adoption'!$G$4="2015-20",'Product benefit & adoption'!AU25*'Product benefit & adoption'!$L25/1000000) -> 0 | AA20: =_xlfn.IFS('Product benefit & adoption'!$G$4="ALL",'Product benefit & adoption'!AV25*'Product benefit & adoption'!$P25/1000000,'Product benefit & adoption'!$G$4="2020-25",'Product benefit & adoption'!AV25*'Product benefit & adoption'!$N25/1000000,'Product benefit & adoption'!$G$4="2015-20",'Product benefit & adoption'!AV25*'Product benefit & adoption'!$L25/1000000) -> 0 | AB20: =_xlfn.IFS('Product benefit & adoption'!$G$4="ALL",'Product benefit & adoption'!AW25*'Product benefit & adoption'!$P25/1000000,'Product benefit & adoption'!$G$4="2020-25",'Product benefit & adoption'!AW25*'Product benefit & adoption'!$N25/1000000,'Product benefit & adoption'!$G$4="2015-20",'Product benefit & adoption'!AW25*'Product benefit & adoption'!$L25/1000000) -> 0 | AC20: =_xlfn.IFS('Product benefit & adoption'!$G$4="ALL",'Product benefit & adoption'!AX25*'Product benefit & adoption'!$P25/1000000,'Product benefit & adoption'!$G$4="2020-25",'Product benefit & adoption'!AX25*'Product benefit & adoption'!$N25/1000000,'Product benefit & adoption'!$G$4="2015-20",'Product benefit & adoption'!AX25*'Product benefit & adoption'!$L25/1000000) -> 0 | AD20: =_xlfn.IFS('Product benefit & adoption'!$G$4="ALL",'Product benefit & adoption'!AY25*'Product benefit & adoption'!$P25/1000000,'Product benefit & adoption'!$G$4="2020-25",'Product benefit & adoption'!AY25*'Product benefit & adoption'!$N25/1000000,'Product benefit & adoption'!$G$4="2015-20",'Product benefit & adoption'!AY25*'Product benefit & adoption'!$L25/1000000) -> 0 | AE20: =_xlfn.IFS('Product benefit & adoption'!$G$4="ALL",'Product benefit & adoption'!AZ25*'Product benefit & adoption'!$P25/1000000,'Product benefit & adoption'!$G$4="2020-25",'Product benefit & adoption'!AZ25*'Product benefit & adoption'!$N25/1000000,'Product benefit & adoption'!$G$4="2015-20",'Product benefit & adoption'!AZ25*'Product benefit & adoption'!$L25/1000000) -> 0 | AF20: =_xlfn.IFS('Product benefit & adoption'!$G$4="ALL",'Product benefit & adoption'!BA25*'Product benefit & adoption'!$P25/1000000,'Product benefit & adoption'!$G$4="2020-25",'Product benefit & adoption'!BA25*'Product benefit & adoption'!$N25/1000000,'Product benefit & adoption'!$G$4="2015-20",'Product benefit & adoption'!BA25*'Product benefit & adoption'!$L25/1000000) -> 0 | AG20: =_xlfn.IFS('Product benefit & adoption'!$G$4="ALL",'Product benefit & adoption'!BB25*'Product benefit & adoption'!$P25/1000000,'Product benefit & adoption'!$G$4="2020-25",'Product benefit & adoption'!BB25*'Product benefit & adoption'!$N25/1000000,'Product benefit & adoption'!$G$4="2015-20",'Product benefit & adoption'!BB25*'Product benefit & adoption'!$L25/1000000) -> 0 | AH20: =_xlfn.IFS('Product benefit & adoption'!$G$4="ALL",'Product benefit & adoption'!BC25*'Product benefit & adoption'!$P25/1000000,'Product benefit & adoption'!$G$4="2020-25",'Product benefit & adoption'!BC25*'Product benefit & adoption'!$N25/1000000,'Product benefit & adoption'!$G$4="2015-20",'Product benefit & adoption'!BC25*'Product benefit & adoption'!$L25/1000000) -> 0 | AI20: =_xlfn.IFS('Product benefit & adoption'!$G$4="ALL",'Product benefit & adoption'!BD25*'Product benefit & adoption'!$P25/1000000,'Product benefit & adoption'!$G$4="2020-25",'Product benefit & adoption'!BD25*'Product benefit & adoption'!$N25/1000000,'Product benefit & adoption'!$G$4="2015-20",'Product benefit & adoption'!BD25*'Product benefit & adoption'!$L25/1000000) -> 0
B21: 16 | C21: =IF('Product benefit & adoption'!D26="","",'Product benefit & adoption'!D26) ->  | D21: =IF('Product benefit & adoption'!F26="","",'Product benefit & adoption'!F26) ->  | E21: 0 | F21: =_xlfn.IFS('Product benefit & adoption'!$G$4="ALL",'Product benefit & adoption'!AA26*'Product benefit & adoption'!$P26/1000000,'Product benefit & adoption'!$G$4="2020-25",'Product benefit & adoption'!AA26*'Product benefit & adoption'!$N26/1000000,'Product benefit & adoption'!$G$4="2015-20",'Product benefit & adoption'!AA26*'Product benefit & adoption'!$L26/1000000) -> 0 | G21: =_xlfn.IFS('Product benefit & adoption'!$G$4="ALL",'Product benefit & adoption'!AB26*'Product benefit & adoption'!$P26/1000000,'Product benefit & adoption'!$G$4="2020-25",'Product benefit & adoption'!AB26*'Product benefit & adoption'!$N26/1000000,'Product benefit & adoption'!$G$4="2015-20",'Product benefit & adoption'!AB26*'Product benefit & adoption'!$L26/1000000) -> 0 | H21: =_xlfn.IFS('Product benefit & adoption'!$G$4="ALL",'Product benefit & adoption'!AC26*'Product benefit & adoption'!$P26/1000000,'Product benefit & adoption'!$G$4="2020-25",'Product benefit & adoption'!AC26*'Product benefit & adoption'!$N26/1000000,'Product benefit & adoption'!$G$4="2015-20",'Product benefit & adoption'!AC26*'Product benefit & adoption'!$L26/1000000) -> 0 | I21: =_xlfn.IFS('Product benefit & adoption'!$G$4="ALL",'Product benefit & adoption'!AD26*'Product benefit & adoption'!$P26/1000000,'Product benefit & adoption'!$G$4="2020-25",'Product benefit & adoption'!AD26*'Product benefit & adoption'!$N26/1000000,'Product benefit & adoption'!$G$4="2015-20",'Product benefit & adoption'!AD26*'Product benefit & adoption'!$L26/1000000) -> 0 | J21: =_xlfn.IFS('Product benefit & adoption'!$G$4="ALL",'Product benefit & adoption'!AE26*'Product benefit & adoption'!$P26/1000000,'Product benefit & adoption'!$G$4="2020-25",'Product benefit & adoption'!AE26*'Product benefit & adoption'!$N26/1000000,'Product benefit & adoption'!$G$4="2015-20",'Product benefit & adoption'!AE26*'Product benefit & adoption'!$L26/1000000) -> 0 | K21: =_xlfn.IFS('Product benefit & adoption'!$G$4="ALL",'Product benefit & adoption'!AF26*'Product benefit & adoption'!$P26/1000000,'Product benefit & adoption'!$G$4="2020-25",'Product benefit & adoption'!AF26*'Product benefit & adoption'!$N26/1000000,'Product benefit & adoption'!$G$4="2015-20",'Product benefit & adoption'!AF26*'Product benefit & adoption'!$L26/1000000) -> 0 | L21: =_xlfn.IFS('Product benefit & adoption'!$G$4="ALL",'Product benefit & adoption'!AG26*'Product benefit & adoption'!$P26/1000000,'Product benefit & adoption'!$G$4="2020-25",'Product benefit & adoption'!AG26*'Product benefit & adoption'!$N26/1000000,'Product benefit & adoption'!$G$4="2015-20",'Product benefit & adoption'!AG26*'Product benefit & adoption'!$L26/1000000) -> 0 | M21: =_xlfn.IFS('Product benefit & adoption'!$G$4="ALL",'Product benefit & adoption'!AH26*'Product benefit & adoption'!$P26/1000000,'Product benefit & adoption'!$G$4="2020-25",'Product benefit & adoption'!AH26*'Product benefit & adoption'!$N26/1000000,'Product benefit & adoption'!$G$4="2015-20",'Product benefit & adoption'!AH26*'Product benefit & adoption'!$L26/1000000) -> 0 | N21: =_xlfn.IFS('Product benefit & adoption'!$G$4="ALL",'Product benefit & adoption'!AI26*'Product benefit & adoption'!$P26/1000000,'Product benefit & adoption'!$G$4="2020-25",'Product benefit & adoption'!AI26*'Product benefit & adoption'!$N26/1000000,'Product benefit & adoption'!$G$4="2015-20",'Product benefit & adoption'!AI26*'Product benefit & adoption'!$L26/1000000) -> 0 | O21: =_xlfn.IFS('Product benefit & adoption'!$G$4="ALL",'Product benefit & adoption'!AJ26*'Product benefit & adoption'!$P26/1000000,'Product benefit & adoption'!$G$4="2020-25",'Product benefit & adoption'!AJ26*'Product benefit & adoption'!$N26/1000000,'Product benefit & adoption'!$G$4="2015-20",'Product benefit & adoption'!AJ26*'Product benefit & adoption'!$L26/1000000) -> 0 | P21: =_xlfn.IFS('Product benefit & adoption'!$G$4="ALL",'Product benefit & adoption'!AK26*'Product benefit & adoption'!$P26/1000000,'Product benefit & adoption'!$G$4="2020-25",'Product benefit & adoption'!AK26*'Product benefit & adoption'!$N26/1000000,'Product benefit & adoption'!$G$4="2015-20",'Product benefit & adoption'!AK26*'Product benefit & adoption'!$L26/1000000) -> 0 | Q21: =_xlfn.IFS('Product benefit & adoption'!$G$4="ALL",'Product benefit & adoption'!AL26*'Product benefit & adoption'!$P26/1000000,'Product benefit & adoption'!$G$4="2020-25",'Product benefit & adoption'!AL26*'Product benefit & adoption'!$N26/1000000,'Product benefit & adoption'!$G$4="2015-20",'Product benefit & adoption'!AL26*'Product benefit & adoption'!$L26/1000000) -> 0 | R21: =_xlfn.IFS('Product benefit & adoption'!$G$4="ALL",'Product benefit & adoption'!AM26*'Product benefit & adoption'!$P26/1000000,'Product benefit & adoption'!$G$4="2020-25",'Product benefit & adoption'!AM26*'Product benefit & adoption'!$N26/1000000,'Product benefit & adoption'!$G$4="2015-20",'Product benefit & adoption'!AM26*'Product benefit & adoption'!$L26/1000000) -> 0 | S21: =_xlfn.IFS('Product benefit & adoption'!$G$4="ALL",'Product benefit & adoption'!AN26*'Product benefit & adoption'!$P26/1000000,'Product benefit & adoption'!$G$4="2020-25",'Product benefit & adoption'!AN26*'Product benefit & adoption'!$N26/1000000,'Product benefit & adoption'!$G$4="2015-20",'Product benefit & adoption'!AN26*'Product benefit & adoption'!$L26/1000000) -> 0 | T21: =_xlfn.IFS('Product benefit & adoption'!$G$4="ALL",'Product benefit & adoption'!AO26*'Product benefit & adoption'!$P26/1000000,'Product benefit & adoption'!$G$4="2020-25",'Product benefit & adoption'!AO26*'Product benefit & adoption'!$N26/1000000,'Product benefit & adoption'!$G$4="2015-20",'Product benefit & adoption'!AO26*'Product benefit & adoption'!$L26/1000000) -> 0 | U21: =_xlfn.IFS('Product benefit & adoption'!$G$4="ALL",'Product benefit & adoption'!AP26*'Product benefit & adoption'!$P26/1000000,'Product benefit & adoption'!$G$4="2020-25",'Product benefit & adoption'!AP26*'Product benefit & adoption'!$N26/1000000,'Product benefit & adoption'!$G$4="2015-20",'Product benefit & adoption'!AP26*'Product benefit & adoption'!$L26/1000000) -> 0 | V21: =_xlfn.IFS('Product benefit & adoption'!$G$4="ALL",'Product benefit & adoption'!AQ26*'Product benefit & adoption'!$P26/1000000,'Product benefit & adoption'!$G$4="2020-25",'Product benefit & adoption'!AQ26*'Product benefit & adoption'!$N26/1000000,'Product benefit & adoption'!$G$4="2015-20",'Product benefit & adoption'!AQ26*'Product benefit & adoption'!$L26/1000000) -> 0 | W21: =_xlfn.IFS('Product benefit & adoption'!$G$4="ALL",'Product benefit & adoption'!AR26*'Product benefit & adoption'!$P26/1000000,'Product benefit & adoption'!$G$4="2020-25",'Product benefit & adoption'!AR26*'Product benefit & adoption'!$N26/1000000,'Product benefit & adoption'!$G$4="2015-20",'Product benefit & adoption'!AR26*'Product benefit & adoption'!$L26/1000000) -> 0 | X21: =_xlfn.IFS('Product benefit & adoption'!$G$4="ALL",'Product benefit & adoption'!AS26*'Product benefit & adoption'!$P26/1000000,'Product benefit & adoption'!$G$4="2020-25",'Product benefit & adoption'!AS26*'Product benefit & adoption'!$N26/1000000,'Product benefit & adoption'!$G$4="2015-20",'Product benefit & adoption'!AS26*'Product benefit & adoption'!$L26/1000000) -> 0 | Y21: =_xlfn.IFS('Product benefit & adoption'!$G$4="ALL",'Product benefit & adoption'!AT26*'Product benefit & adoption'!$P26/1000000,'Product benefit & adoption'!$G$4="2020-25",'Product benefit & adoption'!AT26*'Product benefit & adoption'!$N26/1000000,'Product benefit & adoption'!$G$4="2015-20",'Product benefit & adoption'!AT26*'Product benefit & adoption'!$L26/1000000) -> 0 | Z21: =_xlfn.IFS('Product benefit & adoption'!$G$4="ALL",'Product benefit & adoption'!AU26*'Product benefit & adoption'!$P26/1000000,'Product benefit & adoption'!$G$4="2020-25",'Product benefit & adoption'!AU26*'Product benefit & adoption'!$N26/1000000,'Product benefit & adoption'!$G$4="2015-20",'Product benefit & adoption'!AU26*'Product benefit & adoption'!$L26/1000000) -> 0 | AA21: =_xlfn.IFS('Product benefit & adoption'!$G$4="ALL",'Product benefit & adoption'!AV26*'Product benefit & adoption'!$P26/1000000,'Product benefit & adoption'!$G$4="2020-25",'Product benefit & adoption'!AV26*'Product benefit & adoption'!$N26/1000000,'Product benefit & adoption'!$G$4="2015-20",'Product benefit & adoption'!AV26*'Product benefit & adoption'!$L26/1000000) -> 0 | AB21: =_xlfn.IFS('Product benefit & adoption'!$G$4="ALL",'Product benefit & adoption'!AW26*'Product benefit & adoption'!$P26/1000000,'Product benefit & adoption'!$G$4="2020-25",'Product benefit & adoption'!AW26*'Product benefit & adoption'!$N26/1000000,'Product benefit & adoption'!$G$4="2015-20",'Product benefit & adoption'!AW26*'Product benefit & adoption'!$L26/1000000) -> 0 | AC21: =_xlfn.IFS('Product benefit & adoption'!$G$4="ALL",'Product benefit & adoption'!AX26*'Product benefit & adoption'!$P26/1000000,'Product benefit & adoption'!$G$4="2020-25",'Product benefit & adoption'!AX26*'Product benefit & adoption'!$N26/1000000,'Product benefit & adoption'!$G$4="2015-20",'Product benefit & adoption'!AX26*'Product benefit & adoption'!$L26/1000000) -> 0 | AD21: =_xlfn.IFS('Product benefit & adoption'!$G$4="ALL",'Product benefit & adoption'!AY26*'Product benefit & adoption'!$P26/1000000,'Product benefit & adoption'!$G$4="2020-25",'Product benefit & adoption'!AY26*'Product benefit & adoption'!$N26/1000000,'Product benefit & adoption'!$G$4="2015-20",'Product benefit & adoption'!AY26*'Product benefit & adoption'!$L26/1000000) -> 0 | AE21: =_xlfn.IFS('Product benefit & adoption'!$G$4="ALL",'Product benefit & adoption'!AZ26*'Product benefit & adoption'!$P26/1000000,'Product benefit & adoption'!$G$4="2020-25",'Product benefit & adoption'!AZ26*'Product benefit & adoption'!$N26/1000000,'Product benefit & adoption'!$G$4="2015-20",'Product benefit & adoption'!AZ26*'Product benefit & adoption'!$L26/1000000) -> 0 | AF21: =_xlfn.IFS('Product benefit & adoption'!$G$4="ALL",'Product benefit & adoption'!BA26*'Product benefit & adoption'!$P26/1000000,'Product benefit & adoption'!$G$4="2020-25",'Product benefit & adoption'!BA26*'Product benefit & adoption'!$N26/1000000,'Product benefit & adoption'!$G$4="2015-20",'Product benefit & adoption'!BA26*'Product benefit & adoption'!$L26/1000000) -> 0 | AG21: =_xlfn.IFS('Product benefit & adoption'!$G$4="ALL",'Product benefit & adoption'!BB26*'Product benefit & adoption'!$P26/1000000,'Product benefit & adoption'!$G$4="2020-25",'Product benefit & adoption'!BB26*'Product benefit & adoption'!$N26/1000000,'Product benefit & adoption'!$G$4="2015-20",'Product benefit & adoption'!BB26*'Product benefit & adoption'!$L26/1000000) -> 0 | AH21: =_xlfn.IFS('Product benefit & adoption'!$G$4="ALL",'Product benefit & adoption'!BC26*'Product benefit & adoption'!$P26/1000000,'Product benefit & adoption'!$G$4="2020-25",'Product benefit & adoption'!BC26*'Product benefit & adoption'!$N26/1000000,'Product benefit & adoption'!$G$4="2015-20",'Product benefit & adoption'!BC26*'Product benefit & adoption'!$L26/1000000) -> 0 | AI21: =_xlfn.IFS('Product benefit & adoption'!$G$4="ALL",'Product benefit & adoption'!BD26*'Product benefit & adoption'!$P26/1000000,'Product benefit & adoption'!$G$4="2020-25",'Product benefit & adoption'!BD26*'Product benefit & adoption'!$N26/1000000,'Product benefit & adoption'!$G$4="2015-20",'Product benefit & adoption'!BD26*'Product benefit & adoption'!$L26/1000000) -> 0
B22: 17 | C22: =IF('Product benefit & adoption'!D27="","",'Product benefit & adoption'!D27) ->  | D22: =IF('Product benefit & adoption'!F27="","",'Product benefit & adoption'!F27) ->  | E22: 0 | F22: =_xlfn.IFS('Product benefit & adoption'!$G$4="ALL",'Product benefit & adoption'!AA27*'Product benefit & adoption'!$P27/1000000,'Product benefit & adoption'!$G$4="2020-25",'Product benefit & adoption'!AA27*'Product benefit & adoption'!$N27/1000000,'Product benefit & adoption'!$G$4="2015-20",'Product benefit & adoption'!AA27*'Product benefit & adoption'!$L27/1000000) -> 0 | G22: =_xlfn.IFS('Product benefit & adoption'!$G$4="ALL",'Product benefit & adoption'!AB27*'Product benefit & adoption'!$P27/1000000,'Product benefit & adoption'!$G$4="2020-25",'Product benefit & adoption'!AB27*'Product benefit & adoption'!$N27/1000000,'Product benefit & adoption'!$G$4="2015-20",'Product benefit & adoption'!AB27*'Product benefit & adoption'!$L27/1000000) -> 0 | H22: =_xlfn.IFS('Product benefit & adoption'!$G$4="ALL",'Product benefit & adoption'!AC27*'Product benefit & adoption'!$P27/1000000,'Product benefit & adoption'!$G$4="2020-25",'Product benefit & adoption'!AC27*'Product benefit & adoption'!$N27/1000000,'Product benefit & adoption'!$G$4="2015-20",'Product benefit & adoption'!AC27*'Product benefit & adoption'!$L27/1000000) -> 0 | I22: =_xlfn.IFS('Product benefit & adoption'!$G$4="ALL",'Product benefit & adoption'!AD27*'Product benefit & adoption'!$P27/1000000,'Product benefit & adoption'!$G$4="2020-25",'Product benefit & adoption'!AD27*'Product benefit & adoption'!$N27/1000000,'Product benefit & adoption'!$G$4="2015-20",'Product benefit & adoption'!AD27*'Product benefit & adoption'!$L27/1000000) -> 0 | J22: =_xlfn.IFS('Product benefit & adoption'!$G$4="ALL",'Product benefit & adoption'!AE27*'Product benefit & adoption'!$P27/1000000,'Product benefit & adoption'!$G$4="2020-25",'Product benefit & adoption'!AE27*'Product benefit & adoption'!$N27/1000000,'Product benefit & adoption'!$G$4="2015-20",'Product benefit & adoption'!AE27*'Product benefit & adoption'!$L27/1000000) -> 0 | K22: =_xlfn.IFS('Product benefit & adoption'!$G$4="ALL",'Product benefit & adoption'!AF27*'Product benefit & adoption'!$P27/1000000,'Product benefit & adoption'!$G$4="2020-25",'Product benefit & adoption'!AF27*'Product benefit & adoption'!$N27/1000000,'Product benefit & adoption'!$G$4="2015-20",'Product benefit & adoption'!AF27*'Product benefit & adoption'!$L27/1000000) -> 0 | L22: =_xlfn.IFS('Product benefit & adoption'!$G$4="ALL",'Product benefit & adoption'!AG27*'Product benefit & adoption'!$P27/1000000,'Product benefit & adoption'!$G$4="2020-25",'Product benefit & adoption'!AG27*'Product benefit & adoption'!$N27/1000000,'Product benefit & adoption'!$G$4="2015-20",'Product benefit & adoption'!AG27*'Product benefit & adoption'!$L27/1000000) -> 0 | M22: =_xlfn.IFS('Product benefit & adoption'!$G$4="ALL",'Product benefit & adoption'!AH27*'Product benefit & adoption'!$P27/1000000,'Product benefit & adoption'!$G$4="2020-25",'Product benefit & adoption'!AH27*'Product benefit & adoption'!$N27/1000000,'Product benefit & adoption'!$G$4="2015-20",'Product benefit & adoption'!AH27*'Product benefit & adoption'!$L27/1000000) -> 0 | N22: =_xlfn.IFS('Product benefit & adoption'!$G$4="ALL",'Product benefit & adoption'!AI27*'Product benefit & adoption'!$P27/1000000,'Product benefit & adoption'!$G$4="2020-25",'Product benefit & adoption'!AI27*'Product benefit & adoption'!$N27/1000000,'Product benefit & adoption'!$G$4="2015-20",'Product benefit & adoption'!AI27*'Product benefit & adoption'!$L27/1000000) -> 0 | O22: =_xlfn.IFS('Product benefit & adoption'!$G$4="ALL",'Product benefit & adoption'!AJ27*'Product benefit & adoption'!$P27/1000000,'Product benefit & adoption'!$G$4="2020-25",'Product benefit & adoption'!AJ27*'Product benefit & adoption'!$N27/1000000,'Product benefit & adoption'!$G$4="2015-20",'Product benefit & adoption'!AJ27*'Product benefit & adoption'!$L27/1000000) -> 0 | P22: =_xlfn.IFS('Product benefit & adoption'!$G$4="ALL",'Product benefit & adoption'!AK27*'Product benefit & adoption'!$P27/1000000,'Product benefit & adoption'!$G$4="2020-25",'Product benefit & adoption'!AK27*'Product benefit & adoption'!$N27/1000000,'Product benefit & adoption'!$G$4="2015-20",'Product benefit & adoption'!AK27*'Product benefit & adoption'!$L27/1000000) -> 0 | Q22: =_xlfn.IFS('Product benefit & adoption'!$G$4="ALL",'Product benefit & adoption'!AL27*'Product benefit & adoption'!$P27/1000000,'Product benefit & adoption'!$G$4="2020-25",'Product benefit & adoption'!AL27*'Product benefit & adoption'!$N27/1000000,'Product benefit & adoption'!$G$4="2015-20",'Product benefit & adoption'!AL27*'Product benefit & adoption'!$L27/1000000) -> 0 | R22: =_xlfn.IFS('Product benefit & adoption'!$G$4="ALL",'Product benefit & adoption'!AM27*'Product benefit & adoption'!$P27/1000000,'Product benefit & adoption'!$G$4="2020-25",'Product benefit & adoption'!AM27*'Product benefit & adoption'!$N27/1000000,'Product benefit & adoption'!$G$4="2015-20",'Product benefit & adoption'!AM27*'Product benefit & adoption'!$L27/1000000) -> 0 | S22: =_xlfn.IFS('Product benefit & adoption'!$G$4="ALL",'Product benefit & adoption'!AN27*'Product benefit & adoption'!$P27/1000000,'Product benefit & adoption'!$G$4="2020-25",'Product benefit & adoption'!AN27*'Product benefit & adoption'!$N27/1000000,'Product benefit & adoption'!$G$4="2015-20",'Product benefit & adoption'!AN27*'Product benefit & adoption'!$L27/1000000) -> 0 | T22: =_xlfn.IFS('Product benefit & adoption'!$G$4="ALL",'Product benefit & adoption'!AO27*'Product benefit & adoption'!$P27/1000000,'Product benefit & adoption'!$G$4="2020-25",'Product benefit & adoption'!AO27*'Product benefit & adoption'!$N27/1000000,'Product benefit & adoption'!$G$4="2015-20",'Product benefit & adoption'!AO27*'Product benefit & adoption'!$L27/1000000) -> 0 | U22: =_xlfn.IFS('Product benefit & adoption'!$G$4="ALL",'Product benefit & adoption'!AP27*'Product benefit & adoption'!$P27/1000000,'Product benefit & adoption'!$G$4="2020-25",'Product benefit & adoption'!AP27*'Product benefit & adoption'!$N27/1000000,'Product benefit & adoption'!$G$4="2015-20",'Product benefit & adoption'!AP27*'Product benefit & adoption'!$L27/1000000) -> 0 | V22: =_xlfn.IFS('Product benefit & adoption'!$G$4="ALL",'Product benefit & adoption'!AQ27*'Product benefit & adoption'!$P27/1000000,'Product benefit & adoption'!$G$4="2020-25",'Product benefit & adoption'!AQ27*'Product benefit & adoption'!$N27/1000000,'Product benefit & adoption'!$G$4="2015-20",'Product benefit & adoption'!AQ27*'Product benefit & adoption'!$L27/1000000) -> 0 | W22: =_xlfn.IFS('Product benefit & adoption'!$G$4="ALL",'Product benefit & adoption'!AR27*'Product benefit & adoption'!$P27/1000000,'Product benefit & adoption'!$G$4="2020-25",'Product benefit & adoption'!AR27*'Product benefit & adoption'!$N27/1000000,'Product benefit & adoption'!$G$4="2015-20",'Product benefit & adoption'!AR27*'Product benefit & adoption'!$L27/1000000) -> 0 | X22: =_xlfn.IFS('Product benefit & adoption'!$G$4="ALL",'Product benefit & adoption'!AS27*'Product benefit & adoption'!$P27/1000000,'Product benefit & adoption'!$G$4="2020-25",'Product benefit & adoption'!AS27*'Product benefit & adoption'!$N27/1000000,'Product benefit & adoption'!$G$4="2015-20",'Product benefit & adoption'!AS27*'Product benefit & adoption'!$L27/1000000) -> 0 | Y22: =_xlfn.IFS('Product benefit & adoption'!$G$4="ALL",'Product benefit & adoption'!AT27*'Product benefit & adoption'!$P27/1000000,'Product benefit & adoption'!$G$4="2020-25",'Product benefit & adoption'!AT27*'Product benefit & adoption'!$N27/1000000,'Product benefit & adoption'!$G$4="2015-20",'Product benefit & adoption'!AT27*'Product benefit & adoption'!$L27/1000000) -> 0 | Z22: =_xlfn.IFS('Product benefit & adoption'!$G$4="ALL",'Product benefit & adoption'!AU27*'Product benefit & adoption'!$P27/1000000,'Product benefit & adoption'!$G$4="2020-25",'Product benefit & adoption'!AU27*'Product benefit & adoption'!$N27/1000000,'Product benefit & adoption'!$G$4="2015-20",'Product benefit & adoption'!AU27*'Product benefit & adoption'!$L27/1000000) -> 0 | AA22: =_xlfn.IFS('Product benefit & adoption'!$G$4="ALL",'Product benefit & adoption'!AV27*'Product benefit & adoption'!$P27/1000000,'Product benefit & adoption'!$G$4="2020-25",'Product benefit & adoption'!AV27*'Product benefit & adoption'!$N27/1000000,'Product benefit & adoption'!$G$4="2015-20",'Product benefit & adoption'!AV27*'Product benefit & adoption'!$L27/1000000) -> 0 | AB22: =_xlfn.IFS('Product benefit & adoption'!$G$4="ALL",'Product benefit & adoption'!AW27*'Product benefit & adoption'!$P27/1000000,'Product benefit & adoption'!$G$4="2020-25",'Product benefit & adoption'!AW27*'Product benefit & adoption'!$N27/1000000,'Product benefit & adoption'!$G$4="2015-20",'Product benefit & adoption'!AW27*'Product benefit & adoption'!$L27/1000000) -> 0 | AC22: =_xlfn.IFS('Product benefit & adoption'!$G$4="ALL",'Product benefit & adoption'!AX27*'Product benefit & adoption'!$P27/1000000,'Product benefit & adoption'!$G$4="2020-25",'Product benefit & adoption'!AX27*'Product benefit & adoption'!$N27/1000000,'Product benefit & adoption'!$G$4="2015-20",'Product benefit & adoption'!AX27*'Product benefit & adoption'!$L27/1000000) -> 0 | AD22: =_xlfn.IFS('Product benefit & adoption'!$G$4="ALL",'Product benefit & adoption'!AY27*'Product benefit & adoption'!$P27/1000000,'Product benefit & adoption'!$G$4="2020-25",'Product benefit & adoption'!AY27*'Product benefit & adoption'!$N27/1000000,'Product benefit & adoption'!$G$4="2015-20",'Product benefit & adoption'!AY27*'Product benefit & adoption'!$L27/1000000) -> 0 | AE22: =_xlfn.IFS('Product benefit & adoption'!$G$4="ALL",'Product benefit & adoption'!AZ27*'Product benefit & adoption'!$P27/1000000,'Product benefit & adoption'!$G$4="2020-25",'Product benefit & adoption'!AZ27*'Product benefit & adoption'!$N27/1000000,'Product benefit & adoption'!$G$4="2015-20",'Product benefit & adoption'!AZ27*'Product benefit & adoption'!$L27/1000000) -> 0 | AF22: =_xlfn.IFS('Product benefit & adoption'!$G$4="ALL",'Product benefit & adoption'!BA27*'Product benefit & adoption'!$P27/1000000,'Product benefit & adoption'!$G$4="2020-25",'Product benefit & adoption'!BA27*'Product benefit & adoption'!$N27/1000000,'Product benefit & adoption'!$G$4="2015-20",'Product benefit & adoption'!BA27*'Product benefit & adoption'!$L27/1000000) -> 0 | AG22: =_xlfn.IFS('Product benefit & adoption'!$G$4="ALL",'Product benefit & adoption'!BB27*'Product benefit & adoption'!$P27/1000000,'Product benefit & adoption'!$G$4="2020-25",'Product benefit & adoption'!BB27*'Product benefit & adoption'!$N27/1000000,'Product benefit & adoption'!$G$4="2015-20",'Product benefit & adoption'!BB27*'Product benefit & adoption'!$L27/1000000) -> 0 | AH22: =_xlfn.IFS('Product benefit & adoption'!$G$4="ALL",'Product benefit & adoption'!BC27*'Product benefit & adoption'!$P27/1000000,'Product benefit & adoption'!$G$4="2020-25",'Product benefit & adoption'!BC27*'Product benefit & adoption'!$N27/1000000,'Product benefit & adoption'!$G$4="2015-20",'Product benefit & adoption'!BC27*'Product benefit & adoption'!$L27/1000000) -> 0 | AI22: =_xlfn.IFS('Product benefit & adoption'!$G$4="ALL",'Product benefit & adoption'!BD27*'Product benefit & adoption'!$P27/1000000,'Product benefit & adoption'!$G$4="2020-25",'Product benefit & adoption'!BD27*'Product benefit & adoption'!$N27/1000000,'Product benefit & adoption'!$G$4="2015-20",'Product benefit & adoption'!BD27*'Product benefit & adoption'!$L27/1000000) -> 0
B23: 18 | C23: =IF('Product benefit & adoption'!D28="","",'Product benefit & adoption'!D28) ->  | D23: =IF('Product benefit & adoption'!F28="","",'Product benefit & adoption'!F28) ->  | E23: 0 | F23: =_xlfn.IFS('Product benefit & adoption'!$G$4="ALL",'Product benefit & adoption'!AA28*'Product benefit & adoption'!$P28/1000000,'Product benefit & adoption'!$G$4="2020-25",'Product benefit & adoption'!AA28*'Product benefit & adoption'!$N28/1000000,'Product benefit & adoption'!$G$4="2015-20",'Product benefit & adoption'!AA28*'Product benefit & adoption'!$L28/1000000) -> 0 | G23: =_xlfn.IFS('Product benefit & adoption'!$G$4="ALL",'Product benefit & adoption'!AB28*'Product benefit & adoption'!$P28/1000000,'Product benefit & adoption'!$G$4="2020-25",'Product benefit & adoption'!AB28*'Product benefit & adoption'!$N28/1000000,'Product benefit & adoption'!$G$4="2015-20",'Product benefit & adoption'!AB28*'Product benefit & adoption'!$L28/1000000) -> 0 | H23: =_xlfn.IFS('Product benefit & adoption'!$G$4="ALL",'Product benefit & adoption'!AC28*'Product benefit & adoption'!$P28/1000000,'Product benefit & adoption'!$G$4="2020-25",'Product benefit & adoption'!AC28*'Product benefit & adoption'!$N28/1000000,'Product benefit & adoption'!$G$4="2015-20",'Product benefit & adoption'!AC28*'Product benefit & adoption'!$L28/1000000) -> 0 | I23: =_xlfn.IFS('Product benefit & adoption'!$G$4="ALL",'Product benefit & adoption'!AD28*'Product benefit & adoption'!$P28/1000000,'Product benefit & adoption'!$G$4="2020-25",'Product benefit & adoption'!AD28*'Product benefit & adoption'!$N28/1000000,'Product benefit & adoption'!$G$4="2015-20",'Product benefit & adoption'!AD28*'Product benefit & adoption'!$L28/1000000) -> 0 | J23: =_xlfn.IFS('Product benefit & adoption'!$G$4="ALL",'Product benefit & adoption'!AE28*'Product benefit & adoption'!$P28/1000000,'Product benefit & adoption'!$G$4="2020-25",'Product benefit & adoption'!AE28*'Product benefit & adoption'!$N28/1000000,'Product benefit & adoption'!$G$4="2015-20",'Product benefit & adoption'!AE28*'Product benefit & adoption'!$L28/1000000) -> 0 | K23: =_xlfn.IFS('Product benefit & adoption'!$G$4="ALL",'Product benefit & adoption'!AF28*'Product benefit & adoption'!$P28/1000000,'Product benefit & adoption'!$G$4="2020-25",'Product benefit & adoption'!AF28*'Product benefit & adoption'!$N28/1000000,'Product benefit & adoption'!$G$4="2015-20",'Product benefit & adoption'!AF28*'Product benefit & adoption'!$L28/1000000) -> 0 | L23: =_xlfn.IFS('Product benefit & adoption'!$G$4="ALL",'Product benefit & adoption'!AG28*'Product benefit & adoption'!$P28/1000000,'Product benefit & adoption'!$G$4="2020-25",'Product benefit & adoption'!AG28*'Product benefit & adoption'!$N28/1000000,'Product benefit & adoption'!$G$4="2015-20",'Product benefit & adoption'!AG28*'Product benefit & adoption'!$L28/1000000) -> 0 | M23: =_xlfn.IFS('Product benefit & adoption'!$G$4="ALL",'Product benefit & adoption'!AH28*'Product benefit & adoption'!$P28/1000000,'Product benefit & adoption'!$G$4="2020-25",'Product benefit & adoption'!AH28*'Product benefit & adoption'!$N28/1000000,'Product benefit & adoption'!$G$4="2015-20",'Product benefit & adoption'!AH28*'Product benefit & adoption'!$L28/1000000) -> 0 | N23: =_xlfn.IFS('Product benefit & adoption'!$G$4="ALL",'Product benefit & adoption'!AI28*'Product benefit & adoption'!$P28/1000000,'Product benefit & adoption'!$G$4="2020-25",'Product benefit & adoption'!AI28*'Product benefit & adoption'!$N28/1000000,'Product benefit & adoption'!$G$4="2015-20",'Product benefit & adoption'!AI28*'Product benefit & adoption'!$L28/1000000) -> 0 | O23: =_xlfn.IFS('Product benefit & adoption'!$G$4="ALL",'Product benefit & adoption'!AJ28*'Product benefit & adoption'!$P28/1000000,'Product benefit & adoption'!$G$4="2020-25",'Product benefit & adoption'!AJ28*'Product benefit & adoption'!$N28/1000000,'Product benefit & adoption'!$G$4="2015-20",'Product benefit & adoption'!AJ28*'Product benefit & adoption'!$L28/1000000) -> 0 | P23: =_xlfn.IFS('Product benefit & adoption'!$G$4="ALL",'Product benefit & adoption'!AK28*'Product benefit & adoption'!$P28/1000000,'Product benefit & adoption'!$G$4="2020-25",'Product benefit & adoption'!AK28*'Product benefit & adoption'!$N28/1000000,'Product benefit & adoption'!$G$4="2015-20",'Product benefit & adoption'!AK28*'Product benefit & adoption'!$L28/1000000) -> 0 | Q23: =_xlfn.IFS('Product benefit & adoption'!$G$4="ALL",'Product benefit & adoption'!AL28*'Product benefit & adoption'!$P28/1000000,'Product benefit & adoption'!$G$4="2020-25",'Product benefit & adoption'!AL28*'Product benefit & adoption'!$N28/1000000,'Product benefit & adoption'!$G$4="2015-20",'Product benefit & adoption'!AL28*'Product benefit & adoption'!$L28/1000000) -> 0 | R23: =_xlfn.IFS('Product benefit & adoption'!$G$4="ALL",'Product benefit & adoption'!AM28*'Product benefit & adoption'!$P28/1000000,'Product benefit & adoption'!$G$4="2020-25",'Product benefit & adoption'!AM28*'Product benefit & adoption'!$N28/1000000,'Product benefit & adoption'!$G$4="2015-20",'Product benefit & adoption'!AM28*'Product benefit & adoption'!$L28/1000000) -> 0 | S23: =_xlfn.IFS('Product benefit & adoption'!$G$4="ALL",'Product benefit & adoption'!AN28*'Product benefit & adoption'!$P28/1000000,'Product benefit & adoption'!$G$4="2020-25",'Product benefit & adoption'!AN28*'Product benefit & adoption'!$N28/1000000,'Product benefit & adoption'!$G$4="2015-20",'Product benefit & adoption'!AN28*'Product benefit & adoption'!$L28/1000000) -> 0 | T23: =_xlfn.IFS('Product benefit & adoption'!$G$4="ALL",'Product benefit & adoption'!AO28*'Product benefit & adoption'!$P28/1000000,'Product benefit & adoption'!$G$4="2020-25",'Product benefit & adoption'!AO28*'Product benefit & adoption'!$N28/1000000,'Product benefit & adoption'!$G$4="2015-20",'Product benefit & adoption'!AO28*'Product benefit & adoption'!$L28/1000000) -> 0 | U23: =_xlfn.IFS('Product benefit & adoption'!$G$4="ALL",'Product benefit & adoption'!AP28*'Product benefit & adoption'!$P28/1000000,'Product benefit & adoption'!$G$4="2020-25",'Product benefit & adoption'!AP28*'Product benefit & adoption'!$N28/1000000,'Product benefit & adoption'!$G$4="2015-20",'Product benefit & adoption'!AP28*'Product benefit & adoption'!$L28/1000000) -> 0 | V23: =_xlfn.IFS('Product benefit & adoption'!$G$4="ALL",'Product benefit & adoption'!AQ28*'Product benefit & adoption'!$P28/1000000,'Product benefit & adoption'!$G$4="2020-25",'Product benefit & adoption'!AQ28*'Product benefit & adoption'!$N28/1000000,'Product benefit & adoption'!$G$4="2015-20",'Product benefit & adoption'!AQ28*'Product benefit & adoption'!$L28/1000000) -> 0 | W23: =_xlfn.IFS('Product benefit & adoption'!$G$4="ALL",'Product benefit & adoption'!AR28*'Product benefit & adoption'!$P28/1000000,'Product benefit & adoption'!$G$4="2020-25",'Product benefit & adoption'!AR28*'Product benefit & adoption'!$N28/1000000,'Product benefit & adoption'!$G$4="2015-20",'Product benefit & adoption'!AR28*'Product benefit & adoption'!$L28/1000000) -> 0 | X23: =_xlfn.IFS('Product benefit & adoption'!$G$4="ALL",'Product benefit & adoption'!AS28*'Product benefit & adoption'!$P28/1000000,'Product benefit & adoption'!$G$4="2020-25",'Product benefit & adoption'!AS28*'Product benefit & adoption'!$N28/1000000,'Product benefit & adoption'!$G$4="2015-20",'Product benefit & adoption'!AS28*'Product benefit & adoption'!$L28/1000000) -> 0 | Y23: =_xlfn.IFS('Product benefit & adoption'!$G$4="ALL",'Product benefit & adoption'!AT28*'Product benefit & adoption'!$P28/1000000,'Product benefit & adoption'!$G$4="2020-25",'Product benefit & adoption'!AT28*'Product benefit & adoption'!$N28/1000000,'Product benefit & adoption'!$G$4="2015-20",'Product benefit & adoption'!AT28*'Product benefit & adoption'!$L28/1000000) -> 0 | Z23: =_xlfn.IFS('Product benefit & adoption'!$G$4="ALL",'Product benefit & adoption'!AU28*'Product benefit & adoption'!$P28/1000000,'Product benefit & adoption'!$G$4="2020-25",'Product benefit & adoption'!AU28*'Product benefit & adoption'!$N28/1000000,'Product benefit & adoption'!$G$4="2015-20",'Product benefit & adoption'!AU28*'Product benefit & adoption'!$L28/1000000) -> 0 | AA23: =_xlfn.IFS('Product benefit & adoption'!$G$4="ALL",'Product benefit & adoption'!AV28*'Product benefit & adoption'!$P28/1000000,'Product benefit & adoption'!$G$4="2020-25",'Product benefit & adoption'!AV28*'Product benefit & adoption'!$N28/1000000,'Product benefit & adoption'!$G$4="2015-20",'Product benefit & adoption'!AV28*'Product benefit & adoption'!$L28/1000000) -> 0 | AB23: =_xlfn.IFS('Product benefit & adoption'!$G$4="ALL",'Product benefit & adoption'!AW28*'Product benefit & adoption'!$P28/1000000,'Product benefit & adoption'!$G$4="2020-25",'Product benefit & adoption'!AW28*'Product benefit & adoption'!$N28/1000000,'Product benefit & adoption'!$G$4="2015-20",'Product benefit & adoption'!AW28*'Product benefit & adoption'!$L28/1000000) -> 0 | AC23: =_xlfn.IFS('Product benefit & adoption'!$G$4="ALL",'Product benefit & adoption'!AX28*'Product benefit & adoption'!$P28/1000000,'Product benefit & adoption'!$G$4="2020-25",'Product benefit & adoption'!AX28*'Product benefit & adoption'!$N28/1000000,'Product benefit & adoption'!$G$4="2015-20",'Product benefit & adoption'!AX28*'Product benefit & adoption'!$L28/1000000) -> 0 | AD23: =_xlfn.IFS('Product benefit & adoption'!$G$4="ALL",'Product benefit & adoption'!AY28*'Product benefit & adoption'!$P28/1000000,'Product benefit & adoption'!$G$4="2020-25",'Product benefit & adoption'!AY28*'Product benefit & adoption'!$N28/1000000,'Product benefit & adoption'!$G$4="2015-20",'Product benefit & adoption'!AY28*'Product benefit & adoption'!$L28/1000000) -> 0 | AE23: =_xlfn.IFS('Product benefit & adoption'!$G$4="ALL",'Product benefit & adoption'!AZ28*'Product benefit & adoption'!$P28/1000000,'Product benefit & adoption'!$G$4="2020-25",'Product benefit & adoption'!AZ28*'Product benefit & adoption'!$N28/1000000,'Product benefit & adoption'!$G$4="2015-20",'Product benefit & adoption'!AZ28*'Product benefit & adoption'!$L28/1000000) -> 0 | AF23: =_xlfn.IFS('Product benefit & adoption'!$G$4="ALL",'Product benefit & adoption'!BA28*'Product benefit & adoption'!$P28/1000000,'Product benefit & adoption'!$G$4="2020-25",'Product benefit & adoption'!BA28*'Product benefit & adoption'!$N28/1000000,'Product benefit & adoption'!$G$4="2015-20",'Product benefit & adoption'!BA28*'Product benefit & adoption'!$L28/1000000) -> 0 | AG23: =_xlfn.IFS('Product benefit & adoption'!$G$4="ALL",'Product benefit & adoption'!BB28*'Product benefit & adoption'!$P28/1000000,'Product benefit & adoption'!$G$4="2020-25",'Product benefit & adoption'!BB28*'Product benefit & adoption'!$N28/1000000,'Product benefit & adoption'!$G$4="2015-20",'Product benefit & adoption'!BB28*'Product benefit & adoption'!$L28/1000000) -> 0 | AH23: =_xlfn.IFS('Product benefit & adoption'!$G$4="ALL",'Product benefit & adoption'!BC28*'Product benefit & adoption'!$P28/1000000,'Product benefit & adoption'!$G$4="2020-25",'Product benefit & adoption'!BC28*'Product benefit & adoption'!$N28/1000000,'Product benefit & adoption'!$G$4="2015-20",'Product benefit & adoption'!BC28*'Product benefit & adoption'!$L28/1000000) -> 0 | AI23: =_xlfn.IFS('Product benefit & adoption'!$G$4="ALL",'Product benefit & adoption'!BD28*'Product benefit & adoption'!$P28/1000000,'Product benefit & adoption'!$G$4="2020-25",'Product benefit & adoption'!BD28*'Product benefit & adoption'!$N28/1000000,'Product benefit & adoption'!$G$4="2015-20",'Product benefit & adoption'!BD28*'Product benefit & adoption'!$L28/1000000) -> 0
B24: 19 | C24: =IF('Product benefit & adoption'!D29="","",'Product benefit & adoption'!D29) ->  | D24: =IF('Product benefit & adoption'!F29="","",'Product benefit & adoption'!F29) ->  | E24: 0 | F24: =_xlfn.IFS('Product benefit & adoption'!$G$4="ALL",'Product benefit & adoption'!AA29*'Product benefit & adoption'!$P29/1000000,'Product benefit & adoption'!$G$4="2020-25",'Product benefit & adoption'!AA29*'Product benefit & adoption'!$N29/1000000,'Product benefit & adoption'!$G$4="2015-20",'Product benefit & adoption'!AA29*'Product benefit & adoption'!$L29/1000000) -> 0 | G24: =_xlfn.IFS('Product benefit & adoption'!$G$4="ALL",'Product benefit & adoption'!AB29*'Product benefit & adoption'!$P29/1000000,'Product benefit & adoption'!$G$4="2020-25",'Product benefit & adoption'!AB29*'Product benefit & adoption'!$N29/1000000,'Product benefit & adoption'!$G$4="2015-20",'Product benefit & adoption'!AB29*'Product benefit & adoption'!$L29/1000000) -> 0 | H24: =_xlfn.IFS('Product benefit & adoption'!$G$4="ALL",'Product benefit & adoption'!AC29*'Product benefit & adoption'!$P29/1000000,'Product benefit & adoption'!$G$4="2020-25",'Product benefit & adoption'!AC29*'Product benefit & adoption'!$N29/1000000,'Product benefit & adoption'!$G$4="2015-20",'Product benefit & adoption'!AC29*'Product benefit & adoption'!$L29/1000000) -> 0 | I24: =_xlfn.IFS('Product benefit & adoption'!$G$4="ALL",'Product benefit & adoption'!AD29*'Product benefit & adoption'!$P29/1000000,'Product benefit & adoption'!$G$4="2020-25",'Product benefit & adoption'!AD29*'Product benefit & adoption'!$N29/1000000,'Product benefit & adoption'!$G$4="2015-20",'Product benefit & adoption'!AD29*'Product benefit & adoption'!$L29/1000000) -> 0 | J24: =_xlfn.IFS('Product benefit & adoption'!$G$4="ALL",'Product benefit & adoption'!AE29*'Product benefit & adoption'!$P29/1000000,'Product benefit & adoption'!$G$4="2020-25",'Product benefit & adoption'!AE29*'Product benefit & adoption'!$N29/1000000,'Product benefit & adoption'!$G$4="2015-20",'Product benefit & adoption'!AE29*'Product benefit & adoption'!$L29/1000000) -> 0 | K24: =_xlfn.IFS('Product benefit & adoption'!$G$4="ALL",'Product benefit & adoption'!AF29*'Product benefit & adoption'!$P29/1000000,'Product benefit & adoption'!$G$4="2020-25",'Product benefit & adoption'!AF29*'Product benefit & adoption'!$N29/1000000,'Product benefit & adoption'!$G$4="2015-20",'Product benefit & adoption'!AF29*'Product benefit & adoption'!$L29/1000000) -> 0 | L24: =_xlfn.IFS('Product benefit & adoption'!$G$4="ALL",'Product benefit & adoption'!AG29*'Product benefit & adoption'!$P29/1000000,'Product benefit & adoption'!$G$4="2020-25",'Product benefit & adoption'!AG29*'Product benefit & adoption'!$N29/1000000,'Product benefit & adoption'!$G$4="2015-20",'Product benefit & adoption'!AG29*'Product benefit & adoption'!$L29/1000000) -> 0 | M24: =_xlfn.IFS('Product benefit & adoption'!$G$4="ALL",'Product benefit & adoption'!AH29*'Product benefit & adoption'!$P29/1000000,'Product benefit & adoption'!$G$4="2020-25",'Product benefit & adoption'!AH29*'Product benefit & adoption'!$N29/1000000,'Product benefit & adoption'!$G$4="2015-20",'Product benefit & adoption'!AH29*'Product benefit & adoption'!$L29/1000000) -> 0 | N24: =_xlfn.IFS('Product benefit & adoption'!$G$4="ALL",'Product benefit & adoption'!AI29*'Product benefit & adoption'!$P29/1000000,'Product benefit & adoption'!$G$4="2020-25",'Product benefit & adoption'!AI29*'Product benefit & adoption'!$N29/1000000,'Product benefit & adoption'!$G$4="2015-20",'Product benefit & adoption'!AI29*'Product benefit & adoption'!$L29/1000000) -> 0 | O24: =_xlfn.IFS('Product benefit & adoption'!$G$4="ALL",'Product benefit & adoption'!AJ29*'Product benefit & adoption'!$P29/1000000,'Product benefit & adoption'!$G$4="2020-25",'Product benefit & adoption'!AJ29*'Product benefit & adoption'!$N29/1000000,'Product benefit & adoption'!$G$4="2015-20",'Product benefit & adoption'!AJ29*'Product benefit & adoption'!$L29/1000000) -> 0 | P24: =_xlfn.IFS('Product benefit & adoption'!$G$4="ALL",'Product benefit & adoption'!AK29*'Product benefit & adoption'!$P29/1000000,'Product benefit & adoption'!$G$4="2020-25",'Product benefit & adoption'!AK29*'Product benefit & adoption'!$N29/1000000,'Product benefit & adoption'!$G$4="2015-20",'Product benefit & adoption'!AK29*'Product benefit & adoption'!$L29/1000000) -> 0 | Q24: =_xlfn.IFS('Product benefit & adoption'!$G$4="ALL",'Product benefit & adoption'!AL29*'Product benefit & adoption'!$P29/1000000,'Product benefit & adoption'!$G$4="2020-25",'Product benefit & adoption'!AL29*'Product benefit & adoption'!$N29/1000000,'Product benefit & adoption'!$G$4="2015-20",'Product benefit & adoption'!AL29*'Product benefit & adoption'!$L29/1000000) -> 0 | R24: =_xlfn.IFS('Product benefit & adoption'!$G$4="ALL",'Product benefit & adoption'!AM29*'Product benefit & adoption'!$P29/1000000,'Product benefit & adoption'!$G$4="2020-25",'Product benefit & adoption'!AM29*'Product benefit & adoption'!$N29/1000000,'Product benefit & adoption'!$G$4="2015-20",'Product benefit & adoption'!AM29*'Product benefit & adoption'!$L29/1000000) -> 0 | S24: =_xlfn.IFS('Product benefit & adoption'!$G$4="ALL",'Product benefit & adoption'!AN29*'Product benefit & adoption'!$P29/1000000,'Product benefit & adoption'!$G$4="2020-25",'Product benefit & adoption'!AN29*'Product benefit & adoption'!$N29/1000000,'Product benefit & adoption'!$G$4="2015-20",'Product benefit & adoption'!AN29*'Product benefit & adoption'!$L29/1000000) -> 0 | T24: =_xlfn.IFS('Product benefit & adoption'!$G$4="ALL",'Product benefit & adoption'!AO29*'Product benefit & adoption'!$P29/1000000,'Product benefit & adoption'!$G$4="2020-25",'Product benefit & adoption'!AO29*'Product benefit & adoption'!$N29/1000000,'Product benefit & adoption'!$G$4="2015-20",'Product benefit & adoption'!AO29*'Product benefit & adoption'!$L29/1000000) -> 0 | U24: =_xlfn.IFS('Product benefit & adoption'!$G$4="ALL",'Product benefit & adoption'!AP29*'Product benefit & adoption'!$P29/1000000,'Product benefit & adoption'!$G$4="2020-25",'Product benefit & adoption'!AP29*'Product benefit & adoption'!$N29/1000000,'Product benefit & adoption'!$G$4="2015-20",'Product benefit & adoption'!AP29*'Product benefit & adoption'!$L29/1000000) -> 0 | V24: =_xlfn.IFS('Product benefit & adoption'!$G$4="ALL",'Product benefit & adoption'!AQ29*'Product benefit & adoption'!$P29/1000000,'Product benefit & adoption'!$G$4="2020-25",'Product benefit & adoption'!AQ29*'Product benefit & adoption'!$N29/1000000,'Product benefit & adoption'!$G$4="2015-20",'Product benefit & adoption'!AQ29*'Product benefit & adoption'!$L29/1000000) -> 0 | W24: =_xlfn.IFS('Product benefit & adoption'!$G$4="ALL",'Product benefit & adoption'!AR29*'Product benefit & adoption'!$P29/1000000,'Product benefit & adoption'!$G$4="2020-25",'Product benefit & adoption'!AR29*'Product benefit & adoption'!$N29/1000000,'Product benefit & adoption'!$G$4="2015-20",'Product benefit & adoption'!AR29*'Product benefit & adoption'!$L29/1000000) -> 0 | X24: =_xlfn.IFS('Product benefit & adoption'!$G$4="ALL",'Product benefit & adoption'!AS29*'Product benefit & adoption'!$P29/1000000,'Product benefit & adoption'!$G$4="2020-25",'Product benefit & adoption'!AS29*'Product benefit & adoption'!$N29/1000000,'Product benefit & adoption'!$G$4="2015-20",'Product benefit & adoption'!AS29*'Product benefit & adoption'!$L29/1000000) -> 0 | Y24: =_xlfn.IFS('Product benefit & adoption'!$G$4="ALL",'Product benefit & adoption'!AT29*'Product benefit & adoption'!$P29/1000000,'Product benefit & adoption'!$G$4="2020-25",'Product benefit & adoption'!AT29*'Product benefit & adoption'!$N29/1000000,'Product benefit & adoption'!$G$4="2015-20",'Product benefit & adoption'!AT29*'Product benefit & adoption'!$L29/1000000) -> 0 | Z24: =_xlfn.IFS('Product benefit & adoption'!$G$4="ALL",'Product benefit & adoption'!AU29*'Product benefit & adoption'!$P29/1000000,'Product benefit & adoption'!$G$4="2020-25",'Product benefit & adoption'!AU29*'Product benefit & adoption'!$N29/1000000,'Product benefit & adoption'!$G$4="2015-20",'Product benefit & adoption'!AU29*'Product benefit & adoption'!$L29/1000000) -> 0 | AA24: =_xlfn.IFS('Product benefit & adoption'!$G$4="ALL",'Product benefit & adoption'!AV29*'Product benefit & adoption'!$P29/1000000,'Product benefit & adoption'!$G$4="2020-25",'Product benefit & adoption'!AV29*'Product benefit & adoption'!$N29/1000000,'Product benefit & adoption'!$G$4="2015-20",'Product benefit & adoption'!AV29*'Product benefit & adoption'!$L29/1000000) -> 0 | AB24: =_xlfn.IFS('Product benefit & adoption'!$G$4="ALL",'Product benefit & adoption'!AW29*'Product benefit & adoption'!$P29/1000000,'Product benefit & adoption'!$G$4="2020-25",'Product benefit & adoption'!AW29*'Product benefit & adoption'!$N29/1000000,'Product benefit & adoption'!$G$4="2015-20",'Product benefit & adoption'!AW29*'Product benefit & adoption'!$L29/1000000) -> 0 | AC24: =_xlfn.IFS('Product benefit & adoption'!$G$4="ALL",'Product benefit & adoption'!AX29*'Product benefit & adoption'!$P29/1000000,'Product benefit & adoption'!$G$4="2020-25",'Product benefit & adoption'!AX29*'Product benefit & adoption'!$N29/1000000,'Product benefit & adoption'!$G$4="2015-20",'Product benefit & adoption'!AX29*'Product benefit & adoption'!$L29/1000000) -> 0 | AD24: =_xlfn.IFS('Product benefit & adoption'!$G$4="ALL",'Product benefit & adoption'!AY29*'Product benefit & adoption'!$P29/1000000,'Product benefit & adoption'!$G$4="2020-25",'Product benefit & adoption'!AY29*'Product benefit & adoption'!$N29/1000000,'Product benefit & adoption'!$G$4="2015-20",'Product benefit & adoption'!AY29*'Product benefit & adoption'!$L29/1000000) -> 0 | AE24: =_xlfn.IFS('Product benefit & adoption'!$G$4="ALL",'Product benefit & adoption'!AZ29*'Product benefit & adoption'!$P29/1000000,'Product benefit & adoption'!$G$4="2020-25",'Product benefit & adoption'!AZ29*'Product benefit & adoption'!$N29/1000000,'Product benefit & adoption'!$G$4="2015-20",'Product benefit & adoption'!AZ29*'Product benefit & adoption'!$L29/1000000) -> 0 | AF24: =_xlfn.IFS('Product benefit & adoption'!$G$4="ALL",'Product benefit & adoption'!BA29*'Product benefit & adoption'!$P29/1000000,'Product benefit & adoption'!$G$4="2020-25",'Product benefit & adoption'!BA29*'Product benefit & adoption'!$N29/1000000,'Product benefit & adoption'!$G$4="2015-20",'Product benefit & adoption'!BA29*'Product benefit & adoption'!$L29/1000000) -> 0 | AG24: =_xlfn.IFS('Product benefit & adoption'!$G$4="ALL",'Product benefit & adoption'!BB29*'Product benefit & adoption'!$P29/1000000,'Product benefit & adoption'!$G$4="2020-25",'Product benefit & adoption'!BB29*'Product benefit & adoption'!$N29/1000000,'Product benefit & adoption'!$G$4="2015-20",'Product benefit & adoption'!BB29*'Product benefit & adoption'!$L29/1000000) -> 0 | AH24: =_xlfn.IFS('Product benefit & adoption'!$G$4="ALL",'Product benefit & adoption'!BC29*'Product benefit & adoption'!$P29/1000000,'Product benefit & adoption'!$G$4="2020-25",'Product benefit & adoption'!BC29*'Product benefit & adoption'!$N29/1000000,'Product benefit & adoption'!$G$4="2015-20",'Product benefit & adoption'!BC29*'Product benefit & adoption'!$L29/1000000) -> 0 | AI24: =_xlfn.IFS('Product benefit & adoption'!$G$4="ALL",'Product benefit & adoption'!BD29*'Product benefit & adoption'!$P29/1000000,'Product benefit & adoption'!$G$4="2020-25",'Product benefit & adoption'!BD29*'Product benefit & adoption'!$N29/1000000,'Product benefit & adoption'!$G$4="2015-20",'Product benefit & adoption'!BD29*'Product benefit & adoption'!$L29/1000000) -> 0
B25: 20 | C25: =IF('Product benefit & adoption'!D30="","",'Product benefit & adoption'!D30) ->  | D25: =IF('Product benefit & adoption'!F30="","",'Product benefit & adoption'!F30) ->  | E25: 0 | F25: =_xlfn.IFS('Product benefit & adoption'!$G$4="ALL",'Product benefit & adoption'!AA30*'Product benefit & adoption'!$P30/1000000,'Product benefit & adoption'!$G$4="2020-25",'Product benefit & adoption'!AA30*'Product benefit & adoption'!$N30/1000000,'Product benefit & adoption'!$G$4="2015-20",'Product benefit & adoption'!AA30*'Product benefit & adoption'!$L30/1000000) -> 0 | G25: =_xlfn.IFS('Product benefit & adoption'!$G$4="ALL",'Product benefit & adoption'!AB30*'Product benefit & adoption'!$P30/1000000,'Product benefit & adoption'!$G$4="2020-25",'Product benefit & adoption'!AB30*'Product benefit & adoption'!$N30/1000000,'Product benefit & adoption'!$G$4="2015-20",'Product benefit & adoption'!AB30*'Product benefit & adoption'!$L30/1000000) -> 0 | H25: =_xlfn.IFS('Product benefit & adoption'!$G$4="ALL",'Product benefit & adoption'!AC30*'Product benefit & adoption'!$P30/1000000,'Product benefit & adoption'!$G$4="2020-25",'Product benefit & adoption'!AC30*'Product benefit & adoption'!$N30/1000000,'Product benefit & adoption'!$G$4="2015-20",'Product benefit & adoption'!AC30*'Product benefit & adoption'!$L30/1000000) -> 0 | I25: =_xlfn.IFS('Product benefit & adoption'!$G$4="ALL",'Product benefit & adoption'!AD30*'Product benefit & adoption'!$P30/1000000,'Product benefit & adoption'!$G$4="2020-25",'Product benefit & adoption'!AD30*'Product benefit & adoption'!$N30/1000000,'Product benefit & adoption'!$G$4="2015-20",'Product benefit & adoption'!AD30*'Product benefit & adoption'!$L30/1000000) -> 0 | J25: =_xlfn.IFS('Product benefit & adoption'!$G$4="ALL",'Product benefit & adoption'!AE30*'Product benefit & adoption'!$P30/1000000,'Product benefit & adoption'!$G$4="2020-25",'Product benefit & adoption'!AE30*'Product benefit & adoption'!$N30/1000000,'Product benefit & adoption'!$G$4="2015-20",'Product benefit & adoption'!AE30*'Product benefit & adoption'!$L30/1000000) -> 0 | K25: =_xlfn.IFS('Product benefit & adoption'!$G$4="ALL",'Product benefit & adoption'!AF30*'Product benefit & adoption'!$P30/1000000,'Product benefit & adoption'!$G$4="2020-25",'Product benefit & adoption'!AF30*'Product benefit & adoption'!$N30/1000000,'Product benefit & adoption'!$G$4="2015-20",'Product benefit & adoption'!AF30*'Product benefit & adoption'!$L30/1000000) -> 0 | L25: =_xlfn.IFS('Product benefit & adoption'!$G$4="ALL",'Product benefit & adoption'!AG30*'Product benefit & adoption'!$P30/1000000,'Product benefit & adoption'!$G$4="2020-25",'Product benefit & adoption'!AG30*'Product benefit & adoption'!$N30/1000000,'Product benefit & adoption'!$G$4="2015-20",'Product benefit & adoption'!AG30*'Product benefit & adoption'!$L30/1000000) -> 0 | M25: =_xlfn.IFS('Product benefit & adoption'!$G$4="ALL",'Product benefit & adoption'!AH30*'Product benefit & adoption'!$P30/1000000,'Product benefit & adoption'!$G$4="2020-25",'Product benefit & adoption'!AH30*'Product benefit & adoption'!$N30/1000000,'Product benefit & adoption'!$G$4="2015-20",'Product benefit & adoption'!AH30*'Product benefit & adoption'!$L30/1000000) -> 0 | N25: =_xlfn.IFS('Product benefit & adoption'!$G$4="ALL",'Product benefit & adoption'!AI30*'Product benefit & adoption'!$P30/1000000,'Product benefit & adoption'!$G$4="2020-25",'Product benefit & adoption'!AI30*'Product benefit & adoption'!$N30/1000000,'Product benefit & adoption'!$G$4="2015-20",'Product benefit & adoption'!AI30*'Product benefit & adoption'!$L30/1000000) -> 0 | O25: =_xlfn.IFS('Product benefit & adoption'!$G$4="ALL",'Product benefit & adoption'!AJ30*'Product benefit & adoption'!$P30/1000000,'Product benefit & adoption'!$G$4="2020-25",'Product benefit & adoption'!AJ30*'Product benefit & adoption'!$N30/1000000,'Product benefit & adoption'!$G$4="2015-20",'Product benefit & adoption'!AJ30*'Product benefit & adoption'!$L30/1000000) -> 0 | P25: =_xlfn.IFS('Product benefit & adoption'!$G$4="ALL",'Product benefit & adoption'!AK30*'Product benefit & adoption'!$P30/1000000,'Product benefit & adoption'!$G$4="2020-25",'Product benefit & adoption'!AK30*'Product benefit & adoption'!$N30/1000000,'Product benefit & adoption'!$G$4="2015-20",'Product benefit & adoption'!AK30*'Product benefit & adoption'!$L30/1000000) -> 0 | Q25: =_xlfn.IFS('Product benefit & adoption'!$G$4="ALL",'Product benefit & adoption'!AL30*'Product benefit & adoption'!$P30/1000000,'Product benefit & adoption'!$G$4="2020-25",'Product benefit & adoption'!AL30*'Product benefit & adoption'!$N30/1000000,'Product benefit & adoption'!$G$4="2015-20",'Product benefit & adoption'!AL30*'Product benefit & adoption'!$L30/1000000) -> 0 | R25: =_xlfn.IFS('Product benefit & adoption'!$G$4="ALL",'Product benefit & adoption'!AM30*'Product benefit & adoption'!$P30/1000000,'Product benefit & adoption'!$G$4="2020-25",'Product benefit & adoption'!AM30*'Product benefit & adoption'!$N30/1000000,'Product benefit & adoption'!$G$4="2015-20",'Product benefit & adoption'!AM30*'Product benefit & adoption'!$L30/1000000) -> 0 | S25: =_xlfn.IFS('Product benefit & adoption'!$G$4="ALL",'Product benefit & adoption'!AN30*'Product benefit & adoption'!$P30/1000000,'Product benefit & adoption'!$G$4="2020-25",'Product benefit & adoption'!AN30*'Product benefit & adoption'!$N30/1000000,'Product benefit & adoption'!$G$4="2015-20",'Product benefit & adoption'!AN30*'Product benefit & adoption'!$L30/1000000) -> 0 | T25: =_xlfn.IFS('Product benefit & adoption'!$G$4="ALL",'Product benefit & adoption'!AO30*'Product benefit & adoption'!$P30/1000000,'Product benefit & adoption'!$G$4="2020-25",'Product benefit & adoption'!AO30*'Product benefit & adoption'!$N30/1000000,'Product benefit & adoption'!$G$4="2015-20",'Product benefit & adoption'!AO30*'Product benefit & adoption'!$L30/1000000) -> 0 | U25: =_xlfn.IFS('Product benefit & adoption'!$G$4="ALL",'Product benefit & adoption'!AP30*'Product benefit & adoption'!$P30/1000000,'Product benefit & adoption'!$G$4="2020-25",'Product benefit & adoption'!AP30*'Product benefit & adoption'!$N30/1000000,'Product benefit & adoption'!$G$4="2015-20",'Product benefit & adoption'!AP30*'Product benefit & adoption'!$L30/1000000) -> 0 | V25: =_xlfn.IFS('Product benefit & adoption'!$G$4="ALL",'Product benefit & adoption'!AQ30*'Product benefit & adoption'!$P30/1000000,'Product benefit & adoption'!$G$4="2020-25",'Product benefit & adoption'!AQ30*'Product benefit & adoption'!$N30/1000000,'Product benefit & adoption'!$G$4="2015-20",'Product benefit & adoption'!AQ30*'Product benefit & adoption'!$L30/1000000) -> 0 | W25: =_xlfn.IFS('Product benefit & adoption'!$G$4="ALL",'Product benefit & adoption'!AR30*'Product benefit & adoption'!$P30/1000000,'Product benefit & adoption'!$G$4="2020-25",'Product benefit & adoption'!AR30*'Product benefit & adoption'!$N30/1000000,'Product benefit & adoption'!$G$4="2015-20",'Product benefit & adoption'!AR30*'Product benefit & adoption'!$L30/1000000) -> 0 | X25: =_xlfn.IFS('Product benefit & adoption'!$G$4="ALL",'Product benefit & adoption'!AS30*'Product benefit & adoption'!$P30/1000000,'Product benefit & adoption'!$G$4="2020-25",'Product benefit & adoption'!AS30*'Product benefit & adoption'!$N30/1000000,'Product benefit & adoption'!$G$4="2015-20",'Product benefit & adoption'!AS30*'Product benefit & adoption'!$L30/1000000) -> 0 | Y25: =_xlfn.IFS('Product benefit & adoption'!$G$4="ALL",'Product benefit & adoption'!AT30*'Product benefit & adoption'!$P30/1000000,'Product benefit & adoption'!$G$4="2020-25",'Product benefit & adoption'!AT30*'Product benefit & adoption'!$N30/1000000,'Product benefit & adoption'!$G$4="2015-20",'Product benefit & adoption'!AT30*'Product benefit & adoption'!$L30/1000000) -> 0 | Z25: =_xlfn.IFS('Product benefit & adoption'!$G$4="ALL",'Product benefit & adoption'!AU30*'Product benefit & adoption'!$P30/1000000,'Product benefit & adoption'!$G$4="2020-25",'Product benefit & adoption'!AU30*'Product benefit & adoption'!$N30/1000000,'Product benefit & adoption'!$G$4="2015-20",'Product benefit & adoption'!AU30*'Product benefit & adoption'!$L30/1000000) -> 0 | AA25: =_xlfn.IFS('Product benefit & adoption'!$G$4="ALL",'Product benefit & adoption'!AV30*'Product benefit & adoption'!$P30/1000000,'Product benefit & adoption'!$G$4="2020-25",'Product benefit & adoption'!AV30*'Product benefit & adoption'!$N30/1000000,'Product benefit & adoption'!$G$4="2015-20",'Product benefit & adoption'!AV30*'Product benefit & adoption'!$L30/1000000) -> 0 | AB25: =_xlfn.IFS('Product benefit & adoption'!$G$4="ALL",'Product benefit & adoption'!AW30*'Product benefit & adoption'!$P30/1000000,'Product benefit & adoption'!$G$4="2020-25",'Product benefit & adoption'!AW30*'Product benefit & adoption'!$N30/1000000,'Product benefit & adoption'!$G$4="2015-20",'Product benefit & adoption'!AW30*'Product benefit & adoption'!$L30/1000000) -> 0 | AC25: =_xlfn.IFS('Product benefit & adoption'!$G$4="ALL",'Product benefit & adoption'!AX30*'Product benefit & adoption'!$P30/1000000,'Product benefit & adoption'!$G$4="2020-25",'Product benefit & adoption'!AX30*'Product benefit & adoption'!$N30/1000000,'Product benefit & adoption'!$G$4="2015-20",'Product benefit & adoption'!AX30*'Product benefit & adoption'!$L30/1000000) -> 0 | AD25: =_xlfn.IFS('Product benefit & adoption'!$G$4="ALL",'Product benefit & adoption'!AY30*'Product benefit & adoption'!$P30/1000000,'Product benefit & adoption'!$G$4="2020-25",'Product benefit & adoption'!AY30*'Product benefit & adoption'!$N30/1000000,'Product benefit & adoption'!$G$4="2015-20",'Product benefit & adoption'!AY30*'Product benefit & adoption'!$L30/1000000) -> 0 | AE25: =_xlfn.IFS('Product benefit & adoption'!$G$4="ALL",'Product benefit & adoption'!AZ30*'Product benefit & adoption'!$P30/1000000,'Product benefit & adoption'!$G$4="2020-25",'Product benefit & adoption'!AZ30*'Product benefit & adoption'!$N30/1000000,'Product benefit & adoption'!$G$4="2015-20",'Product benefit & adoption'!AZ30*'Product benefit & adoption'!$L30/1000000) -> 0 | AF25: =_xlfn.IFS('Product benefit & adoption'!$G$4="ALL",'Product benefit & adoption'!BA30*'Product benefit & adoption'!$P30/1000000,'Product benefit & adoption'!$G$4="2020-25",'Product benefit & adoption'!BA30*'Product benefit & adoption'!$N30/1000000,'Product benefit & adoption'!$G$4="2015-20",'Product benefit & adoption'!BA30*'Product benefit & adoption'!$L30/1000000) -> 0 | AG25: =_xlfn.IFS('Product benefit & adoption'!$G$4="ALL",'Product benefit & adoption'!BB30*'Product benefit & adoption'!$P30/1000000,'Product benefit & adoption'!$G$4="2020-25",'Product benefit & adoption'!BB30*'Product benefit & adoption'!$N30/1000000,'Product benefit & adoption'!$G$4="2015-20",'Product benefit & adoption'!BB30*'Product benefit & adoption'!$L30/1000000) -> 0 | AH25: =_xlfn.IFS('Product benefit & adoption'!$G$4="ALL",'Product benefit & adoption'!BC30*'Product benefit & adoption'!$P30/1000000,'Product benefit & adoption'!$G$4="2020-25",'Product benefit & adoption'!BC30*'Product benefit & adoption'!$N30/1000000,'Product benefit & adoption'!$G$4="2015-20",'Product benefit & adoption'!BC30*'Product benefit & adoption'!$L30/1000000) -> 0 | AI25: =_xlfn.IFS('Product benefit & adoption'!$G$4="ALL",'Product benefit & adoption'!BD30*'Product benefit & adoption'!$P30/1000000,'Product benefit & adoption'!$G$4="2020-25",'Product benefit & adoption'!BD30*'Product benefit & adoption'!$N30/1000000,'Product benefit & adoption'!$G$4="2015-20",'Product benefit & adoption'!BD30*'Product benefit & adoption'!$L30/1000000) -> 0
B26: 21 | C26: =IF('Product benefit & adoption'!D31="","",'Product benefit & adoption'!D31) ->  | D26: =IF('Product benefit & adoption'!F31="","",'Product benefit & adoption'!F31) ->  | E26: 0 | F26: =_xlfn.IFS('Product benefit & adoption'!$G$4="ALL",'Product benefit & adoption'!AA31*'Product benefit & adoption'!$P31/1000000,'Product benefit & adoption'!$G$4="2020-25",'Product benefit & adoption'!AA31*'Product benefit & adoption'!$N31/1000000,'Product benefit & adoption'!$G$4="2015-20",'Product benefit & adoption'!AA31*'Product benefit & adoption'!$L31/1000000) -> 0 | G26: =_xlfn.IFS('Product benefit & adoption'!$G$4="ALL",'Product benefit & adoption'!AB31*'Product benefit & adoption'!$P31/1000000,'Product benefit & adoption'!$G$4="2020-25",'Product benefit & adoption'!AB31*'Product benefit & adoption'!$N31/1000000,'Product benefit & adoption'!$G$4="2015-20",'Product benefit & adoption'!AB31*'Product benefit & adoption'!$L31/1000000) -> 0 | H26: =_xlfn.IFS('Product benefit & adoption'!$G$4="ALL",'Product benefit & adoption'!AC31*'Product benefit & adoption'!$P31/1000000,'Product benefit & adoption'!$G$4="2020-25",'Product benefit & adoption'!AC31*'Product benefit & adoption'!$N31/1000000,'Product benefit & adoption'!$G$4="2015-20",'Product benefit & adoption'!AC31*'Product benefit & adoption'!$L31/1000000) -> 0 | I26: =_xlfn.IFS('Product benefit & adoption'!$G$4="ALL",'Product benefit & adoption'!AD31*'Product benefit & adoption'!$P31/1000000,'Product benefit & adoption'!$G$4="2020-25",'Product benefit & adoption'!AD31*'Product benefit & adoption'!$N31/1000000,'Product benefit & adoption'!$G$4="2015-20",'Product benefit & adoption'!AD31*'Product benefit & adoption'!$L31/1000000) -> 0 | J26: =_xlfn.IFS('Product benefit & adoption'!$G$4="ALL",'Product benefit & adoption'!AE31*'Product benefit & adoption'!$P31/1000000,'Product benefit & adoption'!$G$4="2020-25",'Product benefit & adoption'!AE31*'Product benefit & adoption'!$N31/1000000,'Product benefit & adoption'!$G$4="2015-20",'Product benefit & adoption'!AE31*'Product benefit & adoption'!$L31/1000000) -> 0 | K26: =_xlfn.IFS('Product benefit & adoption'!$G$4="ALL",'Product benefit & adoption'!AF31*'Product benefit & adoption'!$P31/1000000,'Product benefit & adoption'!$G$4="2020-25",'Product benefit & adoption'!AF31*'Product benefit & adoption'!$N31/1000000,'Product benefit & adoption'!$G$4="2015-20",'Product benefit & adoption'!AF31*'Product benefit & adoption'!$L31/1000000) -> 0 | L26: =_xlfn.IFS('Product benefit & adoption'!$G$4="ALL",'Product benefit & adoption'!AG31*'Product benefit & adoption'!$P31/1000000,'Product benefit & adoption'!$G$4="2020-25",'Product benefit & adoption'!AG31*'Product benefit & adoption'!$N31/1000000,'Product benefit & adoption'!$G$4="2015-20",'Product benefit & adoption'!AG31*'Product benefit & adoption'!$L31/1000000) -> 0 | M26: =_xlfn.IFS('Product benefit & adoption'!$G$4="ALL",'Product benefit & adoption'!AH31*'Product benefit & adoption'!$P31/1000000,'Product benefit & adoption'!$G$4="2020-25",'Product benefit & adoption'!AH31*'Product benefit & adoption'!$N31/1000000,'Product benefit & adoption'!$G$4="2015-20",'Product benefit & adoption'!AH31*'Product benefit & adoption'!$L31/1000000) -> 0 | N26: =_xlfn.IFS('Product benefit & adoption'!$G$4="ALL",'Product benefit & adoption'!AI31*'Product benefit & adoption'!$P31/1000000,'Product benefit & adoption'!$G$4="2020-25",'Product benefit & adoption'!AI31*'Product benefit & adoption'!$N31/1000000,'Product benefit & adoption'!$G$4="2015-20",'Product benefit & adoption'!AI31*'Product benefit & adoption'!$L31/1000000) -> 0 | O26: =_xlfn.IFS('Product benefit & adoption'!$G$4="ALL",'Product benefit & adoption'!AJ31*'Product benefit & adoption'!$P31/1000000,'Product benefit & adoption'!$G$4="2020-25",'Product benefit & adoption'!AJ31*'Product benefit & adoption'!$N31/1000000,'Product benefit & adoption'!$G$4="2015-20",'Product benefit & adoption'!AJ31*'Product benefit & adoption'!$L31/1000000) -> 0 | P26: =_xlfn.IFS('Product benefit & adoption'!$G$4="ALL",'Product benefit & adoption'!AK31*'Product benefit & adoption'!$P31/1000000,'Product benefit & adoption'!$G$4="2020-25",'Product benefit & adoption'!AK31*'Product benefit & adoption'!$N31/1000000,'Product benefit & adoption'!$G$4="2015-20",'Product benefit & adoption'!AK31*'Product benefit & adoption'!$L31/1000000) -> 0 | Q26: =_xlfn.IFS('Product benefit & adoption'!$G$4="ALL",'Product benefit & adoption'!AL31*'Product benefit & adoption'!$P31/1000000,'Product benefit & adoption'!$G$4="2020-25",'Product benefit & adoption'!AL31*'Product benefit & adoption'!$N31/1000000,'Product benefit & adoption'!$G$4="2015-20",'Product benefit & adoption'!AL31*'Product benefit & adoption'!$L31/1000000) -> 0 | R26: =_xlfn.IFS('Product benefit & adoption'!$G$4="ALL",'Product benefit & adoption'!AM31*'Product benefit & adoption'!$P31/1000000,'Product benefit & adoption'!$G$4="2020-25",'Product benefit & adoption'!AM31*'Product benefit & adoption'!$N31/1000000,'Product benefit & adoption'!$G$4="2015-20",'Product benefit & adoption'!AM31*'Product benefit & adoption'!$L31/1000000) -> 0 | S26: =_xlfn.IFS('Product benefit & adoption'!$G$4="ALL",'Product benefit & adoption'!AN31*'Product benefit & adoption'!$P31/1000000,'Product benefit & adoption'!$G$4="2020-25",'Product benefit & adoption'!AN31*'Product benefit & adoption'!$N31/1000000,'Product benefit & adoption'!$G$4="2015-20",'Product benefit & adoption'!AN31*'Product benefit & adoption'!$L31/1000000) -> 0 | T26: =_xlfn.IFS('Product benefit & adoption'!$G$4="ALL",'Product benefit & adoption'!AO31*'Product benefit & adoption'!$P31/1000000,'Product benefit & adoption'!$G$4="2020-25",'Product benefit & adoption'!AO31*'Product benefit & adoption'!$N31/1000000,'Product benefit & adoption'!$G$4="2015-20",'Product benefit & adoption'!AO31*'Product benefit & adoption'!$L31/1000000) -> 0 | U26: =_xlfn.IFS('Product benefit & adoption'!$G$4="ALL",'Product benefit & adoption'!AP31*'Product benefit & adoption'!$P31/1000000,'Product benefit & adoption'!$G$4="2020-25",'Product benefit & adoption'!AP31*'Product benefit & adoption'!$N31/1000000,'Product benefit & adoption'!$G$4="2015-20",'Product benefit & adoption'!AP31*'Product benefit & adoption'!$L31/1000000) -> 0 | V26: =_xlfn.IFS('Product benefit & adoption'!$G$4="ALL",'Product benefit & adoption'!AQ31*'Product benefit & adoption'!$P31/1000000,'Product benefit & adoption'!$G$4="2020-25",'Product benefit & adoption'!AQ31*'Product benefit & adoption'!$N31/1000000,'Product benefit & adoption'!$G$4="2015-20",'Product benefit & adoption'!AQ31*'Product benefit & adoption'!$L31/1000000) -> 0 | W26: =_xlfn.IFS('Product benefit & adoption'!$G$4="ALL",'Product benefit & adoption'!AR31*'Product benefit & adoption'!$P31/1000000,'Product benefit & adoption'!$G$4="2020-25",'Product benefit & adoption'!AR31*'Product benefit & adoption'!$N31/1000000,'Product benefit & adoption'!$G$4="2015-20",'Product benefit & adoption'!AR31*'Product benefit & adoption'!$L31/1000000) -> 0 | X26: =_xlfn.IFS('Product benefit & adoption'!$G$4="ALL",'Product benefit & adoption'!AS31*'Product benefit & adoption'!$P31/1000000,'Product benefit & adoption'!$G$4="2020-25",'Product benefit & adoption'!AS31*'Product benefit & adoption'!$N31/1000000,'Product benefit & adoption'!$G$4="2015-20",'Product benefit & adoption'!AS31*'Product benefit & adoption'!$L31/1000000) -> 0 | Y26: =_xlfn.IFS('Product benefit & adoption'!$G$4="ALL",'Product benefit & adoption'!AT31*'Product benefit & adoption'!$P31/1000000,'Product benefit & adoption'!$G$4="2020-25",'Product benefit & adoption'!AT31*'Product benefit & adoption'!$N31/1000000,'Product benefit & adoption'!$G$4="2015-20",'Product benefit & adoption'!AT31*'Product benefit & adoption'!$L31/1000000) -> 0 | Z26: =_xlfn.IFS('Product benefit & adoption'!$G$4="ALL",'Product benefit & adoption'!AU31*'Product benefit & adoption'!$P31/1000000,'Product benefit & adoption'!$G$4="2020-25",'Product benefit & adoption'!AU31*'Product benefit & adoption'!$N31/1000000,'Product benefit & adoption'!$G$4="2015-20",'Product benefit & adoption'!AU31*'Product benefit & adoption'!$L31/1000000) -> 0 | AA26: =_xlfn.IFS('Product benefit & adoption'!$G$4="ALL",'Product benefit & adoption'!AV31*'Product benefit & adoption'!$P31/1000000,'Product benefit & adoption'!$G$4="2020-25",'Product benefit & adoption'!AV31*'Product benefit & adoption'!$N31/1000000,'Product benefit & adoption'!$G$4="2015-20",'Product benefit & adoption'!AV31*'Product benefit & adoption'!$L31/1000000) -> 0 | AB26: =_xlfn.IFS('Product benefit & adoption'!$G$4="ALL",'Product benefit & adoption'!AW31*'Product benefit & adoption'!$P31/1000000,'Product benefit & adoption'!$G$4="2020-25",'Product benefit & adoption'!AW31*'Product benefit & adoption'!$N31/1000000,'Product benefit & adoption'!$G$4="2015-20",'Product benefit & adoption'!AW31*'Product benefit & adoption'!$L31/1000000) -> 0 | AC26: =_xlfn.IFS('Product benefit & adoption'!$G$4="ALL",'Product benefit & adoption'!AX31*'Product benefit & adoption'!$P31/1000000,'Product benefit & adoption'!$G$4="2020-25",'Product benefit & adoption'!AX31*'Product benefit & adoption'!$N31/1000000,'Product benefit & adoption'!$G$4="2015-20",'Product benefit & adoption'!AX31*'Product benefit & adoption'!$L31/1000000) -> 0 | AD26: =_xlfn.IFS('Product benefit & adoption'!$G$4="ALL",'Product benefit & adoption'!AY31*'Product benefit & adoption'!$P31/1000000,'Product benefit & adoption'!$G$4="2020-25",'Product benefit & adoption'!AY31*'Product benefit & adoption'!$N31/1000000,'Product benefit & adoption'!$G$4="2015-20",'Product benefit & adoption'!AY31*'Product benefit & adoption'!$L31/1000000) -> 0 | AE26: =_xlfn.IFS('Product benefit & adoption'!$G$4="ALL",'Product benefit & adoption'!AZ31*'Product benefit & adoption'!$P31/1000000,'Product benefit & adoption'!$G$4="2020-25",'Product benefit & adoption'!AZ31*'Product benefit & adoption'!$N31/1000000,'Product benefit & adoption'!$G$4="2015-20",'Product benefit & adoption'!AZ31*'Product benefit & adoption'!$L31/1000000) -> 0 | AF26: =_xlfn.IFS('Product benefit & adoption'!$G$4="ALL",'Product benefit & adoption'!BA31*'Product benefit & adoption'!$P31/1000000,'Product benefit & adoption'!$G$4="2020-25",'Product benefit & adoption'!BA31*'Product benefit & adoption'!$N31/1000000,'Product benefit & adoption'!$G$4="2015-20",'Product benefit & adoption'!BA31*'Product benefit & adoption'!$L31/1000000) -> 0 | AG26: =_xlfn.IFS('Product benefit & adoption'!$G$4="ALL",'Product benefit & adoption'!BB31*'Product benefit & adoption'!$P31/1000000,'Product benefit & adoption'!$G$4="2020-25",'Product benefit & adoption'!BB31*'Product benefit & adoption'!$N31/1000000,'Product benefit & adoption'!$G$4="2015-20",'Product benefit & adoption'!BB31*'Product benefit & adoption'!$L31/1000000) -> 0 | AH26: =_xlfn.IFS('Product benefit & adoption'!$G$4="ALL",'Product benefit & adoption'!BC31*'Product benefit & adoption'!$P31/1000000,'Product benefit & adoption'!$G$4="2020-25",'Product benefit & adoption'!BC31*'Product benefit & adoption'!$N31/1000000,'Product benefit & adoption'!$G$4="2015-20",'Product benefit & adoption'!BC31*'Product benefit & adoption'!$L31/1000000) -> 0 | AI26: =_xlfn.IFS('Product benefit & adoption'!$G$4="ALL",'Product benefit & adoption'!BD31*'Product benefit & adoption'!$P31/1000000,'Product benefit & adoption'!$G$4="2020-25",'Product benefit & adoption'!BD31*'Product benefit & adoption'!$N31/1000000,'Product benefit & adoption'!$G$4="2015-20",'Product benefit & adoption'!BD31*'Product benefit & adoption'!$L31/1000000) -> 0
B27: 22 | C27: =IF('Product benefit & adoption'!D32="","",'Product benefit & adoption'!D32) ->  | D27: =IF('Product benefit & adoption'!F32="","",'Product benefit & adoption'!F32) ->  | E27: 0 | F27: =_xlfn.IFS('Product benefit & adoption'!$G$4="ALL",'Product benefit & adoption'!AA32*'Product benefit & adoption'!$P32/1000000,'Product benefit & adoption'!$G$4="2020-25",'Product benefit & adoption'!AA32*'Product benefit & adoption'!$N32/1000000,'Product benefit & adoption'!$G$4="2015-20",'Product benefit & adoption'!AA32*'Product benefit & adoption'!$L32/1000000) -> 0 | G27: =_xlfn.IFS('Product benefit & adoption'!$G$4="ALL",'Product benefit & adoption'!AB32*'Product benefit & adoption'!$P32/1000000,'Product benefit & adoption'!$G$4="2020-25",'Product benefit & adoption'!AB32*'Product benefit & adoption'!$N32/1000000,'Product benefit & adoption'!$G$4="2015-20",'Product benefit & adoption'!AB32*'Product benefit & adoption'!$L32/1000000) -> 0 | H27: =_xlfn.IFS('Product benefit & adoption'!$G$4="ALL",'Product benefit & adoption'!AC32*'Product benefit & adoption'!$P32/1000000,'Product benefit & adoption'!$G$4="2020-25",'Product benefit & adoption'!AC32*'Product benefit & adoption'!$N32/1000000,'Product benefit & adoption'!$G$4="2015-20",'Product benefit & adoption'!AC32*'Product benefit & adoption'!$L32/1000000) -> 0 | I27: =_xlfn.IFS('Product benefit & adoption'!$G$4="ALL",'Product benefit & adoption'!AD32*'Product benefit & adoption'!$P32/1000000,'Product benefit & adoption'!$G$4="2020-25",'Product benefit & adoption'!AD32*'Product benefit & adoption'!$N32/1000000,'Product benefit & adoption'!$G$4="2015-20",'Product benefit & adoption'!AD32*'Product benefit & adoption'!$L32/1000000) -> 0 | J27: =_xlfn.IFS('Product benefit & adoption'!$G$4="ALL",'Product benefit & adoption'!AE32*'Product benefit & adoption'!$P32/1000000,'Product benefit & adoption'!$G$4="2020-25",'Product benefit & adoption'!AE32*'Product benefit & adoption'!$N32/1000000,'Product benefit & adoption'!$G$4="2015-20",'Product benefit & adoption'!AE32*'Product benefit & adoption'!$L32/1000000) -> 0 | K27: =_xlfn.IFS('Product benefit & adoption'!$G$4="ALL",'Product benefit & adoption'!AF32*'Product benefit & adoption'!$P32/1000000,'Product benefit & adoption'!$G$4="2020-25",'Product benefit & adoption'!AF32*'Product benefit & adoption'!$N32/1000000,'Product benefit & adoption'!$G$4="2015-20",'Product benefit & adoption'!AF32*'Product benefit & adoption'!$L32/1000000) -> 0 | L27: =_xlfn.IFS('Product benefit & adoption'!$G$4="ALL",'Product benefit & adoption'!AG32*'Product benefit & adoption'!$P32/1000000,'Product benefit & adoption'!$G$4="2020-25",'Product benefit & adoption'!AG32*'Product benefit & adoption'!$N32/1000000,'Product benefit & adoption'!$G$4="2015-20",'Product benefit & adoption'!AG32*'Product benefit & adoption'!$L32/1000000) -> 0 | M27: =_xlfn.IFS('Product benefit & adoption'!$G$4="ALL",'Product benefit & adoption'!AH32*'Product benefit & adoption'!$P32/1000000,'Product benefit & adoption'!$G$4="2020-25",'Product benefit & adoption'!AH32*'Product benefit & adoption'!$N32/1000000,'Product benefit & adoption'!$G$4="2015-20",'Product benefit & adoption'!AH32*'Product benefit & adoption'!$L32/1000000) -> 0 | N27: =_xlfn.IFS('Product benefit & adoption'!$G$4="ALL",'Product benefit & adoption'!AI32*'Product benefit & adoption'!$P32/1000000,'Product benefit & adoption'!$G$4="2020-25",'Product benefit & adoption'!AI32*'Product benefit & adoption'!$N32/1000000,'Product benefit & adoption'!$G$4="2015-20",'Product benefit & adoption'!AI32*'Product benefit & adoption'!$L32/1000000) -> 0 | O27: =_xlfn.IFS('Product benefit & adoption'!$G$4="ALL",'Product benefit & adoption'!AJ32*'Product benefit & adoption'!$P32/1000000,'Product benefit & adoption'!$G$4="2020-25",'Product benefit & adoption'!AJ32*'Product benefit & adoption'!$N32/1000000,'Product benefit & adoption'!$G$4="2015-20",'Product benefit & adoption'!AJ32*'Product benefit & adoption'!$L32/1000000) -> 0 | P27: =_xlfn.IFS('Product benefit & adoption'!$G$4="ALL",'Product benefit & adoption'!AK32*'Product benefit & adoption'!$P32/1000000,'Product benefit & adoption'!$G$4="2020-25",'Product benefit & adoption'!AK32*'Product benefit & adoption'!$N32/1000000,'Product benefit & adoption'!$G$4="2015-20",'Product benefit & adoption'!AK32*'Product benefit & adoption'!$L32/1000000) -> 0 | Q27: =_xlfn.IFS('Product benefit & adoption'!$G$4="ALL",'Product benefit & adoption'!AL32*'Product benefit & adoption'!$P32/1000000,'Product benefit & adoption'!$G$4="2020-25",'Product benefit & adoption'!AL32*'Product benefit & adoption'!$N32/1000000,'Product benefit & adoption'!$G$4="2015-20",'Product benefit & adoption'!AL32*'Product benefit & adoption'!$L32/1000000) -> 0 | R27: =_xlfn.IFS('Product benefit & adoption'!$G$4="ALL",'Product benefit & adoption'!AM32*'Product benefit & adoption'!$P32/1000000,'Product benefit & adoption'!$G$4="2020-25",'Product benefit & adoption'!AM32*'Product benefit & adoption'!$N32/1000000,'Product benefit & adoption'!$G$4="2015-20",'Product benefit & adoption'!AM32*'Product benefit & adoption'!$L32/1000000) -> 0 | S27: =_xlfn.IFS('Product benefit & adoption'!$G$4="ALL",'Product benefit & adoption'!AN32*'Product benefit & adoption'!$P32/1000000,'Product benefit & adoption'!$G$4="2020-25",'Product benefit & adoption'!AN32*'Product benefit & adoption'!$N32/1000000,'Product benefit & adoption'!$G$4="2015-20",'Product benefit & adoption'!AN32*'Product benefit & adoption'!$L32/1000000) -> 0 | T27: =_xlfn.IFS('Product benefit & adoption'!$G$4="ALL",'Product benefit & adoption'!AO32*'Product benefit & adoption'!$P32/1000000,'Product benefit & adoption'!$G$4="2020-25",'Product benefit & adoption'!AO32*'Product benefit & adoption'!$N32/1000000,'Product benefit & adoption'!$G$4="2015-20",'Product benefit & adoption'!AO32*'Product benefit & adoption'!$L32/1000000) -> 0 | U27: =_xlfn.IFS('Product benefit & adoption'!$G$4="ALL",'Product benefit & adoption'!AP32*'Product benefit & adoption'!$P32/1000000,'Product benefit & adoption'!$G$4="2020-25",'Product benefit & adoption'!AP32*'Product benefit & adoption'!$N32/1000000,'Product benefit & adoption'!$G$4="2015-20",'Product benefit & adoption'!AP32*'Product benefit & adoption'!$L32/1000000) -> 0 | V27: =_xlfn.IFS('Product benefit & adoption'!$G$4="ALL",'Product benefit & adoption'!AQ32*'Product benefit & adoption'!$P32/1000000,'Product benefit & adoption'!$G$4="2020-25",'Product benefit & adoption'!AQ32*'Product benefit & adoption'!$N32/1000000,'Product benefit & adoption'!$G$4="2015-20",'Product benefit & adoption'!AQ32*'Product benefit & adoption'!$L32/1000000) -> 0 | W27: =_xlfn.IFS('Product benefit & adoption'!$G$4="ALL",'Product benefit & adoption'!AR32*'Product benefit & adoption'!$P32/1000000,'Product benefit & adoption'!$G$4="2020-25",'Product benefit & adoption'!AR32*'Product benefit & adoption'!$N32/1000000,'Product benefit & adoption'!$G$4="2015-20",'Product benefit & adoption'!AR32*'Product benefit & adoption'!$L32/1000000) -> 0 | X27: =_xlfn.IFS('Product benefit & adoption'!$G$4="ALL",'Product benefit & adoption'!AS32*'Product benefit & adoption'!$P32/1000000,'Product benefit & adoption'!$G$4="2020-25",'Product benefit & adoption'!AS32*'Product benefit & adoption'!$N32/1000000,'Product benefit & adoption'!$G$4="2015-20",'Product benefit & adoption'!AS32*'Product benefit & adoption'!$L32/1000000) -> 0 | Y27: =_xlfn.IFS('Product benefit & adoption'!$G$4="ALL",'Product benefit & adoption'!AT32*'Product benefit & adoption'!$P32/1000000,'Product benefit & adoption'!$G$4="2020-25",'Product benefit & adoption'!AT32*'Product benefit & adoption'!$N32/1000000,'Product benefit & adoption'!$G$4="2015-20",'Product benefit & adoption'!AT32*'Product benefit & adoption'!$L32/1000000) -> 0 | Z27: =_xlfn.IFS('Product benefit & adoption'!$G$4="ALL",'Product benefit & adoption'!AU32*'Product benefit & adoption'!$P32/1000000,'Product benefit & adoption'!$G$4="2020-25",'Product benefit & adoption'!AU32*'Product benefit & adoption'!$N32/1000000,'Product benefit & adoption'!$G$4="2015-20",'Product benefit & adoption'!AU32*'Product benefit & adoption'!$L32/1000000) -> 0 | AA27: =_xlfn.IFS('Product benefit & adoption'!$G$4="ALL",'Product benefit & adoption'!AV32*'Product benefit & adoption'!$P32/1000000,'Product benefit & adoption'!$G$4="2020-25",'Product benefit & adoption'!AV32*'Product benefit & adoption'!$N32/1000000,'Product benefit & adoption'!$G$4="2015-20",'Product benefit & adoption'!AV32*'Product benefit & adoption'!$L32/1000000) -> 0 | AB27: =_xlfn.IFS('Product benefit & adoption'!$G$4="ALL",'Product benefit & adoption'!AW32*'Product benefit & adoption'!$P32/1000000,'Product benefit & adoption'!$G$4="2020-25",'Product benefit & adoption'!AW32*'Product benefit & adoption'!$N32/1000000,'Product benefit & adoption'!$G$4="2015-20",'Product benefit & adoption'!AW32*'Product benefit & adoption'!$L32/1000000) -> 0 | AC27: =_xlfn.IFS('Product benefit & adoption'!$G$4="ALL",'Product benefit & adoption'!AX32*'Product benefit & adoption'!$P32/1000000,'Product benefit & adoption'!$G$4="2020-25",'Product benefit & adoption'!AX32*'Product benefit & adoption'!$N32/1000000,'Product benefit & adoption'!$G$4="2015-20",'Product benefit & adoption'!AX32*'Product benefit & adoption'!$L32/1000000) -> 0 | AD27: =_xlfn.IFS('Product benefit & adoption'!$G$4="ALL",'Product benefit & adoption'!AY32*'Product benefit & adoption'!$P32/1000000,'Product benefit & adoption'!$G$4="2020-25",'Product benefit & adoption'!AY32*'Product benefit & adoption'!$N32/1000000,'Product benefit & adoption'!$G$4="2015-20",'Product benefit & adoption'!AY32*'Product benefit & adoption'!$L32/1000000) -> 0 | AE27: =_xlfn.IFS('Product benefit & adoption'!$G$4="ALL",'Product benefit & adoption'!AZ32*'Product benefit & adoption'!$P32/1000000,'Product benefit & adoption'!$G$4="2020-25",'Product benefit & adoption'!AZ32*'Product benefit & adoption'!$N32/1000000,'Product benefit & adoption'!$G$4="2015-20",'Product benefit & adoption'!AZ32*'Product benefit & adoption'!$L32/1000000) -> 0 | AF27: =_xlfn.IFS('Product benefit & adoption'!$G$4="ALL",'Product benefit & adoption'!BA32*'Product benefit & adoption'!$P32/1000000,'Product benefit & adoption'!$G$4="2020-25",'Product benefit & adoption'!BA32*'Product benefit & adoption'!$N32/1000000,'Product benefit & adoption'!$G$4="2015-20",'Product benefit & adoption'!BA32*'Product benefit & adoption'!$L32/1000000) -> 0 | AG27: =_xlfn.IFS('Product benefit & adoption'!$G$4="ALL",'Product benefit & adoption'!BB32*'Product benefit & adoption'!$P32/1000000,'Product benefit & adoption'!$G$4="2020-25",'Product benefit & adoption'!BB32*'Product benefit & adoption'!$N32/1000000,'Product benefit & adoption'!$G$4="2015-20",'Product benefit & adoption'!BB32*'Product benefit & adoption'!$L32/1000000) -> 0 | AH27: =_xlfn.IFS('Product benefit & adoption'!$G$4="ALL",'Product benefit & adoption'!BC32*'Product benefit & adoption'!$P32/1000000,'Product benefit & adoption'!$G$4="2020-25",'Product benefit & adoption'!BC32*'Product benefit & adoption'!$N32/1000000,'Product benefit & adoption'!$G$4="2015-20",'Product benefit & adoption'!BC32*'Product benefit & adoption'!$L32/1000000) -> 0 | AI27: =_xlfn.IFS('Product benefit & adoption'!$G$4="ALL",'Product benefit & adoption'!BD32*'Product benefit & adoption'!$P32/1000000,'Product benefit & adoption'!$G$4="2020-25",'Product benefit & adoption'!BD32*'Product benefit & adoption'!$N32/1000000,'Product benefit & adoption'!$G$4="2015-20",'Product benefit & adoption'!BD32*'Product benefit & adoption'!$L32/1000000) -> 0
B28: 23 | C28: =IF('Product benefit & adoption'!D33="","",'Product benefit & adoption'!D33) ->  | D28: =IF('Product benefit & adoption'!F33="","",'Product benefit & adoption'!F33) ->  | E28: 0 | F28: =_xlfn.IFS('Product benefit & adoption'!$G$4="ALL",'Product benefit & adoption'!AA33*'Product benefit & adoption'!$P33/1000000,'Product benefit & adoption'!$G$4="2020-25",'Product benefit & adoption'!AA33*'Product benefit & adoption'!$N33/1000000,'Product benefit & adoption'!$G$4="2015-20",'Product benefit & adoption'!AA33*'Product benefit & adoption'!$L33/1000000) -> 0 | G28: =_xlfn.IFS('Product benefit & adoption'!$G$4="ALL",'Product benefit & adoption'!AB33*'Product benefit & adoption'!$P33/1000000,'Product benefit & adoption'!$G$4="2020-25",'Product benefit & adoption'!AB33*'Product benefit & adoption'!$N33/1000000,'Product benefit & adoption'!$G$4="2015-20",'Product benefit & adoption'!AB33*'Product benefit & adoption'!$L33/1000000) -> 0 | H28: =_xlfn.IFS('Product benefit & adoption'!$G$4="ALL",'Product benefit & adoption'!AC33*'Product benefit & adoption'!$P33/1000000,'Product benefit & adoption'!$G$4="2020-25",'Product benefit & adoption'!AC33*'Product benefit & adoption'!$N33/1000000,'Product benefit & adoption'!$G$4="2015-20",'Product benefit & adoption'!AC33*'Product benefit & adoption'!$L33/1000000) -> 0 | I28: =_xlfn.IFS('Product benefit & adoption'!$G$4="ALL",'Product benefit & adoption'!AD33*'Product benefit & adoption'!$P33/1000000,'Product benefit & adoption'!$G$4="2020-25",'Product benefit & adoption'!AD33*'Product benefit & adoption'!$N33/1000000,'Product benefit & adoption'!$G$4="2015-20",'Product benefit & adoption'!AD33*'Product benefit & adoption'!$L33/1000000) -> 0 | J28: =_xlfn.IFS('Product benefit & adoption'!$G$4="ALL",'Product benefit & adoption'!AE33*'Product benefit & adoption'!$P33/1000000,'Product benefit & adoption'!$G$4="2020-25",'Product benefit & adoption'!AE33*'Product benefit & adoption'!$N33/1000000,'Product benefit & adoption'!$G$4="2015-20",'Product benefit & adoption'!AE33*'Product benefit & adoption'!$L33/1000000) -> 0 | K28: =_xlfn.IFS('Product benefit & adoption'!$G$4="ALL",'Product benefit & adoption'!AF33*'Product benefit & adoption'!$P33/1000000,'Product benefit & adoption'!$G$4="2020-25",'Product benefit & adoption'!AF33*'Product benefit & adoption'!$N33/1000000,'Product benefit & adoption'!$G$4="2015-20",'Product benefit & adoption'!AF33*'Product benefit & adoption'!$L33/1000000) -> 0 | L28: =_xlfn.IFS('Product benefit & adoption'!$G$4="ALL",'Product benefit & adoption'!AG33*'Product benefit & adoption'!$P33/1000000,'Product benefit & adoption'!$G$4="2020-25",'Product benefit & adoption'!AG33*'Product benefit & adoption'!$N33/1000000,'Product benefit & adoption'!$G$4="2015-20",'Product benefit & adoption'!AG33*'Product benefit & adoption'!$L33/1000000) -> 0 | M28: =_xlfn.IFS('Product benefit & adoption'!$G$4="ALL",'Product benefit & adoption'!AH33*'Product benefit & adoption'!$P33/1000000,'Product benefit & adoption'!$G$4="2020-25",'Product benefit & adoption'!AH33*'Product benefit & adoption'!$N33/1000000,'Product benefit & adoption'!$G$4="2015-20",'Product benefit & adoption'!AH33*'Product benefit & adoption'!$L33/1000000) -> 0 | N28: =_xlfn.IFS('Product benefit & adoption'!$G$4="ALL",'Product benefit & adoption'!AI33*'Product benefit & adoption'!$P33/1000000,'Product benefit & adoption'!$G$4="2020-25",'Product benefit & adoption'!AI33*'Product benefit & adoption'!$N33/1000000,'Product benefit & adoption'!$G$4="2015-20",'Product benefit & adoption'!AI33*'Product benefit & adoption'!$L33/1000000) -> 0 | O28: =_xlfn.IFS('Product benefit & adoption'!$G$4="ALL",'Product benefit & adoption'!AJ33*'Product benefit & adoption'!$P33/1000000,'Product benefit & adoption'!$G$4="2020-25",'Product benefit & adoption'!AJ33*'Product benefit & adoption'!$N33/1000000,'Product benefit & adoption'!$G$4="2015-20",'Product benefit & adoption'!AJ33*'Product benefit & adoption'!$L33/1000000) -> 0 | P28: =_xlfn.IFS('Product benefit & adoption'!$G$4="ALL",'Product benefit & adoption'!AK33*'Product benefit & adoption'!$P33/1000000,'Product benefit & adoption'!$G$4="2020-25",'Product benefit & adoption'!AK33*'Product benefit & adoption'!$N33/1000000,'Product benefit & adoption'!$G$4="2015-20",'Product benefit & adoption'!AK33*'Product benefit & adoption'!$L33/1000000) -> 0 | Q28: =_xlfn.IFS('Product benefit & adoption'!$G$4="ALL",'Product benefit & adoption'!AL33*'Product benefit & adoption'!$P33/1000000,'Product benefit & adoption'!$G$4="2020-25",'Product benefit & adoption'!AL33*'Product benefit & adoption'!$N33/1000000,'Product benefit & adoption'!$G$4="2015-20",'Product benefit & adoption'!AL33*'Product benefit & adoption'!$L33/1000000) -> 0 | R28: =_xlfn.IFS('Product benefit & adoption'!$G$4="ALL",'Product benefit & adoption'!AM33*'Product benefit & adoption'!$P33/1000000,'Product benefit & adoption'!$G$4="2020-25",'Product benefit & adoption'!AM33*'Product benefit & adoption'!$N33/1000000,'Product benefit & adoption'!$G$4="2015-20",'Product benefit & adoption'!AM33*'Product benefit & adoption'!$L33/1000000) -> 0 | S28: =_xlfn.IFS('Product benefit & adoption'!$G$4="ALL",'Product benefit & adoption'!AN33*'Product benefit & adoption'!$P33/1000000,'Product benefit & adoption'!$G$4="2020-25",'Product benefit & adoption'!AN33*'Product benefit & adoption'!$N33/1000000,'Product benefit & adoption'!$G$4="2015-20",'Product benefit & adoption'!AN33*'Product benefit & adoption'!$L33/1000000) -> 0 | T28: =_xlfn.IFS('Product benefit & adoption'!$G$4="ALL",'Product benefit & adoption'!AO33*'Product benefit & adoption'!$P33/1000000,'Product benefit & adoption'!$G$4="2020-25",'Product benefit & adoption'!AO33*'Product benefit & adoption'!$N33/1000000,'Product benefit & adoption'!$G$4="2015-20",'Product benefit & adoption'!AO33*'Product benefit & adoption'!$L33/1000000) -> 0 | U28: =_xlfn.IFS('Product benefit & adoption'!$G$4="ALL",'Product benefit & adoption'!AP33*'Product benefit & adoption'!$P33/1000000,'Product benefit & adoption'!$G$4="2020-25",'Product benefit & adoption'!AP33*'Product benefit & adoption'!$N33/1000000,'Product benefit & adoption'!$G$4="2015-20",'Product benefit & adoption'!AP33*'Product benefit & adoption'!$L33/1000000) -> 0 | V28: =_xlfn.IFS('Product benefit & adoption'!$G$4="ALL",'Product benefit & adoption'!AQ33*'Product benefit & adoption'!$P33/1000000,'Product benefit & adoption'!$G$4="2020-25",'Product benefit & adoption'!AQ33*'Product benefit & adoption'!$N33/1000000,'Product benefit & adoption'!$G$4="2015-20",'Product benefit & adoption'!AQ33*'Product benefit & adoption'!$L33/1000000) -> 0 | W28: =_xlfn.IFS('Product benefit & adoption'!$G$4="ALL",'Product benefit & adoption'!AR33*'Product benefit & adoption'!$P33/1000000,'Product benefit & adoption'!$G$4="2020-25",'Product benefit & adoption'!AR33*'Product benefit & adoption'!$N33/1000000,'Product benefit & adoption'!$G$4="2015-20",'Product benefit & adoption'!AR33*'Product benefit & adoption'!$L33/1000000) -> 0 | X28: =_xlfn.IFS('Product benefit & adoption'!$G$4="ALL",'Product benefit & adoption'!AS33*'Product benefit & adoption'!$P33/1000000,'Product benefit & adoption'!$G$4="2020-25",'Product benefit & adoption'!AS33*'Product benefit & adoption'!$N33/1000000,'Product benefit & adoption'!$G$4="2015-20",'Product benefit & adoption'!AS33*'Product benefit & adoption'!$L33/1000000) -> 0 | Y28: =_xlfn.IFS('Product benefit & adoption'!$G$4="ALL",'Product benefit & adoption'!AT33*'Product benefit & adoption'!$P33/1000000,'Product benefit & adoption'!$G$4="2020-25",'Product benefit & adoption'!AT33*'Product benefit & adoption'!$N33/1000000,'Product benefit & adoption'!$G$4="2015-20",'Product benefit & adoption'!AT33*'Product benefit & adoption'!$L33/1000000) -> 0 | Z28: =_xlfn.IFS('Product benefit & adoption'!$G$4="ALL",'Product benefit & adoption'!AU33*'Product benefit & adoption'!$P33/1000000,'Product benefit & adoption'!$G$4="2020-25",'Product benefit & adoption'!AU33*'Product benefit & adoption'!$N33/1000000,'Product benefit & adoption'!$G$4="2015-20",'Product benefit & adoption'!AU33*'Product benefit & adoption'!$L33/1000000) -> 0 | AA28: =_xlfn.IFS('Product benefit & adoption'!$G$4="ALL",'Product benefit & adoption'!AV33*'Product benefit & adoption'!$P33/1000000,'Product benefit & adoption'!$G$4="2020-25",'Product benefit & adoption'!AV33*'Product benefit & adoption'!$N33/1000000,'Product benefit & adoption'!$G$4="2015-20",'Product benefit & adoption'!AV33*'Product benefit & adoption'!$L33/1000000) -> 0 | AB28: =_xlfn.IFS('Product benefit & adoption'!$G$4="ALL",'Product benefit & adoption'!AW33*'Product benefit & adoption'!$P33/1000000,'Product benefit & adoption'!$G$4="2020-25",'Product benefit & adoption'!AW33*'Product benefit & adoption'!$N33/1000000,'Product benefit & adoption'!$G$4="2015-20",'Product benefit & adoption'!AW33*'Product benefit & adoption'!$L33/1000000) -> 0 | AC28: =_xlfn.IFS('Product benefit & adoption'!$G$4="ALL",'Product benefit & adoption'!AX33*'Product benefit & adoption'!$P33/1000000,'Product benefit & adoption'!$G$4="2020-25",'Product benefit & adoption'!AX33*'Product benefit & adoption'!$N33/1000000,'Product benefit & adoption'!$G$4="2015-20",'Product benefit & adoption'!AX33*'Product benefit & adoption'!$L33/1000000) -> 0 | AD28: =_xlfn.IFS('Product benefit & adoption'!$G$4="ALL",'Product benefit & adoption'!AY33*'Product benefit & adoption'!$P33/1000000,'Product benefit & adoption'!$G$4="2020-25",'Product benefit & adoption'!AY33*'Product benefit & adoption'!$N33/1000000,'Product benefit & adoption'!$G$4="2015-20",'Product benefit & adoption'!AY33*'Product benefit & adoption'!$L33/1000000) -> 0 | AE28: =_xlfn.IFS('Product benefit & adoption'!$G$4="ALL",'Product benefit & adoption'!AZ33*'Product benefit & adoption'!$P33/1000000,'Product benefit & adoption'!$G$4="2020-25",'Product benefit & adoption'!AZ33*'Product benefit & adoption'!$N33/1000000,'Product benefit & adoption'!$G$4="2015-20",'Product benefit & adoption'!AZ33*'Product benefit & adoption'!$L33/1000000) -> 0 | AF28: =_xlfn.IFS('Product benefit & adoption'!$G$4="ALL",'Product benefit & adoption'!BA33*'Product benefit & adoption'!$P33/1000000,'Product benefit & adoption'!$G$4="2020-25",'Product benefit & adoption'!BA33*'Product benefit & adoption'!$N33/1000000,'Product benefit & adoption'!$G$4="2015-20",'Product benefit & adoption'!BA33*'Product benefit & adoption'!$L33/1000000) -> 0 | AG28: =_xlfn.IFS('Product benefit & adoption'!$G$4="ALL",'Product benefit & adoption'!BB33*'Product benefit & adoption'!$P33/1000000,'Product benefit & adoption'!$G$4="2020-25",'Product benefit & adoption'!BB33*'Product benefit & adoption'!$N33/1000000,'Product benefit & adoption'!$G$4="2015-20",'Product benefit & adoption'!BB33*'Product benefit & adoption'!$L33/1000000) -> 0 | AH28: =_xlfn.IFS('Product benefit & adoption'!$G$4="ALL",'Product benefit & adoption'!BC33*'Product benefit & adoption'!$P33/1000000,'Product benefit & adoption'!$G$4="2020-25",'Product benefit & adoption'!BC33*'Product benefit & adoption'!$N33/1000000,'Product benefit & adoption'!$G$4="2015-20",'Product benefit & adoption'!BC33*'Product benefit & adoption'!$L33/1000000) -> 0 | AI28: =_xlfn.IFS('Product benefit & adoption'!$G$4="ALL",'Product benefit & adoption'!BD33*'Product benefit & adoption'!$P33/1000000,'Product benefit & adoption'!$G$4="2020-25",'Product benefit & adoption'!BD33*'Product benefit & adoption'!$N33/1000000,'Product benefit & adoption'!$G$4="2015-20",'Product benefit & adoption'!BD33*'Product benefit & adoption'!$L33/1000000) -> 0
B29: 24 | C29: =IF('Product benefit & adoption'!D34="","",'Product benefit & adoption'!D34) ->  | D29: =IF('Product benefit & adoption'!F34="","",'Product benefit & adoption'!F34) ->  | E29: 0 | F29: =_xlfn.IFS('Product benefit & adoption'!$G$4="ALL",'Product benefit & adoption'!AA34*'Product benefit & adoption'!$P34/1000000,'Product benefit & adoption'!$G$4="2020-25",'Product benefit & adoption'!AA34*'Product benefit & adoption'!$N34/1000000,'Product benefit & adoption'!$G$4="2015-20",'Product benefit & adoption'!AA34*'Product benefit & adoption'!$L34/1000000) -> 0 | G29: =_xlfn.IFS('Product benefit & adoption'!$G$4="ALL",'Product benefit & adoption'!AB34*'Product benefit & adoption'!$P34/1000000,'Product benefit & adoption'!$G$4="2020-25",'Product benefit & adoption'!AB34*'Product benefit & adoption'!$N34/1000000,'Product benefit & adoption'!$G$4="2015-20",'Product benefit & adoption'!AB34*'Product benefit & adoption'!$L34/1000000) -> 0 | H29: =_xlfn.IFS('Product benefit & adoption'!$G$4="ALL",'Product benefit & adoption'!AC34*'Product benefit & adoption'!$P34/1000000,'Product benefit & adoption'!$G$4="2020-25",'Product benefit & adoption'!AC34*'Product benefit & adoption'!$N34/1000000,'Product benefit & adoption'!$G$4="2015-20",'Product benefit & adoption'!AC34*'Product benefit & adoption'!$L34/1000000) -> 0 | I29: =_xlfn.IFS('Product benefit & adoption'!$G$4="ALL",'Product benefit & adoption'!AD34*'Product benefit & adoption'!$P34/1000000,'Product benefit & adoption'!$G$4="2020-25",'Product benefit & adoption'!AD34*'Product benefit & adoption'!$N34/1000000,'Product benefit & adoption'!$G$4="2015-20",'Product benefit & adoption'!AD34*'Product benefit & adoption'!$L34/1000000) -> 0 | J29: =_xlfn.IFS('Product benefit & adoption'!$G$4="ALL",'Product benefit & adoption'!AE34*'Product benefit & adoption'!$P34/1000000,'Product benefit & adoption'!$G$4="2020-25",'Product benefit & adoption'!AE34*'Product benefit & adoption'!$N34/1000000,'Product benefit & adoption'!$G$4="2015-20",'Product benefit & adoption'!AE34*'Product benefit & adoption'!$L34/1000000) -> 0 | K29: =_xlfn.IFS('Product benefit & adoption'!$G$4="ALL",'Product benefit & adoption'!AF34*'Product benefit & adoption'!$P34/1000000,'Product benefit & adoption'!$G$4="2020-25",'Product benefit & adoption'!AF34*'Product benefit & adoption'!$N34/1000000,'Product benefit & adoption'!$G$4="2015-20",'Product benefit & adoption'!AF34*'Product benefit & adoption'!$L34/1000000) -> 0 | L29: =_xlfn.IFS('Product benefit & adoption'!$G$4="ALL",'Product benefit & adoption'!AG34*'Product benefit & adoption'!$P34/1000000,'Product benefit & adoption'!$G$4="2020-25",'Product benefit & adoption'!AG34*'Product benefit & adoption'!$N34/1000000,'Product benefit & adoption'!$G$4="2015-20",'Product benefit & adoption'!AG34*'Product benefit & adoption'!$L34/1000000) -> 0 | M29: =_xlfn.IFS('Product benefit & adoption'!$G$4="ALL",'Product benefit & adoption'!AH34*'Product benefit & adoption'!$P34/1000000,'Product benefit & adoption'!$G$4="2020-25",'Product benefit & adoption'!AH34*'Product benefit & adoption'!$N34/1000000,'Product benefit & adoption'!$G$4="2015-20",'Product benefit & adoption'!AH34*'Product benefit & adoption'!$L34/1000000) -> 0 | N29: =_xlfn.IFS('Product benefit & adoption'!$G$4="ALL",'Product benefit & adoption'!AI34*'Product benefit & adoption'!$P34/1000000,'Product benefit & adoption'!$G$4="2020-25",'Product benefit & adoption'!AI34*'Product benefit & adoption'!$N34/1000000,'Product benefit & adoption'!$G$4="2015-20",'Product benefit & adoption'!AI34*'Product benefit & adoption'!$L34/1000000) -> 0 | O29: =_xlfn.IFS('Product benefit & adoption'!$G$4="ALL",'Product benefit & adoption'!AJ34*'Product benefit & adoption'!$P34/1000000,'Product benefit & adoption'!$G$4="2020-25",'Product benefit & adoption'!AJ34*'Product benefit & adoption'!$N34/1000000,'Product benefit & adoption'!$G$4="2015-20",'Product benefit & adoption'!AJ34*'Product benefit & adoption'!$L34/1000000) -> 0 | P29: =_xlfn.IFS('Product benefit & adoption'!$G$4="ALL",'Product benefit & adoption'!AK34*'Product benefit & adoption'!$P34/1000000,'Product benefit & adoption'!$G$4="2020-25",'Product benefit & adoption'!AK34*'Product benefit & adoption'!$N34/1000000,'Product benefit & adoption'!$G$4="2015-20",'Product benefit & adoption'!AK34*'Product benefit & adoption'!$L34/1000000) -> 0 | Q29: =_xlfn.IFS('Product benefit & adoption'!$G$4="ALL",'Product benefit & adoption'!AL34*'Product benefit & adoption'!$P34/1000000,'Product benefit & adoption'!$G$4="2020-25",'Product benefit & adoption'!AL34*'Product benefit & adoption'!$N34/1000000,'Product benefit & adoption'!$G$4="2015-20",'Product benefit & adoption'!AL34*'Product benefit & adoption'!$L34/1000000) -> 0 | R29: =_xlfn.IFS('Product benefit & adoption'!$G$4="ALL",'Product benefit & adoption'!AM34*'Product benefit & adoption'!$P34/1000000,'Product benefit & adoption'!$G$4="2020-25",'Product benefit & adoption'!AM34*'Product benefit & adoption'!$N34/1000000,'Product benefit & adoption'!$G$4="2015-20",'Product benefit & adoption'!AM34*'Product benefit & adoption'!$L34/1000000) -> 0 | S29: =_xlfn.IFS('Product benefit & adoption'!$G$4="ALL",'Product benefit & adoption'!AN34*'Product benefit & adoption'!$P34/1000000,'Product benefit & adoption'!$G$4="2020-25",'Product benefit & adoption'!AN34*'Product benefit & adoption'!$N34/1000000,'Product benefit & adoption'!$G$4="2015-20",'Product benefit & adoption'!AN34*'Product benefit & adoption'!$L34/1000000) -> 0 | T29: =_xlfn.IFS('Product benefit & adoption'!$G$4="ALL",'Product benefit & adoption'!AO34*'Product benefit & adoption'!$P34/1000000,'Product benefit & adoption'!$G$4="2020-25",'Product benefit & adoption'!AO34*'Product benefit & adoption'!$N34/1000000,'Product benefit & adoption'!$G$4="2015-20",'Product benefit & adoption'!AO34*'Product benefit & adoption'!$L34/1000000) -> 0 | U29: =_xlfn.IFS('Product benefit & adoption'!$G$4="ALL",'Product benefit & adoption'!AP34*'Product benefit & adoption'!$P34/1000000,'Product benefit & adoption'!$G$4="2020-25",'Product benefit & adoption'!AP34*'Product benefit & adoption'!$N34/1000000,'Product benefit & adoption'!$G$4="2015-20",'Product benefit & adoption'!AP34*'Product benefit & adoption'!$L34/1000000) -> 0 | V29: =_xlfn.IFS('Product benefit & adoption'!$G$4="ALL",'Product benefit & adoption'!AQ34*'Product benefit & adoption'!$P34/1000000,'Product benefit & adoption'!$G$4="2020-25",'Product benefit & adoption'!AQ34*'Product benefit & adoption'!$N34/1000000,'Product benefit & adoption'!$G$4="2015-20",'Product benefit & adoption'!AQ34*'Product benefit & adoption'!$L34/1000000) -> 0 | W29: =_xlfn.IFS('Product benefit & adoption'!$G$4="ALL",'Product benefit & adoption'!AR34*'Product benefit & adoption'!$P34/1000000,'Product benefit & adoption'!$G$4="2020-25",'Product benefit & adoption'!AR34*'Product benefit & adoption'!$N34/1000000,'Product benefit & adoption'!$G$4="2015-20",'Product benefit & adoption'!AR34*'Product benefit & adoption'!$L34/1000000) -> 0 | X29: =_xlfn.IFS('Product benefit & adoption'!$G$4="ALL",'Product benefit & adoption'!AS34*'Product benefit & adoption'!$P34/1000000,'Product benefit & adoption'!$G$4="2020-25",'Product benefit & adoption'!AS34*'Product benefit & adoption'!$N34/1000000,'Product benefit & adoption'!$G$4="2015-20",'Product benefit & adoption'!AS34*'Product benefit & adoption'!$L34/1000000) -> 0 | Y29: =_xlfn.IFS('Product benefit & adoption'!$G$4="ALL",'Product benefit & adoption'!AT34*'Product benefit & adoption'!$P34/1000000,'Product benefit & adoption'!$G$4="2020-25",'Product benefit & adoption'!AT34*'Product benefit & adoption'!$N34/1000000,'Product benefit & adoption'!$G$4="2015-20",'Product benefit & adoption'!AT34*'Product benefit & adoption'!$L34/1000000) -> 0 | Z29: =_xlfn.IFS('Product benefit & adoption'!$G$4="ALL",'Product benefit & adoption'!AU34*'Product benefit & adoption'!$P34/1000000,'Product benefit & adoption'!$G$4="2020-25",'Product benefit & adoption'!AU34*'Product benefit & adoption'!$N34/1000000,'Product benefit & adoption'!$G$4="2015-20",'Product benefit & adoption'!AU34*'Product benefit & adoption'!$L34/1000000) -> 0 | AA29: =_xlfn.IFS('Product benefit & adoption'!$G$4="ALL",'Product benefit & adoption'!AV34*'Product benefit & adoption'!$P34/1000000,'Product benefit & adoption'!$G$4="2020-25",'Product benefit & adoption'!AV34*'Product benefit & adoption'!$N34/1000000,'Product benefit & adoption'!$G$4="2015-20",'Product benefit & adoption'!AV34*'Product benefit & adoption'!$L34/1000000) -> 0 | AB29: =_xlfn.IFS('Product benefit & adoption'!$G$4="ALL",'Product benefit & adoption'!AW34*'Product benefit & adoption'!$P34/1000000,'Product benefit & adoption'!$G$4="2020-25",'Product benefit & adoption'!AW34*'Product benefit & adoption'!$N34/1000000,'Product benefit & adoption'!$G$4="2015-20",'Product benefit & adoption'!AW34*'Product benefit & adoption'!$L34/1000000) -> 0 | AC29: =_xlfn.IFS('Product benefit & adoption'!$G$4="ALL",'Product benefit & adoption'!AX34*'Product benefit & adoption'!$P34/1000000,'Product benefit & adoption'!$G$4="2020-25",'Product benefit & adoption'!AX34*'Product benefit & adoption'!$N34/1000000,'Product benefit & adoption'!$G$4="2015-20",'Product benefit & adoption'!AX34*'Product benefit & adoption'!$L34/1000000) -> 0 | AD29: =_xlfn.IFS('Product benefit & adoption'!$G$4="ALL",'Product benefit & adoption'!AY34*'Product benefit & adoption'!$P34/1000000,'Product benefit & adoption'!$G$4="2020-25",'Product benefit & adoption'!AY34*'Product benefit & adoption'!$N34/1000000,'Product benefit & adoption'!$G$4="2015-20",'Product benefit & adoption'!AY34*'Product benefit & adoption'!$L34/1000000) -> 0 | AE29: =_xlfn.IFS('Product benefit & adoption'!$G$4="ALL",'Product benefit & adoption'!AZ34*'Product benefit & adoption'!$P34/1000000,'Product benefit & adoption'!$G$4="2020-25",'Product benefit & adoption'!AZ34*'Product benefit & adoption'!$N34/1000000,'Product benefit & adoption'!$G$4="2015-20",'Product benefit & adoption'!AZ34*'Product benefit & adoption'!$L34/1000000) -> 0 | AF29: =_xlfn.IFS('Product benefit & adoption'!$G$4="ALL",'Product benefit & adoption'!BA34*'Product benefit & adoption'!$P34/1000000,'Product benefit & adoption'!$G$4="2020-25",'Product benefit & adoption'!BA34*'Product benefit & adoption'!$N34/1000000,'Product benefit & adoption'!$G$4="2015-20",'Product benefit & adoption'!BA34*'Product benefit & adoption'!$L34/1000000) -> 0 | AG29: =_xlfn.IFS('Product benefit & adoption'!$G$4="ALL",'Product benefit & adoption'!BB34*'Product benefit & adoption'!$P34/1000000,'Product benefit & adoption'!$G$4="2020-25",'Product benefit & adoption'!BB34*'Product benefit & adoption'!$N34/1000000,'Product benefit & adoption'!$G$4="2015-20",'Product benefit & adoption'!BB34*'Product benefit & adoption'!$L34/1000000) -> 0 | AH29: =_xlfn.IFS('Product benefit & adoption'!$G$4="ALL",'Product benefit & adoption'!BC34*'Product benefit & adoption'!$P34/1000000,'Product benefit & adoption'!$G$4="2020-25",'Product benefit & adoption'!BC34*'Product benefit & adoption'!$N34/1000000,'Product benefit & adoption'!$G$4="2015-20",'Product benefit & adoption'!BC34*'Product benefit & adoption'!$L34/1000000) -> 0 | AI29: =_xlfn.IFS('Product benefit & adoption'!$G$4="ALL",'Product benefit & adoption'!BD34*'Product benefit & adoption'!$P34/1000000,'Product benefit & adoption'!$G$4="2020-25",'Product benefit & adoption'!BD34*'Product benefit & adoption'!$N34/1000000,'Product benefit & adoption'!$G$4="2015-20",'Product benefit & adoption'!BD34*'Product benefit & adoption'!$L34/1000000) -> 0
